Workbook

Sheet January 2024
A1: Week | B1: No. | C1: رقم الشكوى | D1: رقم الملف | E1: جهة الشكوى | F1: الموقع | G1: القسم الرئيس | H1: القسم الفرعي | I1: تاريخ إستلام الشكوى | J1: المدخل | K1: Time line | L1: إرسال نموذج الشكوى | N1: Employee | O1: تحرير الشكوى | Q1: تفعيل الشكوى | S1: Employee | T1: تم ارسال الشكوى | V1: Employee | W1: الوقت بين التحرير والارسال | X1: First Reminder Sent | Z1: Employee | AA1: الوقت بين اول ايميل والارسال | AB1: Second Reminder Sent | AD1: Employee | AE1: الوقت بين ثاني ايميل والاول | AF1: Escalated | AH1: Employee | AI1: Reason of Escalation | AJ1: الوقت بين التصعيد والارسال | AK1: Closed | AM1: Employee | AN1: الوقت بين الاغلاق والارسال | AO1: تاريخ الرد | AQ1: الوقت بين الرد والارسال | AR1: Resolved | AT1: Employee | AU1: الوقت بين المعالجة و الارسال | AV1: ID | AW1: اسم الشخص المشتكى عليه - ان وجد | AX1: Domain | AY1: Category | AZ1: Sub-Category | BA1: Classification | BB1: محتوى الشكوى (عربي) | BC1: محتوى الشكوى (English) | BD1: Satisfied/Dissatisfied | BE1: The Rightful Side | BF1: Recommendation/Action plan | BO1: رقم الشكوى | BP1: رقم الملف | BQ1: جهة الشكوى | BR1: الموقع | BS1: القسم الرئيس | BT1: القسم الفرعي | BU1: تاريخ إستلام الشكوى | BV1: المدخل | BW1: Time line | BY1: رقم الشكوى | BZ1: رقم الملف | CA1: جهة الشكوى | CB1: الموقع | CC1: القسم الرئيس | CD1: القسم الفرعي | CE1: تاريخ إستلام الشكوى | CF1: المدخل | CG1: Time line | CI1: رقم الشكوى | CJ1: رقم الملف | CK1: جهة الشكوى | CL1: الموقع | CM1: القسم الرئيس | CN1: القسم الفرعي | CO1: تاريخ إستلام الشكوى | CP1: المدخل | CQ1: Time line | CS1: رقم الشكوى | CT1: رقم الملف | CU1: جهة الشكوى | CV1: الموقع | CW1: القسم الرئيس | CX1: القسم الفرعي | CY1: تاريخ إستلام الشكوى | CZ1: المدخل | DA1: Time line
K2: Time line | L2: Date | M2: Time | O2: Date | P2: Time | Q2: Date | R2: Time | T2: Date | U2: Time | X2: Date | Y2: Time | AB2: Date | AC2: Time | AF2: Date | AG2: Time | AK2: Date | AL2: Time | AO2: Date | AP2: Time | AR2: Date | AS2: Time | BO2: 2042 | BP2: 1568218 | BQ2: مجلس الضمان الصحي | BR2: العيادات الخارجية | BS2: الإداري | BT2: قسم الموافقات الطبية | BU2: 2024-01-03T10:56:00 | BV2: مي سليمان الدخيل | BW2: 48 Hours | BY2: 2032 | BZ2: 30307854 | CA2: وزارة الصحة | CB2: العيادات الخارجية | CC2: الإداري | CD2: قسم التقارير الطبية | CE2: 2024-01-01T17:58:00 | CF2: ابرار بندر الشمري | CG2: 24 Hours | CI2: 2035 | CJ2: 30278305 | CK2: مراجع | CL2: العيادات الخارجية | CM2: الطبي | CN2: عيادات العيون | CO2: 2024-01-01T19:38:00 | CP2: مي سليمان الدخيل | CQ2: 24 Hours | CS2: 2037 | CT2: 30001771 | CU2: ذوي المراجع | CV2: العيادات الخارجية | CW2: الطبي | CX2: عيادات الجراحة العامة (أطفال) | CY2: 2024-01-02T17:10:00 | CZ2: مي سليمان الدخيل | DA2: 48 Hours
A3: 1 | B3: 1 | C3: 2032 | D3: 30307854 | E3: وزارة الصحة | F3: العيادات الخارجية | G3: الإداري | H3: قسم التقارير الطبية | I3: 2024-01-01T17:58:00 | J3: ابرار بندر الشمري | K3: 24 Hours | L3: 2024-01-01 | M3: 17:58:00 | N3: ابرار بندر الشمري | O3: 2024-01-01 | P3: 17:58:00 | T3: 2024-01-01 | U3: 18:03:00 | V3: ابرار بندر الشمري | W3: =(U3+T3)-(P3+O3) -> 0.003472222219 | AA3: =(Y3+X3)-(U3+T3) -> -45292.75208 | AE3: =(AC3+AB3)-(Y3+X3) -> 0 | AJ3: =(AG3+AF3)-(U3+T3) -> -45292.75208 | AN3: =(AL3+AK3)-(U3+T3) -> -45292.75208 | AO3: 2024-01-01 | AP3: 20:51:00 | AQ3: =(AP3+AO3)-(U3+T3) -> 0.1166666667 | AR3: 2024-01-02 | AS3: 17:17:00 | AT3: ابرار بندر الشمري | AU3: =(AS3+AR3)-(U3+T3) -> 0.9680555556 | AX3: Management complaints | AY3: 3. Institutional Issues | AZ3: 3.7.Medical records | BA3: 3.7.7.Sick leave issues | BB3: عدم رفع الاجازة المرضيه . | BC3: Failure to submit sick leave. | BE3: Patient | BO3: 2057 | BP3: 1457498 | BQ3: مجلس الضمان الصحي | BR3: الطوارئ | BS3: الإداري | BT3: المدير المناوب | BU3: 2024-01-08T11:48:00 | BV3: ابرار بندر الشمري | BW3: 72 Hours | BY3: 2033 | BZ3: 30168793 | CA3: وزارة الصحة | CB3: الطوارئ | CC3: الإداري | CD3: استقبال الطوارئ | CE3: 2024-01-01T18:03:00 | CF3: ابرار بندر الشمري | CG3: 72 Hours | CI3: 2036 | CJ3: 30156520 | CK3: مراجع | CL3: العيادات الخارجية | CM3: الإداري | CN3: قسم الموافقات الطبية | CO3: 2024-01-02T17:35:00 | CP3: مي سليمان الدخيل | CQ3: 24 Hours | CS3: 2038 | CT3: 30307500 | CU3: ذوي المراجع | CV3: التنويم | CW3: الطبي | CX3: وحدة العناية المتوسطة | CY3: 2024-01-07T09:05:00 | CZ3: مي سليمان الدخيل | DA3: More than 72 Hours
B4: 2 | C4: 2033 | D4: 30168793 | E4: وزارة الصحة | F4: الطوارئ | G4: الإداري | H4: استقبال الطوارئ | I4: 2024-01-01T18:03:00 | J4: ابرار بندر الشمري | K4: 72 Hours | L4: 2024-01-01 | M4: 18:03:00 | N4: ابرار بندر الشمري | O4: 2024-01-01 | P4: 18:03:00 | T4: 2024-01-01 | U4: 18:47:00 | V4: مي سليمان الدخيل | W4: 0.03055555555 | X4: 2024-01-03 | Y4: 10:47:00 | Z4: مي سليمان الدخيل | AA4: 1.666666667 | AB4: 2024-01-04 | AC4: 17:27:00 | AD4: مي سليمان الدخيل | AE4: 1.277777778 | AJ4: =(AG4+AF4)-(U4+T4) -> -45292.78264 | AN4: -45292.78264 | AO4: 2024-01-02 | AP4: 21:34:00 | AQ4: 1.115972222 | AR4: 2024-01-04 | AS4: 19:06:00 | AT4: مي سليمان الدخيل | AU4: 3.013194444 | AX4: Management complaints | AY4: 4. Accessibility | AZ4: 4.1.Access | BA4: 4.1.3.Patient admission refusal | BB4: تم حضور المريضة الى المستشفى كحالة طارئة حيث لديها مغص في البطن ولم يتم استقبال الحالة لرفض تأمينها التابع لشركة بوبا. | BC4: The patient was brought to the hospital as an emergency case with abdominal cramps, but the case was not admitted due to her Bupa insurance being rejected. | BE4: Patient | BO4: 2074 | BP4: 20050079 | BQ4: مجلس الضمان الصحي | BR4: العيادات الخارجية | BS4: الإداري | BT4: قسم الموافقات الطبية | BU4: 2024-01-16T12:16:00 | BV4: امال ماهل القحطاني | BW4: 24 Hours | BY4: 2033 | BZ4: 30168793 | CA4: وزارة الصحة | CB4: الطوارئ | CC4: الإداري | CD4: استقبال الطوارئ | CE4: 2024-01-01T18:03:00 | CF4: ابرار بندر الشمري | CG4: 24 Hours | CI4: 2041 | CJ4: 30305408 | CK4: مراجع | CL4: العيادات الخارجية | CM4: الطبي | CN4: عيادات جراحة المسالك البولية | CO4: 2024-01-03T10:02:00 | CP4: مي سليمان الدخيل | CQ4: More than 72 Hours | CS4: 2043 | CT4: 1131114 | CU4: ذوي المراجع | CV4: العيادات الخارجية | CW4: الإداري | CX4: استقبال العيادات الخارجية | CY4: 2024-01-04T15:23:00 | CZ4: ابرار بندر الشمري | DA4: More than 72 Hours
B5: 3 | C5: 2033 | D5: 30168793 | E5: وزارة الصحة | F5: الطوارئ | G5: الإداري | H5: استقبال الطوارئ | I5: 2024-01-01T18:03:00 | J5: ابرار بندر الشمري | K5: 24 Hours | L5: 2024-01-01 | M5: 18:03:00 | N5: ابرار بندر الشمري | O5: 2024-01-01 | P5: 18:03:00 | T5: 2024-01-01 | U5: 18:47:00 | V5: مي سليمان الدخيل | W5: 0.03055555555 | AA5: -45292.78264 | AE5: 0 | AJ5: -45292.78264 | AN5: -45292.78264 | AO5: 2024-01-04 | AP5: 19:05:00 | AQ5: 3.0125 | AR5: 2024-01-02 | AS5: 13:55:00 | AT5: مي سليمان الدخيل | AU5: 0.7972222222 | AX5: Management complaints | AY5: 4. Accessibility | AZ5: 4.1.Access | BA5: 4.1.3.Patient admission refusal | BB5: تم حضور المريضة الى المستشفى كحالة طارئة حيث لديها مغص في البطن ولم يتم استقبال الحالة لرفض تأمينها التابع لشركة بوبا. | BC5: The patient was brought to the hospital as an emergency case with abdominal cramps, but the case was not admitted due to her Bupa insurance being rejected. | BE5: Patient | BO5: 2088 | BP5: 30308966 | BQ5: مجلس الضمان الصحي | BR5: الطوارئ | BS5: الإداري | BT5: استقبال الطوارئ | BU5: 2024-01-18T14:36:00 | BV5: ابرار بندر الشمري | BW5: 24 Hours | BY5: 2034 | BZ5: 30302414 | CA5: وزارة الصحة | CB5: العيادات الخارجية | CC5: التمريض | CD5: تمريض غرفة التطعيمات | CE5: 2024-01-01T18:52:00 | CF5: ابرار بندر الشمري | CG5: 24 Hours | CI5: 2046 | CJ5: 30071263 | CK5: مراجع | CL5: العيادات الخارجية | CM5: الطبي | CN5: عيادات العيون | CO5: 2024-01-06T15:26:00 | CP5: مي سليمان الدخيل | CQ5: 48 Hours | CS5: 2044 | CT5: 30178557 | CU5: ذوي المراجع | CV5: التنويم | CW5: الطبي | CX5: تنويم النساء والولادة | CY5: 2024-01-04T15:57:00 | CZ5: مي سليمان الدخيل | DA5: More than 72 Hours
B6: 4 | C6: 2034 | D6: 30302414 | E6: وزارة الصحة | F6: العيادات الخارجية | G6: التمريض | H6: تمريض غرفة التطعيمات | I6: 2024-01-01T18:52:00 | J6: ابرار بندر الشمري | K6: 24 Hours | L6: 2024-01-01 | M6: 18:52:00 | N6: ابرار بندر الشمري | O6: 2024-01-01 | P6: 18:52:00 | T6: 2024-01-01 | U6: 19:08:00 | V6: ابرار بندر الشمري | W6: 0.01111111111 | AA6: -45292.79722 | AE6: 0 | AJ6: -45292.79722 | AN6: -45292.79722 | AQ6: -45292.79722 | AR6: 2024-01-02 | AS6: 16:59:00 | AT6: مي سليمان الدخيل | AU6: 0.9104166667 | AX6: Management complaints | AY6: 4. Accessibility | AZ6: 3.Delays | BA6: 4.3.8.Vaccinating delay | BB6: التطعيم غير متوفر في النظام رقم تعريف الطفل: ١٢١٢٣٢٧١٧٣ | BC6: vaccination not avalible on the system ID for baby : 1212327173 | BE6: Patient | BO6: 2095 | BP6: 1810320 | BQ6: مجلس الضمان الصحي | BR6: العيادات الخارجية | BS6: الإداري | BT6: قسم الموافقات الطبية | BU6: 2024-01-21T14:30:00 | BV6: مي سليمان الدخيل | BW6: 24 Hours | BY6: 2053 | BZ6: 30308251 | CA6: وزارة الصحة | CB6: العيادات الخارجية | CC6: الطبي | CD6: قسم المختبر | CE6: 2024-01-07T17:42:00 | CF6: ابرار بندر الشمري | CG6: 24 Hours | CI6: 2047 | CJ6: 30237906 | CK6: مراجع | CL6: العيادات الخارجية | CM6: الطبي | CN6: قسم المختبر | CO6: 2024-01-06T18:48:00 | CP6: مي سليمان الدخيل | CQ6: 48 Hours | CS6: 2050 | CT6: 30308162 | CU6: ذوي المراجع | CV6: التنويم | CW6: الطبي | CX6: تنويم الأطفال | CY6: 2024-01-06T19:44:00 | CZ6: مي سليمان الدخيل | DA6: 24 Hours
B7: 5 | C7: 2035 | D7: 30278305 | E7: مراجع | F7: العيادات الخارجية | G7: الطبي | H7: عيادات العيون | I7: 2024-01-01T19:38:00 | J7: مي سليمان الدخيل | K7: 24 Hours | L7: 2024-01-01 | M7: 19:27:00 | N7: مي سليمان الدخيل | O7: 2024-01-01 | P7: 19:38:00 | Q7: 2024-01-01 | R7: 19:50:00 | S7: مي سليمان الدخيل | T7: 2024-01-01 | U7: 19:51:00 | V7: مي سليمان الدخيل | W7: 0.009027777771 | AA7: -45292.82708 | AE7: 0 | AJ7: -45292.82708 | AN7: -45292.82708 | AO7: 2024-01-01 | AP7: 21:02:00 | AQ7: 0.04930555556 | AR7: 2024-01-02 | AS7: 13:53:00 | AT7: مي سليمان الدخيل | AU7: 0.7513888889 | AW7: Specialist - SHAIMAA | AX7: Clinical complaints | AY7: 1. Quality | AZ7: 1.2.Patient journey | BA7: 1.2.1.Miscoordination | BB7: خرجت من عيادة الدكتور حسن وتم توجيهي للفحص عند الاخصائية شيماء ولم تكن متواجده بغرفة الفحص ووجدت اسمي من ضمن القائمه بغرفة الفحص وانتظرت نصف ساعه وبعد تراكم المرضى سالت اين دوري ردت قالت لم تقطعي فاتورة ولم يتم اعلامي بفاتورة الا بعد سؤالي لها ذهبت ودفعت بعدها قلت هل علي الانتظار اكثر قالت بعد انتهاء المرضى كلهم يجي دورك لانك لم تدفعي الفاتورة باسلوب مستفز وعليك ان تعيدي الانتظار مجددا اسلوبها مستفز وتريد جعلي انتظر مع العلم كنت امامها انتظر واريد حاليا اتخاذ اجراء والاعتذار لي من قبلها. | BC7: I left Dr. Hassan's clinic and was directed to see Specialist Shaimaa, but she wasn't in the examination room. I found my name on the list and waited for half an hour. After the patients piled up, I asked where my turn was. She replied that I hadn't received a bill, and I wasn't given one until I asked her. I went and paid, and then I asked if I had to wait longer. She said, in a provocative manner, that my turn would come after all the other patients had finished because I hadn't paid, and that I would have to wait again. Her attitude was offensive, and she wanted to make me wait even though I was waiting in front of her. I now want to take action and receive an apology from her. | BE7: Patient | BO7: 2097 | BP7: 30291618 | BQ7: مجلس الضمان الصحي | BR7: العيادات الخارجية | BS7: الطبي | BT7: عيادات الأطفال | BU7: 2024-01-21T17:00:00 | BV7: ابرار بندر الشمري | BW7: 72 Hours | BY7: 2059 | BZ7: 30118804 | CA7: وزارة الصحة | CB7: العيادات الخارجية | CC7: الطبي | CD7: عيادات الأطفال | CE7: 2024-01-09T10:06:00 | CF7: مي سليمان الدخيل | CG7: 72 Hours | CI7: 2049 | CJ7: 1106561812 | CK7: مراجع | CL7: العيادات الخارجية | CM7: الطبي | CN7: بنك الدم | CO7: 2024-01-06T18:48:00 | CP7: مي سليمان الدخيل | CQ7: More than 72 Hours | CS7: 2055 | CT7: 30118804 | CU7: ذوي المراجع | CV7: العيادات الخارجية | CW7: الطبي | CX7: عيادات الأطفال | CY7: 2024-01-08T12:26:00 | CZ7: مي سليمان الدخيل | DA7: More than 72 Hours
B8: 6 | C8: 2036 | D8: 30156520 | E8: مراجع | F8: العيادات الخارجية | G8: الإداري | H8: قسم الموافقات الطبية | I8: 2024-01-02T17:35:00 | J8: مي سليمان الدخيل | K8: 24 Hours | L8: 2024-01-02 | M8: 15:35:00 | N8: مي سليمان الدخيل | O8: 2024-01-02 | P8: 17:35:00 | Q8: 2024-01-02 | R8: 18:41:00 | S8: مي سليمان الدخيل | T8: 2024-01-02 | U8: 18:43:00 | V8: مي سليمان الدخيل | W8: 0.04722222222 | AA8: -45293.77986 | AE8: 0 | AJ8: -45293.77986 | AN8: -45293.77986 | AO8: 2024-01-03 | AP8: 23:45:00 | AQ8: 1.209722222 | AR8: 2024-01-03 | AS8: 13:12:00 | AT8: مي سليمان الدخيل | AU8: 0.7701388889 | AX8: Relationship Complaints | AY8: 6. Humanness / Caring | AZ8: 6.4.Consent | BA8: 6.4.2.No/Invalid consent obtained | BB8: عدم التعاون والتجاوب في متابعه الموافقه المرسله لشركة التامين وطلب التامين تقرير طبي من الطبيب المعالج ولحد الان مافي تجاوب! | BC8: Lack of cooperation and responsiveness in following up on the approval sent to the insurance company and the insurance company's request for a medical report from the treating physician. So far, there has been no response! | BE8: Patient | BO8: 2141 | BP8: 1760166 | BQ8: مجلس الضمان الصحي | BR8: العيادات الخارجية | BS8: الإداري | BT8: استقبال العيادات الخارجية | BU8: 2024-01-30T12:48:00 | BV8: ابرار بندر الشمري | BW8: More than 72 Hours | BY8: 2076 | BZ8: 30308966 | CA8: وزارة الصحة | CB8: الطوارئ | CC8: الإداري | CD8: استقبال الطوارئ | CE8: 2024-01-16T17:56:00 | CF8: ابرار بندر الشمري | CG8: 48 Hours | CI8: 2051 | CJ8: 30074927 | CK8: مراجع | CL8: العيادات الخارجية | CM8: الطبي | CN8: عيادات النساء والولادة | CO8: 2024-01-06T21:21:00 | CP8: مي سليمان الدخيل | CQ8: More than 72 Hours | CS8: 2058 | CT8: 30228047 | CU8: ذوي المراجع | CV8: التنويم | CW8: الطبي | CX8: تنويم الأطفال | CY8: 2024-01-08T19:10:00 | CZ8: مي سليمان الدخيل | DA8: 72 Hours
B9: 7 | C9: 2037 | D9: 30001771 | E9: ذوي المراجع | F9: العيادات الخارجية | G9: الطبي | H9: عيادات الجراحة العامة (أطفال) | I9: 2024-01-02T17:10:00 | J9: مي سليمان الدخيل | K9: 48 Hours | L9: 2024-01-02 | M9: 16:45:00 | N9: مي سليمان الدخيل | O9: 2024-01-02 | P9: 17:10:00 | Q9: 2024-01-03 | R9: 09:50:00 | S9: مي سليمان الدخيل | T9: 2024-01-03 | U9: 10:11:00 | V9: مي سليمان الدخيل | W9: 0.7090277778 | AA9: -45294.42431 | AE9: 0 | AJ9: -45294.42431 | AN9: -45294.42431 | AO9: 2024-01-04 | AP9: 09:53:00 | AQ9: 0.9875 | AR9: 2024-01-04 | AS9: 17:24:00 | AT9: مي سليمان الدخيل | AU9: 1.300694444 | AV9: 15346 | AW9: Dr MOHAMMAD ANAS AHMAD RATEB AL SHAWA | AX9: Clinical complaints | AY9: 1. Quality | AZ9: 1.3.Quality of Care | BA9: 1.3.5.Rushed, not time to see patients | BB9: تمت مغادرة الطبيب للعياده قبل دخول المريض بالرغم من وجود موعد محجوز ومؤكد | BC9: The doctor left the clinic before the patient arrived, despite having a confirmed appointment. | BE9: Patient | BO9: 2151 | BP9: 30049850 | BQ9: مجلس الضمان الصحي | BR9: العيادات الخارجية | BS9: الإداري | BT9: قسم الموافقات الطبية | BU9: 2024-01-31T15:58:00 | BV9: امال ماهل القحطاني | BW9: 24 Hours | BY9: 2086 | BZ9: 30185001 | CA9: وزارة الصحة | CB9: التنويم | CC9: الإداري | CD9: قسم الموافقات الطبية | CE9: 2024-01-18T12:51:00 | CF9: ابرار بندر الشمري | CG9: 24 Hours | CI9: 2052 | CJ9: 30308251 | CK9: مراجع | CL9: العيادات الخارجية | CM9: الطبي | CN9: قسم المختبر | CO9: 2024-01-07T17:00:00 | CP9: ابرار بندر الشمري | CQ9: 24 Hours | CS9: 2063 | CT9: 30225858 | CU9: ذوي المراجع | CV9: العيادات الخارجية | CW9: الطبي | CX9: عيادات الأطفال | CY9: 2024-01-10T14:00:00 | CZ9: امال ماهل القحطاني | DA9: More than 72 Hours
B10: 8 | C10: 2038 | D10: 30307500 | E10: ذوي المراجع | F10: التنويم | G10: الطبي | H10: وحدة العناية المتوسطة | I10: 2024-01-07T09:05:00 | J10: مي سليمان الدخيل | K10: More than 72 Hours | L10: 2024-01-02 | M10: 18:19:00 | N10: مي سليمان الدخيل | O10: 2024-01-07 | P10: 09:05:00 | Q10: 2024-02-28 | R10: 21:06:00 | S10: مي سليمان الدخيل | T10: 2024-02-29 | U10: 19:15:00 | V10: مي سليمان الدخيل | W10: 53.42361111 | X10: 2024-03-02 | Y10: 14:27:00 | Z10: مي سليمان الدخيل | AA10: 1.8 | AE10: -45353.60208 | AJ10: -45351.80208 | AK10: 2024-06-11 | AL10: 19:28:00 | AM10: امال ماهل القحطاني | AN10: 103.0090278 | AQ10: -45351.80208 | AU10: -45351.80208 | AX10: Relationship Complaints | AY10: 5. Communication | AZ10: 5.1.Patient-staff communication | BA10: 5.1.4.Failure to clarify patient case to his family | BB10: تم نقل المريضه للعنايه المتوسطه ولم يتم ابلاغي رغم اول ماتنومت بلغتهم يتم اخباري عند نقلها اي مكان كما تم توقيع احد الزوار على ورقه تربيط المريض باي حق يتم توقيعها وباي حق يتم تربيطها بدون شرح لي انا المسؤوله عنها بموجب وكاله لان ليس لديها ابناء او بنات او زوج وحيده ! بانتظار ردكم | BC10: The patient was transferred to intermediate care, and I wasn't informed, even though I was told from the moment she was admitted that I should be notified whenever she was transferred. Furthermore, a visitor signed a restraint form for the patient. By what right was this form signed, and by what right was she restrained without any explanation to me, as I am her legal guardian by virtue of power of attorney, since she has no children or husband and is alone! I await your response. | BE10: Patient | BY10: 2086 | BZ10: 30185001 | CA10: وزارة الصحة | CB10: التنويم | CC10: الإداري | CD10: قسم المالية | CE10: 2024-01-18T12:51:00 | CF10: ابرار بندر الشمري | CG10: 24 Hours | CI10: 2060 | CJ10: 30237906 | CK10: مراجع | CL10: العيادات الخارجية | CM10: الطبي | CN10: قسم المختبر | CO10: 2024-01-09T11:35:00 | CP10: مي سليمان الدخيل | CQ10: 24 Hours | CS10: 2064 | CT10: ALHH.0030169101 | CU10: ذوي المراجع | CV10: العيادات الخارجية | CW10: الطبي | CX10: قسم المختبر | CY10: 2024-01-10T19:39:00 | CZ10: امال ماهل القحطاني | DA10: More than 72 Hours
B11: 9 | C11: 2041 | D11: 30305408 | E11: مراجع | F11: العيادات الخارجية | G11: الطبي | H11: عيادات جراحة المسالك البولية | I11: 2024-01-03T10:02:00 | J11: مي سليمان الدخيل | K11: More than 72 Hours | L11: 2024-01-03 | M11: 09:10:00 | N11: مي سليمان الدخيل | O11: 2024-01-03 | P11: 10:02:00 | Q11: 2024-01-04 | R11: 17:02:00 | S11: مي سليمان الدخيل | T11: 2024-01-04 | U11: 17:16:00 | V11: مي سليمان الدخيل | W11: 1.301388889 | X11: 2024-01-08 | Y11: 14:04:00 | Z11: مي سليمان الدخيل | AA11: 3.866666667 | AB11: 2024-01-10 | AC11: 14:21:00 | AD11: مي سليمان الدخيل | AE11: 2.011805556 | AF11: 2024-01-10 | AG11: 14:48:00 | AH11: مي سليمان الدخيل | AI11: The complaint was escalated due to the department's failure to respond | AJ11: 5.897222222 | AN11: -45295.71944 | AO11: 2024-01-11 | AP11: 18:42:00 | AQ11: =(AP11+AO11)-(U11+T11) -> 7.059722222 | AR11: 2024-01-11 | AS11: 17:02:00 | AT11: امال ماهل القحطاني | AU11: 6.990277778 | AV11: 4941 | AW11: Dr USAMAH JBARA ABDELHAMEED ALBARGOUTHI | AX11: Relationship Complaints | AY11: 5. Communication | AZ11: 5.1.Patient-staff communication | BA11: 5.1.1.Miscommunication with Patient | BB11: منذ اول يوم قدوم لي بالطوارىء تم تنويمي بالمستشفى لأجراء عملية ازالة حصى عن طريق المنظار مع الدكتور اسامه برغوثي الذي لم اقابله الا بعد اجراء العمليه و تكلم معي بأستهتار واضح و صريح عندما قابلني في غرفة التنويم لأني فقط طلبت منه مسكن لأزالة الالم الذي احسست به بعد العمليه وكان كلامه كله يتكلم عن الرغد الذي نمر فيه نحن السعوديين و اقتبس كلامه بقوله انتو تجون هنا تتعورون من حاجه بسيطه و تتشكون كثير ليه ما تروح غزة و تشوف المعاناة الي هناك و الالم الي فيك مو شيء وروح على بيتك خلاص انت جلست كثير بالمستشفى تبي مورفين و اعطيناك كثير وما يصلح نعطيك زياده وانا لم اطلب منه مورفين كنت اطلب منه مسكن للألم الذي احس فيه بعد العملية وكان يقولها لي بأبتسامه وانا رددت عليه طبيعي وكأنه كان يمزح ولكن كلامه لم يعجبني ولم استطع الرد عليه خوفاً على صحتي و اني سأجري عمليه اخرى معه وهي ازالة الدعامه بالحالب ، و بعد ما اتى يوم ازالة الدعامه لدي تمت ازالتها و كل شيء كان طبيعي حتى زارني الدكتور اسامه البرغوثي بعد عملية الازاله في غرفة التنويم وكرركلامه من جديد انني يجب ان اذهب الى غزة لكي احس بمعاناة الشعب الذي في غزة سكت و ابتسمت و قلت له انا في السعودية و مرتاح و ابتسمت وهو ابتسم و كان معاه طبيب سعودي ليتني اذكر اسمه لكنه اسمر اللون و يرتدي نظارة طبيه ويمكنكم التأكد من الكلام الذي حصل معي و ايضاً لدي شهود على هذا العمل السيء و الكلام السيء الذي يخرج من فم دكتور من المفترض ان يكون نزيه و احترافي في تعامله مع مرضاه حيث لا يجب ذكر السياسة في مكان عمل وهذا مخالف لقانون الدولة بشكل كبير جداً . | BC11: From the first day I arrived at the emergency room, I was admitted to the hospital for an endoscopic kidney stone removal procedure with Dr. Osama Barghouthi, whom I only met after the operation. He spoke to me with blatant and contemptuous disregard when he saw me in the recovery room simply because I had asked him for pain relief after the procedure. His entire conversation revolved around the luxurious life we ​​Saudis supposedly enjoy. I quote him saying, "You come here and get hurt over something minor and complain so much. Why don't you go to Gaza and see the suffering there? Your pain is nothing. Go home already. You've been here too long." The hospital wanted morphine, and they gave me plenty; they couldn't give me more. I didn't ask for morphine; I asked for pain relief for the pain I was experiencing after the surgery. He said this to me with a smile, and I responded normally, as if he were joking. But I didn't like what he said, and I couldn't respond for fear of harming my health, especially since I was going to have another surgery with him—to remove a stent in my ureter. The day for the stent removal arrived, and it was done. Everything was normal until Dr. Osama Al-Barghouthi visited me in my recovery room after the procedure. He repeated his statement that I should go to Gaza to understand the suffering of the people there. I remained silent, smiled, and told him, "I'm in Saudi Arabia, and I'm comfortable."She smiled and he smiled, and he was with a Saudi doctor, I wish I could remember his name, but he was dark-skinned and wore glasses. You can verify what happened to me, and I also have witnesses to this bad deed and the bad words that come out of the mouth of a doctor who is supposed to be honest and professional in his dealings with his patients, as politics should not be mentioned in a workplace, and this is very much against the law of the country. | BE11: Patient | BY11: 2087 | BZ11: 24761 | CA11: وزارة الصحة | CB11: العيادات الخارجية | CC11: الإداري | CD11: قسم التقارير الطبية | CE11: 2024-01-18T13:03:00 | CF11: ابرار بندر الشمري | CG11: 24 Hours | CI11: 2069 | CJ11: 30071173 | CK11: مراجع | CL11: الطوارئ | CM11: الإداري | CN11: مكتب التنويم | CO11: 2024-01-14T12:44:00 | CP11: امال ماهل القحطاني | CQ11: More than 72 Hours | CS11: 2068 | CT11: 30305850 | CU11: ذوي المراجع | CV11: العيادات الخارجية | CW11: الإداري | CX11: قسم المالية | CY11: 2024-01-13T16:08:00 | CZ11: مي سليمان الدخيل | DA11: 24 Hours
B12: 10 | C12: 2042 | D12: 1568218 | E12: مجلس الضمان الصحي | F12: العيادات الخارجية | G12: الإداري | H12: قسم الموافقات الطبية | I12: 2024-01-03T10:56:00 | J12: مي سليمان الدخيل | K12: 48 Hours | L12: 2024-01-03 | M12: 10:56:00 | N12: مي سليمان الدخيل | O12: 2024-01-03 | P12: 10:56:00 | T12: 2024-01-03 | U12: 11:22:00 | V12: مي سليمان الدخيل | W12: 0.01805555556 | AA12: -45294.47361 | AE12: 0 | AJ12: -45294.47361 | AN12: -45294.47361 | AO12: 2024-01-10 | AP12: 12:03:00 | AQ12: 7.028472222 | AR12: 2024-01-04 | AS12: 15:04:00 | AT12: مي سليمان الدخيل | AU12: 1.154166667 | AX12: Clinical complaints | AY12: 2. Safety | AZ12: 2.1.Medication & Vaccination | BA12: 2.1.9.Refusal to dispense medications | BB12: تم طلب صرف علاج السكر الدورى لمدة ٣ أشهر بتاريخ ٤ ديسمبر متضمنا طلب ٦ مجسات قياس السكر Freestyle libre وعند صرف العلاج أفاد الصيدلى بأن الموافقة على وحدة واحدة فقط وتم التواصل مع شركة التأمين فأفادت ان الموافقة على ٦ وحدات وتم مراجعة المستشفى وشركة التأمين اكثر من مرة ولا يوجد حل للمشكلة حتى الآن المستشفى ترفض الصرف وشركة التأمين تفيد أن الموافقة أصدرت بالفعل فى طلب 64282317 | BC12: A three-month supply of regular diabetes medication was requested on December 4th, including six Freestyle Libre blood glucose meters. Upon receiving the medication, the pharmacist stated that only one unit was approved. The insurance company was contacted and confirmed approval for six units. The hospital and insurance company have been contacted multiple times, but the problem remains unresolved. The hospital refuses to dispense the medication, while the insurance company maintains that approval was already granted under request number 64282317. | BE12: Patient | BY12: 2092 | BZ12: 30060409 | CA12: وزارة الصحة | CB12: العيادات الخارجية | CC12: الطبي | CD12: قسم الصيدلية | CE12: 2024-01-20T11:31:00 | CF12: ابرار بندر الشمري | CG12: More than 72 Hours | CI12: 2079 | CJ12: 30048922 | CK12: مراجع | CL12: العيادات الخارجية | CM12: الطبي | CN12: عيادات جراحة الأوعية الدموية | CO12: 2024-01-16T18:56:00 | CP12: مي سليمان الدخيل | CQ12: 48 Hours | CS12: 2068 | CT12: 30305850 | CU12: ذوي المراجع | CV12: العيادات الخارجية | CW12: الطبي | CX12: عيادات جراحة المسالك البولية (أطفال) | CY12: 2024-01-13T19:33:00 | CZ12: مي سليمان الدخيل | DA12: 24 Hours
B13: 11 | C13: 2043 | D13: 1131114 | E13: ذوي المراجع | F13: العيادات الخارجية | G13: الإداري | H13: استقبال العيادات الخارجية | I13: 2024-01-04T15:23:00 | J13: ابرار بندر الشمري | K13: More than 72 Hours | L13: 2024-01-03 | M13: 19:58:00 | N13: ابرار بندر الشمري | O13: 2024-01-04 | P13: 15:23:00 | Q13: 2024-01-04 | R13: 16:21:00 | S13: مي سليمان الدخيل | T13: 2024-01-04 | U13: 16:24:00 | V13: مي سليمان الدخيل | W13: 0.04236111111 | X13: 2024-01-30 | Y13: 17:23:00 | Z13: امال ماهل القحطاني | AA13: 26.04097222 | AB13: 2024-01-30 | AC13: 18:32:00 | AD13: مي سليمان الدخيل | AE13: 0.04791666666 | AF13: 2024-01-30 | AG13: 18:32:00 | AH13: مي سليمان الدخيل | AI13: The complaint was escalated due to the department's failure to respond | AJ13: 26.08888889 | AN13: -45295.68333 | AQ13: -45295.68333 | AU13: -45295.68333 | AV13: 9412 | AW13: MUNEERAH HABAB M AL OTAIBI | AX13: Relationship Complaints | AY13: 5. Communication | AZ13: 5.1.Patient-staff communication | BA13: 5.1.1.Miscommunication with Patient | BB13: اثناء حضورى مع زوجتى حيث انه كان لدينا مراجعه مع الدكتور معد الساعاتى قسم العظام و عند الذهاب لقسم الاستقبال لفتح الملف توجهت للاخت منيره العتيبي و قمت باعطاؤها رقم الملف فطلبت منى الاقامه بالرغم من ان كل البيانات موجوده فى السيستم حيث ان هذه ليست المره الأولى التى ناتى بها إلى المستشفى فجميع بياناتنا موجوده لديكم و صور الإقامات و قالت لى ان لم يعجبك الأمر اذهب و اشتكينى لمدير العيادات و بالرغم من ذلك قمت بإحضار أقامه زوجتى و اعطاؤها لممثله الاستقبال و طلبت منها سرعه إنهاء الإجراءات و لكن فوجئت بانها قالت لى انا مش شغاله عندك ايه الوقاحه دى و رفضت خدمتى و قالت لى انا أسمى منيره العتيبي روح اشتكينى لمدير العيادات و طلبت من زوجتى الحضور و طلبنا منها مره اخرى إنهاء الإجراءات و لكنها رفضت بشده و قالت لنا لن اخدمكم و قالت زوجتى لها سنذهب لتقديم شكوى لمدير العيادات و اثناء التوجه فوجئنا بانها مره اخرى كررت نفس العباره انتم ناس وقحه فعلا و ذهبت بعد ذلك لمدير العيادات لاطلعه بما حدث و قال لى مدير العيادات قم بتقديم الشكوى بشكل رسمى وانه لن يقبل نهائي بما حدث فأنا اعلم ومتأكد ان اداره المستشفى لن تقبل باهانه المرضى . | BC13: While I was with my wife for an appointment with Dr. Mu'ad Al-Sa'ati in the orthopedics department, when we went to the reception to open a file, I approached Ms. Munira Al-Otaibi and gave her the file number. She asked for my residency permit, even though all the information was in the system. This wasn't our first time at the hospital; all our information and copies of our residency permits were already on file. She told me if I didn't like it, I should go and complain to the clinic manager. Despite this, I brought my wife's residency permit and gave it to the receptionist.I asked her to expedite the procedures, but I was shocked when she told me, "I don't work for you! How rude!" She refused to serve me and said, "My name is Munira Al-Otaibi. Go complain to the clinic director." I asked my wife to come over, and we asked her again to finish the procedures, but she refused vehemently and said, "I won't serve you." My wife told her, "We will go and file a complaint with the clinic director."While we were heading there, we were surprised that she repeated the same phrase again: "You are really rude people." I then went to the director of the clinics to inform him of what happened, and the director of the clinics told me to file a formal complaint, and that he would not accept what happened at all. I know and I am sure that the hospital administration will not accept insulting patients. | BE13: Patient | BO13: Employee Name | BP13: Number of complaints | BQ13: Total Percentage | BR13: 24 Hours | BS13: 48 Hours | BT13: 72 Hours | BU13: More than 72 hours | BV13: Total | BY13: 2101 | BZ13: 30307349 | CA13: وزارة الصحة | CB13: العيادات الخارجية | CC13: الإداري | CD13: قسم التقارير الطبية | CE13: 2024-01-22T13:34:00 | CF13: امال ماهل القحطاني | CG13: 24 Hours | CI13: 2089 | CJ13: 30254489 | CK13: مراجع | CL13: العيادات الخارجية | CM13: الطبي | CN13: عيادات النساء والولادة | CO13: 2024-01-18T15:51:00 | CP13: مي سليمان الدخيل | CQ13: More than 72 Hours | CS13: 2083 | CT13: 30309788 | CU13: ذوي المراجع | CV13: العيادات الخارجية | CW13: الطبي | CX13: عيادات الأطفال | CY13: 2024-01-17T18:32:00 | CZ13: مي سليمان الدخيل | DA13: More than 72 Hours
B14: 12 | C14: 2044 | D14: 30178557 | E14: ذوي المراجع | F14: التنويم | G14: الطبي | H14: تنويم النساء والولادة | I14: 2024-01-04T15:57:00 | J14: مي سليمان الدخيل | K14: More than 72 Hours | L14: 2024-01-04 | M14: 15:37:00 | N14: مي سليمان الدخيل | O14: 2024-01-04 | P14: 15:57:00 | Q14: 2024-01-04 | R14: 18:19:00 | S14: مي سليمان الدخيل | T14: 2024-01-04 | U14: 18:24:00 | V14: مي سليمان الدخيل | W14: 0.1020833333 | AA14: -45295.76667 | AE14: 0 | AJ14: -45295.76667 | AN14: -45295.76667 | AO14: 2024-01-07 | AP14: 09:38:00 | AQ14: 2.634722222 | AR14: 2024-01-08 | AS14: 14:03:00 | AT14: مي سليمان الدخيل | AU14: 3.81875 | AV14: 11087 | AW14: Dr MARWA ABDELRAHMAN SALEH HOSNI | AX14: Relationship Complaints | AY14: 6. Humanness / Caring | AZ14: 6.1.Emotional Support | BA14: 6.1.2.Neglect | BB14: جرح الولادة التهب وتم فك القطب والجرح لم يكن ملتئم .. وطلبت المريضة مضاد حيوي بعد الولادة مباشرة ورفضوا اعطائها بشكل قطعي بالرغم من وجود تاريخ مرضي أطلعتهم عليه وبالرغم من شكوى المريضة بشكل مستمر من الم الجرح وكان هناك إهمال من الكادر الطبي بالتنويم كامل وجائت احد الطبيبات وقالت ان القطب ليست جيدة ولم تعمل اي اجراء كما تاخر الحصول على العلاج بعد الولادة ب ٥ ساعات حاليا ذهبت لمستشفى آخر للعلاج عند دكتور موثوق وعلى حسابي الشخصي خارج التامين حيث ذهبنا للطبيبة مروى عدة مرات وكان كلامها بسيطة مع إعطاء ادوية فقط دون اي اجراء طبي فوري لتجنب فتح الجرح والجرح مازال غير ملتئم،، الرجاء اتخاذ اجراء وتعويضنا عن الخطأ الطبي الحاصل. | BC14: The cesarean section wound became infected, the stitches were removed, and the wound was not healing. The patient requested antibiotics immediately after delivery, but they categorically refused to give them to her despite her medical history and her continuous complaints of pain from the wound.There was negligence on the part of the medical staff during my admission. One of the doctors came and said the stitches weren't good and didn't perform any procedure. Treatment was also delayed for five hours after delivery. I've now gone to another hospital for treatment with a trusted doctor, at my own expense and outside of my insurance. We went to Dr. Marwa.Several times, her advice was simple, and she only prescribed medication without any immediate medical intervention to prevent the wound from reopening. The wound is still not healing. Please take action and compensate us for the medical error. | BE14: Patient | BO14: ابرار بندر الشمري | BP14: 4 | BQ14: 0.00% | BR14: 1 | BS14: 0 | BT14: 2 | BU14: 1 | BV14: 4 | BY14: 2105 | BZ14: 30303597 | CA14: وزارة الصحة | CB14: العيادات الخارجية | CC14: التمريض | CD14: تمريض غرفة التطعيمات | CE14: 2024-01-22T17:23:00 | CF14: مي سليمان الدخيل | CG14: 24 Hours | CI14: 2090 | CJ14: 1321129 | CK14: مراجع | CL14: العيادات الخارجية | CM14: الطبي | CN14: قسم المختبر | CO14: 2024-01-19T00:50:00 | CP14: مي سليمان الدخيل | CQ14: 24 Hours | CS14: 2123 | CT14: 30239611 | CU14: ذوي المراجع | CV14: التنويم | CW14: الخدمات المساندة | CX14: قسم النظافة | CY14: 2024-01-27T17:11:00 | CZ14: مي سليمان الدخيل | DA14: 24 Hours
B15: 13 | C15: 2046 | D15: 30071263 | E15: مراجع | F15: العيادات الخارجية | G15: الطبي | H15: عيادات العيون | I15: 2024-01-06T15:26:00 | J15: مي سليمان الدخيل | K15: 48 Hours | L15: 2024-01-06 | M15: 15:19:00 | N15: مي سليمان الدخيل | O15: 2024-01-06 | P15: 15:26:00 | Q15: 2024-01-07 | R15: 14:27:00 | S15: مي سليمان الدخيل | T15: 2024-01-07 | U15: 15:59:00 | V15: مي سليمان الدخيل | W15: 1.022916667 | AA15: -45298.66597 | AE15: 0 | AJ15: -45298.66597 | AN15: -45298.66597 | AO15: 2024-01-08 | AP15: 10:06:00 | AQ15: 0.7548611111 | AR15: 2024-01-09 | AS15: 11:13:00 | AT15: مي سليمان الدخيل | AU15: 1.801388889 | AV15: 11866 | AW15: Dr MOHAMED NADER ABDELHAMID ELSAYED | AX15: Clinical complaints | AY15: 1. Quality | AZ15: 1.4.Treatment | BA15: 1.4.1.Treatment plan issues | BB15: تم ازالة كيس دهني من عيني وقام الدكتور بازالته جراحيا من داخل الجفن مما سبب لي الام لم تتوقف حتى الان وتم تغيير العلاج مرتين دون فائدة. حاليا اتمنى العافية من االله قبل كل شيء وتنبيه الدكتور ان هذا الاجراء غير مناسب ما ضر لو استأصل الكيس خارجيا | BC15: A sebaceous cyst was surgically removed from inside my eyelid by the doctor, causing me persistent pain. The treatment has been changed twice without success. Currently, I pray for recovery above all else, and I hope the doctor will understand that this procedure was inappropriate. Wouldn't it have been better to remove the cyst externally? | BE15: Patient | BO15: امال ماهل القحطاني | BP15: 2 | BQ15: 0.00% | BR15: 2 | BS15: 0 | BT15: 0 | BU15: 0 | BV15: 2 | BY15: 2107 | BZ15: 30301934 | CA15: وزارة الصحة | CB15: العيادات الخارجية | CC15: التمريض | CD15: تمريض غرفة التطعيمات | CE15: 2024-01-23T14:42:00 | CF15: مي سليمان الدخيل | CG15: 24 Hours | CI15: 2104 | CJ15: 30194469 | CK15: مراجع | CL15: التنويم | CM15: الطبي | CN15: قسم عمليات الولادة | CO15: 2024-01-22T17:44:00 | CP15: امال ماهل القحطاني | CQ15: 48 Hours | CS15: 2142 | CT15: 30239611 | CU15: ذوي المراجع | CV15: التنويم | CW15: التمريض | CX15: تمريض تنويم النساء والولادة | CY15: 2024-01-30T13:28:00 | CZ15: ابرار بندر الشمري | DA15: More than 72 Hours
B16: 14 | C16: 2047 | D16: 30237906 | E16: مراجع | F16: العيادات الخارجية | G16: الطبي | H16: قسم المختبر | I16: 2024-01-06T18:48:00 | J16: مي سليمان الدخيل | K16: 48 Hours | L16: 2024-01-06 | M16: 15:24:00 | N16: مي سليمان الدخيل | O16: 2024-01-06 | P16: 18:48:00 | Q16: 2024-01-07 | R16: 15:07:00 | S16: مي سليمان الدخيل | T16: 2024-01-07 | U16: 16:01:00 | V16: مي سليمان الدخيل | W16: 0.8840277778 | X16: 2024-01-08 | Y16: 13:44:00 | Z16: ابرار بندر الشمري | AA16: 0.9048611111 | AE16: -45299.57222 | AJ16: -45298.66736 | AK16: 2024-01-09 | AL16: 11:35:00 | AM16: مي سليمان الدخيل | AN16: 1.815277778 | AO16: 2024-01-07 | AP16: 21:22:00 | AQ16: 0.2229166667 | AU16: -45298.66736 | AX16: Relationship Complaints | AY16: 5. Communication | AZ16: 5.1.Patient-staff communication | BA16: 5.1.1.Miscommunication with Patient | BB16: احترام المريض و عدم الطلب منه فتح علبة البول المطلوب للتحليل و الاكتفاء بوضع العينة ف مكانها المخصص و إعطاء تعليمات للمتخصصين بتقدير و احترام المراجع و عدم الطلب منه فتح العينة للتأكد من اسم الشخص حيث لا بد من اظهار الاحترام لكبار السن. حاليا اطالب برد اعتبار معنوي من ادارة المختبر ع سوء التعامل لديهم و تحسين التعامل مع المرضى في المختبر. | BC16: Respecting the patient and not asking them to open the urine collection container for analysis, but simply placing the sample in its designated place, is essential. Furthermore, instructing staff to treat patients with respect and not ask them to open the sample to verify their name is crucial, especially for the elderly. I am currently demanding a formal apology from the laboratory administration for their poor treatment of patients and an improvement in patient care. | BE16: Hospital | BO16: مي سليمان الدخيل | BP16: 2 | BQ16: 100.00% | BR16: 1 | BS16: 1 | BT16: 0 | BU16: 0 | BV16: 2 | BY16: 2118 | BZ16: 1730272 | CA16: وزارة الصحة | CB16: العيادات الخارجية | CC16: الإداري | CD16: استقبال العيادات الخارجية | CE16: 2024-01-25T09:37:00 | CF16: امال ماهل القحطاني | CG16: 24 Hours | CI16: 2110 | CJ16: 30259928 | CK16: مراجع | CL16: العيادات الخارجية | CM16: الطبي | CN16: قسم المختبر | CO16: 2024-01-23T20:00:00 | CP16: مي سليمان الدخيل | CQ16: More than 72 Hours | CS16: 2143 | CT16: 30239611 | CU16: ذوي المراجع | CV16: التنويم | CW16: التمريض | CX16: عيادات جراحة العيون | CY16: 2024-01-30T13:44:00 | CZ16: ابرار بندر الشمري | DA16: 24 Hours
B17: 15 | C17: 2049 | D17: 1106561812 | E17: مراجع | F17: العيادات الخارجية | G17: الطبي | H17: بنك الدم | I17: 2024-01-06T18:48:00 | J17: مي سليمان الدخيل | K17: More than 72 Hours | L17: 2024-01-06 | M17: 18:40:00 | N17: مي سليمان الدخيل | O17: 2024-01-06 | P17: 18:48:00 | Q17: 2024-01-07 | R17: 15:27:00 | S17: مي سليمان الدخيل | T17: 2024-01-07 | U17: 15:32:00 | V17: مي سليمان الدخيل | W17: 0.8638888889 | X17: 2024-01-09 | Y17: 11:09:00 | Z17: مي سليمان الدخيل | AA17: 1.817361111 | AE17: -45300.46458 | AJ17: -45298.64722 | AN17: -45298.64722 | AO17: 2024-01-10 | AP17: 12:03:00 | AQ17: 2.854861111 | AR17: 2024-01-11 | AS17: 19:13:00 | AT17: مي سليمان الدخيل | AU17: 4.153472222 | AV17: 3930 | AW17: WALEED ABDALRAHMAN AHMED MOHAMMED | AX17: Clinical complaints | AY17: 6. Humanness / Caring | AZ17: 1.3.Quality of Care | BA17: 1.3.1.Substandard clinical/nursing care | BB17: تبرع دم وقام الممرض ضرب ابره بالعصب بالغلط | BC17: He donated blood and the nurse accidentally injected a nerve with a needle. | BE17: Patient | BO17: Total | BP17: 8 | BQ17: 100.00% | BR17: 4 | BS17: 1 | BT17: 2 | BU17: 1 | BV17: 8 | BY17: 2121 | BZ17: 30207627 | CA17: وزارة الصحة | CB17: العيادات الخارجية | CC17: الإداري | CD17: قسم التقارير الطبية | CE17: 2024-01-27T15:33:00 | CF17: ابرار بندر الشمري | CG17: More than 72 Hours | CI17: 2116 | CJ17: 20265882 | CK17: مراجع | CL17: التنويم | CM17: الطبي | CN17: قسم عمليات الولادة | CO17: 2024-01-25T08:53:00 | CP17: مي سليمان الدخيل | CQ17: More than 72 Hours
B18: 1`6 | C18: 2050 | D18: 30308162 | E18: ذوي المراجع | F18: التنويم | G18: الطبي | H18: تنويم الأطفال | I18: 2024-01-06T19:44:00 | J18: مي سليمان الدخيل | K18: 24 Hours | L18: 2024-01-06 | M18: 19:39:00 | N18: مي سليمان الدخيل | O18: 2024-01-06 | P18: 19:44:00 | Q18: 2024-01-07 | R18: 14:45:00 | S18: مي سليمان الدخيل | T18: 2024-01-07 | U18: 17:55:00 | V18: ابرار بندر الشمري | W18: 0.9243055556 | AA18: -45298.74653 | AE18: 0 | AJ18: -45298.74653 | AN18: -45298.74653 | AQ18: -45298.74653 | AR18: 2024-01-08 | AS18: 14:51:00 | AT18: مي سليمان الدخيل | AU18: 0.8722222222 | AV18: 4918 | AW18: Dr NIBAL RADWAN OKLEH SHAWAKFAH | AX18: Clinical complaints | AY18: 6. Humanness / Caring | AZ18: 1.3.Quality of Care | BA18: 3.1.4.Required Service not obtained | BB18: بعد الولادة لم يتم شرح اي تعليمات ولم يقوم الدكتور باخذ الوزن ولا مقاس محيط الراس للطفل واخبروني بالحضور الى العيادة يوم السبت مساء وعندالحضور جلست في الانتظار ساعة و نصف، وايضا كانت تجربة سيئة لي مع الخدمة بالحضانة حيث لم يعطي الدكتور اي تعليمات وبعد عمل الفحوصات طلبو مني تحليل سكرالطفل دون اخباري بالنتيجة. | BC18: After the birth, no instructions were given, and the doctor did not take the baby's weight or head circumference. They told me to come to the clinic on Saturday evening, and when I arrived, I sat waiting for an hour and a half. Also, I had a bad experience with the nursery service, as the doctor did not give any instructions. After doing the tests, they asked me to have the baby's sugar tested without telling me the result. | BE18: Patient | BY18: 2122 | BZ18: 30110473 | CA18: وزارة الصحة | CB18: الطوارئ | CC18: الإداري | CD18: استقبال الطوارئ | CE18: 2024-01-27T15:46:00 | CF18: ابرار بندر الشمري | CG18: More than 72 Hours | CI18: 2134 | CJ18: 30075758 | CK18: مراجع | CL18: العيادات الخارجية | CM18: الطبي | CN18: عيادات جراحة الأنف وأذن وحنجرة | CO18: 2024-01-28T23:20:00 | CP18: ابرار بندر الشمري | CQ18: 48 Hours
B19: 17 | C19: 2051 | D19: 30074927 | E19: مراجع | F19: العيادات الخارجية | G19: الطبي | H19: عيادات النساء والولادة | I19: 2024-01-06T21:21:00 | J19: مي سليمان الدخيل | K19: More than 72 Hours | L19: 2024-01-06 | M19: 21:21:00 | N19: مي سليمان الدخيل | O19: 2024-01-06 | P19: 21:21:00 | Q19: 2024-01-07 | R19: 15:15:00 | S19: مي سليمان الدخيل | T19: 2024-01-07 | U19: 19:26:00 | V19: مي سليمان الدخيل | W19: 0.9201388889 | X19: 2024-01-09 | Y19: 11:10:00 | Z19: مي سليمان الدخيل | AA19: 1.655555556 | AB19: 2024-01-11 | AC19: 18:31:00 | AD19: مي سليمان الدخيل | AE19: 2.30625 | AF19: 2024-01-17 | AG19: 15:16:00 | AH19: مي سليمان الدخيل | AI19: The complaint was escalated due to the department's failure to respond | AJ19: =(AG19+AF19)-(U19+T19) -> 9.826388889 | AN19: -45298.80972 | AO19: 2024-01-23 | AP19: 22:54:00 | AQ19: 16.14444444 | AR19: 2024-06-26 | AS19: 11:10:00 | AT19: مي سليمان الدخيل | AU19: 170.6555556 | AV19: 15608 | AW19: Dr ELHAM EBRAHIM AHMED MANSOUR | AX19: Clinical complaints | AY19: 5. Communication | AZ19: 5.1.Patient-staff communication | BA19: 5.1.1.Miscommunication with Patient | BB19: كان موعدي ساعه 6:50 م وانتظرت حتى ساعه 9 حتى تم دخولي على العيادة وعند السؤال عن سبب التأخير تمت الإجابة انه النظام متعطل ما دام النظام متعطل لماذا لم يتم اخباري حيث ليس من المنطق ان انتظر لمدة ساعتين وعند مراجعة ادارة العيادات والاستقبال تم اخباري عدم وجود عطل كما أنا اسلوب الدكتورة لم يكن مناسب حيث تم الرد علي إذا مش عاجبك لا ترجعي علي وروحي على عيادة ثانيه! | BC19: My appointment was at 6:50 PM, and I waited until 9:00 PM before finally being seen at the clinic. When I inquired about the delay, I was told the system was down. If the system was down, why wasn't I informed? It's illogical to wait two hours. Upon contacting the clinic administration and reception, I was told there was no problem. Furthermore, the doctor's attitude was unacceptable; she told me, "If you don't like it, don't come back and go to another clinic!" | BE19: Patient | BO19: CCHI | BP19: 8 | BQ19: =BP19/BP41 -> 12.31% | BY19: 2126 | BZ19: 30299442 | CA19: وزارة الصحة | CB19: العيادات الخارجية | CC19: الطبي | CD19: عيادات الأسنان | CE19: 2024-01-28T14:40:00 | CF19: مي سليمان الدخيل | CG19: 24 Hours | CI19: 2153 | CJ19: 1842668 | CK19: مراجع | CL19: العيادات الخارجية | CM19: الإداري | CN19: قسم الموافقات الطبية | CO19: 2024-01-31T20:34:00 | CP19: مي سليمان الدخيل | CQ19: 48 Hours
B20: 18 | C20: 2052 | D20: 30308251 | E20: مراجع | F20: العيادات الخارجية | G20: الطبي | H20: قسم المختبر | I20: 2024-01-07T17:00:00 | J20: ابرار بندر الشمري | K20: 24 Hours | L20: 2024-01-07 | M20: 17:00:00 | N20: ابرار بندر الشمري | O20: 2024-01-07 | P20: 17:00:00 | T20: 2024-01-07 | U20: 17:04:00 | V20: ابرار بندر الشمري | W20: 0.002777777772 | AA20: -45298.71111 | AE20: 0 | AJ20: -45298.71111 | AK20: 2024-01-07 | AL20: 17:42:00 | AM20: ابرار بندر الشمري | AN20: 0.02638888889 | AO20: 2024-01-07 | AP20: 17:25:00 | AQ20: 0.01458333334 | AU20: -45298.71111 | AX20: Clinical complaints | AY20: 6. Humanness / Caring | AZ20: 3.Delays | BA20: 4.3.5.Delayed test result | BB20: تاخير في تسليم نتائج التحاليل | BC20: Delay test results | BE20: Patient | BY20: 2127 | BZ20: 1411694 | CA20: وزارة الصحة | CB20: العيادات الخارجية | CC20: الإداري | CD20: استقبال العيادات الخارجية | CE20: 2024-01-28T15:46:00 | CF20: مي سليمان الدخيل | CG20: More than 72 Hours | CS20: Employee Name | CT20: Number of complaints | CU20: Total Percentage | CV20: 24 Hours | CW20: 48 Hours | CX20: 72 Hours | CY20: More than 72 hours | CZ20: Total
B21: 19 | C21: 2053 | D21: 30308251 | E21: وزارة الصحة | F21: العيادات الخارجية | G21: الطبي | H21: قسم المختبر | I21: 2024-01-07T17:42:00 | J21: ابرار بندر الشمري | K21: 24 Hours | L21: 2024-01-07 | M21: 17:42:00 | N21: ابرار بندر الشمري | O21: 2024-01-07 | P21: 17:42:00 | T21: 2024-01-07 | U21: 17:45:00 | V21: ابرار بندر الشمري | W21: 0.002083333333 | AA21: -45298.73958 | AE21: 0 | AJ21: -45298.73958 | AN21: -45298.73958 | AO21: 2024-01-07 | AP21: 17:57:00 | AQ21: 0.008333333331 | AR21: 2024-01-08 | AS21: 11:36:00 | AT21: ابرار بندر الشمري | AU21: 0.74375 | AX21: Clinical complaints | AY21: 6. Humanness / Caring | AZ21: 3.Delays | BA21: 4.3.5.Delayed test result | BB21: تاخير في تسليم نتائج التحاليل | BC21: Delay test results | BE21: Patient | BO21: 24 Hours | BP21: 48 Hours | BQ21: 72 Hours | BR21: More than 72 hours | BY21: 2128 | BZ21: 30308109 | CA21: وزارة الصحة | CB21: العيادات الخارجية | CC21: الطبي | CD21: قسم الصيدلية | CE21: 2024-01-28T16:01:00 | CF21: مي سليمان الدخيل | CG21: More than 72 Hours | CS21: ابرار بندر الشمري | CT21: 3 | CU21: =CT21/CT24 -> 20.00% | CV21: 1 | CW21: 0 | CX21: 0 | CY21: 2 | CZ21: 3
A22: 2 | B22: 20 | C22: 2055 | D22: 30118804 | E22: ذوي المراجع | F22: العيادات الخارجية | G22: الطبي | H22: عيادات الأطفال | I22: 2024-01-08T12:26:00 | J22: مي سليمان الدخيل | K22: More than 72 Hours | L22: 2024-01-07 | M22: 20:53:00 | N22: مي سليمان الدخيل | O22: 2024-01-08 | P22: 12:26:00 | Q22: 2024-01-08 | R22: 15:04:00 | S22: مي سليمان الدخيل | T22: 2024-01-08 | U22: 15:06:00 | V22: مي سليمان الدخيل | W22: 0.1111111111 | X22: 2024-01-11 | Y22: 19:13:00 | Z22: مي سليمان الدخيل | AA22: 3.171527778 | AE22: -45302.80069 | AJ22: -45299.62917 | AN22: -45299.62917 | AO22: 2024-01-11 | AP22: 18:38:00 | AQ22: 3.147222222 | AR22: 2024-01-11 | AS22: 19:17:00 | AT22: مي سليمان الدخيل | AU22: 3.174305556 | AW22: DR. ABDULLAH ALSHAMRANI | AX22: Clinical complaints | AY22: 1. Quality | AZ22: .3.Skills and Conduct | BA22: 6.2.1.Inappropriate/aggressive behavior | BB22: السلام عليكم ورحمة االله اتقدم بشكوى بخصوص موعد باسم ابني زامل الزامل هوية رقم 1187623556 تاريخ ١٤٣٩/٠٨/١٢ حيث أن الواقعة المشتكى بشأنها حدثت في يوم الأحد مساءاً بتاريخ (٢٠٢٤/٠١/٠٧) في قسم الأطفال بمستشفى الحمادي النزهة ضد الطبيب عبداالله الشمراني. وذلك للاسباب الاتية: -موعد ابني زامل مع الطبيب المشار اليه أعلاه في الساعة ٧:٤٠ وقد حظرنا في الموعد تماماً وذلك بموجب الفاتورة المرفقة ومع ذلك فقد كلفني الأمر انتظار الطبيب لمدة عشرين دقيقة ومن ثم فوجئت برفض الطبيب استقبال ابني رغم انتظارنا له بحجة التأخير خمس دقائق في صدور الفاتورة علماً انه الوقت المستغرق من موظفي الاستقبال في إدخال البيانات. -عند محاولتي لاقناع الطبيب انسانياً لفحص ابني وشرحي له كأم عن حالة ابني الحرجه وعدم قدرة ابني على التنفس بشكل طبيعي واني قد قطعت طريق ساعه كاملة للوصول إليه وبدل من أن يباشر حالة ابني واعطاءه حقه النظامي، قام بطردي من العياده بأعلى صوت! وطلب من الموظفين بإبعادي عن المستشفى! وارجاع قيمة الكشفية المدفوعة! -بالاضافة الى كل الاهانات السابقه قد شتمني الدكتور وشهر بي بشكل علني وبدون مبرر بأبشع العبارات بأعلى صوت وأمام جميع المراجعين والموظفين وقال بنص العباره :(ما ادري كيف متزوجه االله يعين زوجك عليك) الأمر الذي يعتبر جريمة يعاقب عليها النظام لتوافر ركن التشهير بواقعة السب والشتم والمساس بكرامة المراجعين بشكل علني والذي يترتب عليه حق خاص وحق عام بموجب الانظمة المرعية. -شهد على هذا الحدث جميع المراجعين والموظفين الموجودين في استقبال قسم الاطفال يوم الأحد مساءاً بتاريخ (٢٠٢٤/٠١/٠٧) بالاضافة الى ان مساعدة مكتب مدير المستشفى قد تقدمت إلي وعرفت بنفسها وطلبت شرح الواقعه وشرحت لها ماحدث بالتفصيل وزودتني برقم تواصل ٨٦٧٥ ٠٢٥ ٠٥٣ ولكن للاسف لم يتم تقديم أي اعتذار ولا اي طبيب بديل بشكل مباشر بل وكأن شيء لم يكن وذلك مع وصول العلم بالواقعه، فقد انتظرت للطبيب البديل الطبيبه (إكرام) لأكثر من ساعه إضافية ليكون مجموع الوقت للانتهاء من تلقي الرعاية الصحية يصل الى ساعتين !!! وعليه وبناءً على ماسبق من سب وشتم وتشهير وإهانه صادرة من الدكتور عبداالله الشمراني تجاهي وتجاه إبني والتقليل من شأني ومس كرامتي والاستهتار بحالة ابني الصحية وإرهاب الاطفال بالصوت العالي أطالب بحقي الخاص برد إعتبار وتعويض عن الأذى الذي لحقني ولحق ابني جراء تصرف هذا الطبيب وعدم إلتزامه بالانظمة واللوائح المنظمة للعمل الصحي بل وعدم إلتزامه بأخلاقيات المهنه ومبادئ الدين الاسلامي الحنيف والذوق العام والتي لايقتصر أثرها على الطبيب والمراجع وحسب بل على سمعة المنشأة الصحية وثقة المراجعين والمسؤولين بها. حيث أن ماقام به الطبيب المذكور أعلاه مخالفة صريحة لنظام مزاولة المهن الصحية الصادر بالمرسوم الملكي رقم (م٥٩/) وتاريخ (١٤٢٦/١١/٤) ولائحته التنفيذية وبالتحديد في المادة الخامسة من النظام ومن الفقرة (٥-١) من اللائحة التنفيذية حيث تضمنت الاتي: (على الممارس الصحي إحترام حقوق المرضى وذويهم وفقاً للمبادئ الشرعية والمعايير الطبية المعتمده وجميع مايرد من تعليمات من الوزارة والجهات المختصه حيال ذلك). وحيث ان النظام قد أوضح المسؤولية الجزائية المترتبة على مخالفة النظام ولائحته التنفيذية بالفقرة (٦) من المادة (٢٨) من النظام المشار إليه أعلاه والمتعلقة بالمسؤولية الجزائية التي تقع على الممارس الصحي والتي تضمنت الآتي: (مع عدم الإخلال بأي عقوبة أشد منصوص عليها في أنظمة أخرى يعاقب بالسجن مدة لاتتجاوز ستة أشهر وبغرامة لاتزيد عن مائة ألف ريال أو بإحدى هاتين العقوبتين كل من : -٦ إمتنع عن علاج مريض دون سبب مقبول. بالاضافة الى ان النظام قد أوضح المسؤولية التأديبية في المادة (٣١) حيث نصت على الاتي: (مع عدم الاخلال بأحكام المسؤولية الجزائية أو المدنية إذا أخل بأحد واجباته المنصوص عليها في هذا النظام أو خالف أصول مهنته أو كان في تصرفه مايعد خروجاً على مقتضيات مهنته وآدابها). كما اني أنوه انه في حال عدم اتخاذ الاجراءات النظامية اللازمة في مواجهة الطبيب عبداالله الشمراني ورد حقي الخاص وتعويضي عن الأذى الذي لحقني سيتم تقديم بلاغ رسمي للسلطات المختصة للسير في اجراءات الدعوى بشكل رسمي. حيث أطالب حاليا بحقي وبرد إعتبار عن طريق إعتذار الطبيب لي بشكل علني كما أهانني بشكل علني. بالاضافة الى طلب تعويض مالي عن الأذى الذي لحقني ولحق ابني جراء تصرف هذا الطبيب وعدم إلتزامه بالانظمة واللوائح المنظمة لمزاولة المهن الصحية بالاضافة الى طلب تعويض المستشفى لي عن تضييع وقتي المتسبب به ادارة المستشفى عن طريق اتباعهم لموقف سلبي بعدم معالجة المشكلة بعد علمهم بحدوثها مماترتب عليه تضييع وقتي لساعتين متتاليات للانتهاء من تلقي الخدمه المطلوبه. | BC22: Peace, mercy, and blessings of God be upon you. I am submitting a complaint regarding an appointment for my son, Zamil Al-Zamil, ID number 1187623556, dated 12/08/1439 AH (corresponding to 2018/08/2019). The incident in question occurred on Sunday evening, 07/01/2024 (corresponding to 2024/01/07), in the pediatric department of Al-Hammadi Hospital in Al-Nuzha, against Dr. Abdullah Al-Shamrani. The reasons for this complaint are as follows: My son Zamil's appointment with the aforementioned doctor was at 7:40 PM, and we arrived precisely on time, as evidenced by the attached invoice.However, it cost me a twenty-minute wait for the doctor, and then I was surprised when he refused to see my son, despite our waiting, claiming a five-minute delay in the billing process, even though that was the time the reception staff took to enter the data. When I tried to persuade the doctor to examine my son, explaining his critical condition as a mother, he refused.My son was unable to breathe normally, and I had traveled for a full hour to reach him. Instead of attending to my son's condition and providing him with his due care, he shouted at me and expelled me from the clinic! He ordered the staff to remove me from the hospital and return the consultation fee I had paid! In addition to all the previous insults, the doctor publicly and without justification insulted and defamed me with the most vile language, shouting at the top of his lungs in front of all the patients and staff.He said, verbatim: "I don't know how you got married. God help your husband with you." This constitutes a crime punishable by law, as it involves defamation through verbal abuse and insults, publicly violating the dignity of patients. This entails both private and public rights under applicable regulations. All patients and staff present in the pediatric department reception on Sunday evening, January 7, 2024, witnessed this incident. Furthermore, the assistant to the hospital director approached me, identified herself, and requested an explanation of the incident. I explained what happened in detail, and she provided me with a contact number: 053 025 8675. Unfortunately, no apology has been offered.Nor did any substitute doctor attend directly, as if nothing had happened, even after the incident was reported. I waited for the substitute doctor, Dr. Ikram, for more than an additional hour, bringing the total time for receiving medical care to two hours! Therefore, based on the aforementioned insults, slander, defamation, and abuse directed at me and my son by Dr. Abdullah Al-Shamrani, belittling me, violating my dignity, disregarding my son's health condition, and terrorizing the children with his loud voice, I demand my right to redress and compensation for the harm inflicted upon me and my son as a result of this doctor's behavior and his failure to adhere to regulations.The regulations governing healthcare practice, and the doctor's failure to adhere to professional ethics, the principles of Islam, and public decency, have repercussions not only for the doctor and the patient but also for the reputation of the healthcare facility and the trust placed in it by patients and administrators. The actions of the aforementioned doctor constitute a clear violation of the Healthcare Professions Practice Law issued by Royal Decree No. (M59/) dated (1426/11/4) and its implementing regulations, specifically Article Five of the Law and Paragraph (5-1) of the implementing regulations, which stipulate the following:(The healthcare practitioner must respect the rights of patients and their families in accordance with Sharia principles, approved medical standards, and all instructions issued by the Ministry and relevant authorities in this regard). Furthermore, the system has clarified the criminal liability resulting from violations of the system and its implementing regulations in paragraph (6) of Article (28) of the aforementioned system, which pertains to the criminal liability of the healthcare practitioner and includes the following: (Without prejudice to any more severe penalty stipulated in other regulations, the penalty shall be imprisonment for a period not exceeding six months and a fine not exceeding one hundred thousand riyals, or one of these two penalties).Each of the following: -6. Refused to treat a patient without a valid reason. Furthermore, the regulations have clarified disciplinary responsibility in Article (31), which stipulates the following: (Without prejudice to the provisions of criminal or civil liability, if he breaches any of the duties stipulated in these regulations, violates the principles of his profession, or his conduct constitutes a departure from the requirements and ethics of his profession). I also note that in the event that the necessary legal procedures are not taken against Dr. Abdullah Al-Shamrani, and my private rights are not restored and I am not compensated for the harm I have suffered, an official report will be submitted to the competent authorities to proceed with the legal action officially I am currently demanding my rights and redress through a public apology from the doctor, who publicly insulted me. In addition, I am seeking financial compensation for the harm inflicted upon me and my son as a result of this doctor's actions and his failure to adhere to the regulations governing the practice of healthcare professions. Furthermore, I am requesting compensation from the hospital for the time wasted due to the hospital administration's inaction after becoming aware of the problem, which resulted in me losing two consecutive hours to receive the required service. | BE22: Patient | BO22: 4 | BP22: 1 | BQ22: 2 | BR22: 1 | BY22: 2130 | BZ22: 30098711 | CA22: وزارة الصحة | CB22: العيادات الخارجية | CC22: الطبي | CD22: عيادات الجهاز الهضمي والمناظير | CE22: 2024-01-28T18:22:00 | CF22: ابرار بندر الشمري | CG22: 24 Hours | CS22: امال ماهل القحطاني | CT22: 2 | CU22: =CT22/CT24 -> 13.33% | CV22: 0 | CW22: 0 | CX22: 0 | CY22: 2 | CZ22: 2
B23: 21 | C23: 2057 | D23: 1457498 | E23: مجلس الضمان الصحي | F23: الطوارئ | G23: الإداري | H23: المدير المناوب | I23: 2024-01-08T11:48:00 | J23: ابرار بندر الشمري | K23: 72 Hours | L23: 2024-01-08 | M23: 11:48:00 | N23: ابرار بندر الشمري | O23: 2024-01-08 | P23: 11:48:00 | T23: 2024-01-08 | U23: 11:59:00 | V23: ابرار بندر الشمري | W23: 0.007638888885 | X23: 2024-01-09 | Y23: 17:52:00 | Z23: مي سليمان الدخيل | AA23: 1.245138889 | AE23: -45300.74444 | AJ23: -45299.49931 | AN23: -45299.49931 | AO23: 2024-01-09 | AP23: 21:41:00 | AQ23: 1.404166667 | AR23: 2024-01-10 | AS23: 15:36:00 | AT23: مي سليمان الدخيل | AU23: 2.150694444 | AX23: Clinical complaints | AY23: 1. Quality | AZ23: 3.1.Administrative Policies and Procedures | BA23: 3.1.4.Required Service not obtained | BB23: اسم المريض: ابني عبدالله فادي دبورة – وثيقة تأمين برقم حدود (4832141362)أفيدكم أنه بتاريخ 29-12-2023م الجمعة الساعة 04:34 صباحا راجعت مستشفى الحمادي– فرع النزهة بسبب شكوى طفلي الصغير (عمره 09 سنوات) يشتكي من حرارة وقيئ واسهال وبعد اجراء الفحوصات أفادو أنه التهاب بكتيري واعطوني العلاج ولكن في المساء زاد الوضع سوءا فرجعت لهم مرة اخرى نفس اليوم الساعة 09:00 مساء وأجرو له الفحوصات مرة اخري وأفادو أنه التهاب بالزائدة الدودية ويحتاج الى عملية جراحية – الى هنا لا توجد مشكلة – لكن المشكلة أنهم قالو أن شركة التأمين لم توافق على الطلب المرسل لهم لاجراء الجراحة فاتصلت على شركة التأمين قالو مستشفي الحمادي لم ترسل شئ لكي نوافق عليه راجعت مدير الطواري بالمستشفي قال لي المشكلة عند نفيس اتصلت بنفيس قالو ليس لنا دخل ولم نعطل شيء رجعت له قال لي المشكلة عند الضمان الصحي واتصلت بهم قالو ليس لنا دخل في رفض طلبهم من شركة التأمين قلت لهم أعطوني الطلب الذي رفعتموه لاجراء الجراحة لارسله لشركة التأمين كي يوافقو ولكنهم لم يعطوني شيء ثم قال لي مدير الطوارئ اذا تريد ادخاله العمليات ادفع مبلغ ضمان 4500 ريال فدفعت لانقاذ ابني ولكنهم تركوه بقسم الطوارئ الى الساعة 10:00 صباحا وأفاد مدير الطوارئ أنه بامكاني ادخال الطفل العمليات ولكن بشرط أن أوقع على اقرار بتحمل رسوم العملية بالكامل ثم حولوه لغرفة التنويم وتركوه الى الساعة 07:00 مساء دون اتخاذ اي اجراء وعندها اضطرت الي اخراج ابني من المستشفي على مسؤوليتي وتوجهت به مباشرة الي المستشفي التخصصي الطبي وأفادو أن الالتهاب بالزائدة الدودية بدء بمرحلة الرشح وعلى وشك الانفجار وللعلم أنه لم يقابلهم أي مشاكل مع التأمين أو الضمان الصحي أو نفيس كما زعمت مستشفى الحمادي - وتم اجراء العملية بالمستشفي التخصصي والحمد لله.لذا ارجو من سعادتكم التحقيق بالأمر ومعاقبة المقصرين فأنا لا أعلم حتى الأن لماذا لم يرسلو الطلب لشركة التأمين ولماذا طلبو مني دفع هذه المبالغ ودفع تكاليف العملية الجراحية والطفل لديه تأمين صحي فئة (A) حيث أن هذا التصرف فيه اهمال وعدم مسؤولية وتهاون بأرواح المرضى خاصة أن الالتهاب قد وصل الي مرحلة متقدمة وقد تعرضت حياة ابني للخطر | BC23: Patient's Name: My son, Abdullah Fadi Daboura – Insurance Policy No. (4832141362). I would like to inform you that on Friday, December 29, 2023, at 4:34 AM, I took my young son (9 years old) to Al-Hammadi Hospital – Al-Nuzha Branch, because he was complaining of fever, vomiting, and diarrhea. After conducting tests, they diagnosed him with a bacterial infection and gave me medication. However, in the evening, his condition worsened, so I returned to them again the same day at 9:00 PM. They conducted tests again and diagnosed him with appendicitis, requiring surgery. Up to this point, there is no problem. The problem is that they said the insurance company hadn't approved the request they sent for the surgery. I contacted the insurance company, and they said Al Hammadi Hospital hadn't sent anything for them to approve. I went to the hospital's emergency room manager, and he told me the problem was with Nafis. I contacted Nafis, and they said it wasn't their fault and they hadn't delayed anything. I went back to him, and he told me the problem was with the health insurance company. I contacted them, and they said it wasn't their fault that the insurance company had rejected their request. I told them to give me the request they had submitted for the surgery so I could send it to the insurance company. They agreed, but they didn't give me anything. Then the emergency room manager told me that if I wanted him admitted to surgery, I had to pay a 4500 riyal deposit. I paid it to save my son, but they left him in the emergency room until 10:00 AM. The emergency room manager said I could have the child admitted to surgery, but only if I signed a waiver agreeing to cover all the surgery fees. Then they moved him to a ward and left him there until 7:00 PM without taking any action. At that point, I was forced to take my son out of the hospital against medical advice. I took him directly to the Specialized Medical Hospital, where they reported that his appendicitis had started as a cold and was about to rupture. It's worth noting that they hadn't encountered any problems with insurance, health insurance, or Nafis, contrary to what Al-Hammadi Hospital claimed. The surgery was performed at the Specialized Hospital, and thank God, it was successful. Therefore, I request that you investigate this matter and hold those responsible accountable. I still don't understand why they didn't forward the request to the insurance company and why they asked me to pay these amounts and cover the surgery costs when my child has Category A health insurance. This behavior demonstrates negligence, irresponsibility, and a disregard for patients' lives, especially since the inflammation had reached an advanced stage and my son's life was in danger. | BE23: Patient | BO23: =BO22/BP19 -> 50.00% | BP23: =BP22/BP19 -> 12.50% | BQ23: =BQ22/BP19 -> 25.00% | BR23: =BR22/BP19 -> 12.50% | BY23: 2137 | BZ23: 30293609 | CA23: وزارة الصحة | CB23: العيادات الخارجية | CC23: التمريض | CD23: تمريض غرفة التطعيمات | CE23: 2024-01-28T20:48:00 | CF23: مي سليمان الدخيل | CG23: 24 Hours | CI23: Employee Name | CJ23: Number of complaints | CK23: Total Percentage | CL23: 24 Hours | CM23: 48 Hours | CN23: 72 Hours | CO23: More than 72 hours | CP23: Total | CS23: مي سليمان الدخيل | CT23: 10 | CU23: =CT23/CT24 -> 66.67% | CV23: 4 | CW23: 1 | CX23: 1 | CY23: 4 | CZ23: 10
B24: 22 | C24: 2058 | D24: 30228047 | E24: ذوي المراجع | F24: التنويم | G24: الطبي | H24: تنويم الأطفال | I24: 2024-01-08T19:10:00 | J24: مي سليمان الدخيل | K24: 72 Hours | L24: 2024-01-08 | M24: 18:52:00 | N24: مي سليمان الدخيل | O24: 2024-01-08 | P24: 19:10:00 | Q24: 2024-01-09 | R24: 10:36:00 | S24: مي سليمان الدخيل | T24: 2024-01-09 | U24: 11:05:00 | V24: مي سليمان الدخيل | W24: 0.6631944444 | AA24: -45300.46181 | AE24: 0 | AJ24: -45300.46181 | AN24: -45300.46181 | AO24: 2024-01-10 | AP24: 20:31:00 | AQ24: 1.393055556 | AR24: 2024-01-11 | AS24: 18:29:00 | AT24: مي سليمان الدخيل | AU24: 2.308333333 | AV24: 13667 | AW24: Dr IKRAM RABEH AYED | AX24: Clinical complaints | AY24: 5. Communication | AZ24: .3.Skills and Conduct | BA24: 1.2.1.Miscoordination | BB24: في صباح يوم 8 January اخبرتنا الدكتوره بالقيام بتحاليل وبعدها نذهب للمنزل, بعد القيام بالتحليل وظهور نتيجة تحليل واحده اخبرتنا ان ننتظر ساعتان للتحاليل الاخرى لكي نستطيع الخروج من المستشفى وفور صدور النتايج ستأتي، اصبحت الساعه ٧ مساءً ونحن لازلنا ننتظرها، وعندها سالنا الممرضه اين الدكتوره فأخبرتها بانها خرجت وانتهى دوامها! وعندما بحثنا عن طبيب اخر اخبرنا بانها كتبت خطتكم العلاجية وذهبت!! لماذا تخرج ولم تخبرنا بشيء ونحن ننتظرها (رغم انها اخبرتنا من الصباح بانها ستأتي الينا لتطلعنا على النتائج) | BC24: On the morning of January 8th, the doctor told us to get some tests done and then go home. After the tests were done and one result came back, she told us to wait two hours for the other tests so we could leave the hospital. She said the results would come as soon as they were available. It was 7 PM and we were still waiting. We asked the nurse where the doctor was, and she told us she had left and her shift was over! When we looked for another doctor, he told us she had written our treatment plan and left! Why did she leave without telling us anything while we waited (even though she had told us that morning she would come to give us the results)? | BE24: Patient | BY24: 2149 | BZ24: 30302944 | CA24: وزارة الصحة | CB24: العيادات الخارجية | CC24: التمريض | CD24: تمريض غرفة التطعيمات | CE24: 2024-01-31T13:56:00 | CF24: ابرار بندر الشمري | CG24: 24 Hours | CI24: ابرار بندر الشمري | CJ24: 1 | CK24: =CJ24/CJ27 -> 5.56% | CL24: 1 | CM24: 1 | CN24: 0 | CO24: 0 | CP24: 1 | CS24: Total | CT24: =CT21+CT22+CT23 -> 15 | CU24: 100.00% | CV24: 5 | CW24: 1 | CX24: 1 | CY24: 8 | CZ24: =CZ21+CZ22+CZ23 -> 15
B25: 23 | C25: 2059 | D25: 30118804 | E25: وزارة الصحة | F25: العيادات الخارجية | G25: الطبي | H25: عيادات الأطفال | I25: 2024-01-09T10:06:00 | J25: مي سليمان الدخيل | K25: 72 Hours | L25: 2024-01-09 | M25: 10:06:00 | N25: مي سليمان الدخيل | O25: 2024-01-09 | P25: 10:06:00 | T25: 2024-01-09 | U25: 10:23:00 | V25: مي سليمان الدخيل | W25: =(T25+U25)-(P25+O25) -> 0.01180555556 | X25: 2024-01-10 | Y25: 14:40:00 | Z25: مي سليمان الدخيل | AA25: =(Y25+X25)-(T25+U25) -> 1.178472222 | AE25: -45301.61111 | AJ25: -45300.43264 | AN25: -45300.43264 | AQ25: -45300.43264 | AR25: 2024-01-11 | AS25: 19:19:00 | AT25: مي سليمان الدخيل | AU25: 2.372222222 | AX25: Clinical complaints | AY25: 5. Communication | AZ25: .3.Skills and Conduct | BA25: 5.1.1.Miscommunication with Patient | BB25: تم رفض استقبال المريض من قبل الطبيب علما انه تم حضوره للعيادة في الوقت المحدد وكان الطبيب فض واسلوبه غير لائق مع والدة المريض وطلب اخراجها من المستشفى وقال رجعو لها فلوسها وقام بإهانتها شخصيا وطردها. | BC25: The patient was refused admission by the doctor, even though he arrived at the clinic on time. The doctor was rude and his manner was inappropriate towards the patient’s mother. He asked her to leave the hospital and told her to return her money. He personally insulted her and expelled her. | BE25: Patient | BO25: In-Patient | BP25: 0 | BQ25: =BP25/BP28 -> 0.00% | BY25: 2150 | BZ25: 30217804 | CA25: وزارة الصحة | CB25: العيادات الخارجية | CC25: التمريض | CD25: تمريض غرفة التطعيمات | CE25: 2024-01-31T15:51:00 | CF25: امال ماهل القحطاني | CG25: 72 Hours | CI25: امال ماهل القحطاني | CJ25: 3 | CK25: =CJ25/CJ27 -> 16.67% | CL25: 0 | CM25: 1 | CN25: 0 | CO25: 1 | CP25: 3
B26: 24 | C26: 2060 | D26: 30237906 | E26: مراجع | F26: العيادات الخارجية | G26: الطبي | H26: قسم المختبر | I26: 2024-01-09T11:35:00 | J26: مي سليمان الدخيل | K26: 24 Hours | L26: 2024-01-09 | M26: 11:35:00 | N26: مي سليمان الدخيل | O26: 2024-01-09 | P26: 11:35:00 | T26: 2024-01-09 | U26: 11:43:00 | V26: مي سليمان الدخيل | W26: 0.005555555552 | AA26: -45300.48819 | AE26: 0 | AJ26: -45300.48819 | AN26: -45300.48819 | AO26: 2024-01-09 | AP26: 16:51:00 | AQ26: 0.2138888889 | AR26: 2024-01-10 | AS26: 08:45:00 | AT26: مي سليمان الدخيل | AU26: 0.8763888889 | AX26: Clinical complaints | AY26: 5. Communication | AZ26: 3.1.Administrative Policies and Procedures | BA26: 6.3.2.Breach of patient privacy | BB26: احترام المريض و عدم الطلب منه فتح علبة البول المطلوب للتحليل و الاكتفاء بوضع العينة وارتداء القفاز وقت استلام وضع العينات في مكانها المخصص و إعطاء تعليمات للمتخصصين بتقدير و احترام المراجع و عدم الطلب منه فتح العينة للتأكد من اسم الشخص حيث لا بد من اظهار الاحترام لكبار السن. حاليا اطالب برد اعتبار معنوي من ادارة المختبر على سوء التعامل لديهم و تحسين التعامل مع المرضى في المختبر. | BC26: Respecting the patient and not asking them to open the urine collection container for analysis is essential. Simply place the sample in the designated container and wear gloves when receiving it. Instruct staff to treat patients with respect and not ask them to open the container to verify their name, as this is especially important for the elderly. I am currently demanding a formal apology from the laboratory administration for their poor treatment of patients and an improvement in patient care. | BE26: Patient | BO26: Out-Patient | BP26: 6 | BQ26: =BP26/BP28 -> 75.00% | CI26: مي سليمان الدخيل | CJ26: 6 | CK26: =CJ26/CJ27 -> 33.33% | CL26: 4 | CM26: 4 | CN26: 0 | CO26: 6 | CP26: 6 | CS26: Patient’s relatives | CT26: 15 | CU26: =CT26/BP41 -> 23.08%
B27: 25 | C27: 2063 | D27: 30225858 | E27: ذوي المراجع | F27: العيادات الخارجية | G27: الطبي | H27: عيادات الأطفال | I27: 2024-01-10T14:00:00 | J27: امال ماهل القحطاني | K27: More than 72 Hours | L27: 2024-01-10 | M27: 14:00:00 | N27: امال ماهل القحطاني | O27: 2024-01-10 | P27: 14:00:00 | Q27: 2024-01-14 | R27: 13:20:00 | S27: امال ماهل القحطاني | T27: 2024-01-14 | U27: 13:45:00 | V27: امال ماهل القحطاني | W27: 3.989583333 | X27: 2024-01-15 | Y27: 13:30:00 | Z27: مي سليمان الدخيل | AA27: 0.9895833333 | AE27: -45306.5625 | AJ27: -45305.57292 | AN27: -45305.57292 | AQ27: -45305.57292 | AR27: 2024-01-22 | AS27: 13:39:00 | AT27: امال ماهل القحطاني | AU27: 7.995833333 | AV27: 4918 | AW27: Dr NIBAL RADWAN OKLEH SHAWAKFAH | AX27: Clinical complaints | AY27: 6. Humanness / Caring | AZ27: 1.5.Diagnosis | BA27: 1.1.2. Inadequate/incomplete assessment | BB27: تم حضور الابن بدر مع والدته يوم الثلاثاء 9 يناير وطلبت تحليل شامل حيث انه كان لديه في الصغر ارتجاع للبول للكلى ووزنه الزائد وقصر القامة وعند مراجعتي انا والده للكتور هذا اليوم لاستعراض النتائج تفاجأت بان الدكتور يهبرني ان بان هناك نقص شديد في فيتامين د حيث ان النتيجة 40 وعندما اخبرت الدكتور بان هذا النقص لايعتبر كبير بحكم معرفتي بالمعدل الطبيعي لفيتامين د بحكم ان اغلب الاسرة لديهم نقص يصل الى 10 واقل ويتناولون علاج لذلك وعندما احس الدكتور باني غير راضي عن وصفه بالنقص الشديد قام بالاتصال بدكتور اسمه محمد وساله عن المعدل الطبيعي للبالغين واخبره بان بدر نتيجته 40 اخبره الدكتور محمد بانه كما سمعته sufficient وللأسف لم اكن اصدق بان طبيب يستفسر من طبيب اخر عن المعدل الطبيعي لفيتامين د. حيث ان الثقة تهتز فوراً بما سوف يشرحه للمريض وعند سؤاله عن نتائج السكر ووظائف الكلى والكبد افاد بان والدته لم تطلب ذلك واخبرت الدكتور ان والدته طلبت تحليل شامل لبدر والمفترض ان يكون السكر ووظائف الكبد والكلى من ضمننها خصوصاً وانها بتدفع كاش وبدر واضح ان وزنه زائد 60 kg وتحليل السكر من اهم التحاليل لذلك وقد قمت بالذهاب للأخ صالح العبدان مدير العيادات الخارجية واتصل بالدكتور واخبره بان والدة بدر اخبرته بان لديه نقص في الشهية فكيف نقص في الشهية ووزنه 60 kg . ارغب بالتوضيح ومعرفة لماذا تم تشخيص بدر بالنقص الشديد في الفيتامين ولماذا لم يتم عمل التحاليل الأخرى خصوصاً وان الحضور لاخر زياره كان لأخذ التحليل واقناعة بذلك اخذ منا وقت وجهد طويل لخوفه الشديد من الأبر وارجو اشعاري بما يتم بانتظار ردكم . | BC27: My son, Bader, came in with his mother on Tuesday, January 9th. She requested a comprehensive blood test because he had vesicoureteral reflux in his childhood, was overweight, and short in stature. When I, his father, went to the doctor that day to review the results, I was surprised to learn that he had a severe vitamin D deficiency, with a level of 40. When I told the doctor that this deficiency wasn't considered significant, given my knowledge of the normal range for vitamin D, he...Since most of the family members have a deficiency of 10 or less and are taking medication for it, and when Dr. Bani felt dissatisfied with his diagnosis of severe deficiency, he contacted a doctor named Muhammad and asked him about the normal range for adults. He told him that Badr's result was 40. Dr. Muhammad told him that, as he had heard, it was sufficient. Unfortunately, I couldn't believe that a doctor would ask another doctor about the normal range for Vitamin D.Trust is immediately shaken by what he will explain to the patient. When asked about the results of the blood sugar, kidney, and liver function tests, he stated that his mother hadn't requested them. He told the doctor that his mother had requested a comprehensive analysis for Bader, which should have included blood sugar, liver, and kidney function tests, especially since she was paying in cash. Bader is clearly overweight (60 kg), and a blood sugar test is one of the most important tests. Therefore, I went to Mr. Saleh Al-Abdan, the director of the outpatient clinics, who contacted the doctor and informed him that Bader's mother had told him he had a loss of appetite.How can his appetite be reduced when he weighs 60 kg? I would like clarification and to know why Bader was diagnosed with a severe vitamin deficiency and why other tests were not done, especially since the last visit was to get the test results and convincing him of this took a long time and effort because of his extreme fear of needles. Please keep me informed of what is happening. I await your response. | BE27: Patient | BO27: ER | BP27: 2 | BQ27: =BP27/BP28 -> 25.00% | CI27: Total | CJ27: 18 | CK27: 100.00% | CL27: 5 | CM27: 6 | CN27: 0 | CO27: 7 | CP27: 18
B28: 26 | C28: 2064 | D28: ALHH.0030169101 | E28: ذوي المراجع | F28: العيادات الخارجية | G28: الطبي | H28: قسم المختبر | I28: 2024-01-10T19:39:00 | J28: امال ماهل القحطاني | K28: More than 72 Hours | L28: 2024-01-10 | M28: 18:35:00 | N28: امال ماهل القحطاني | O28: 2024-01-10 | P28: 19:39:00 | Q28: 2024-01-14 | R28: 12:40:00 | S28: امال ماهل القحطاني | T28: 2024-01-14 | U28: 13:05:00 | V28: امال ماهل القحطاني | W28: 3.726388889 | AA28: -45305.54514 | AE28: 0 | AJ28: -45305.54514 | AN28: -45305.54514 | AO28: 2024-01-14 | AP28: 18:50:00 | AQ28: 0.2395833333 | AR28: 2024-01-22 | AS28: 13:40:00 | AT28: امال ماهل القحطاني | AU28: 8.024305556 | AX28: Management complaints | AY28: 5. Communication | AZ28: 4.3.Delays | BA28: 4.3.5.Delayed test result | BB28: تم عمل فحوصات تشمل (صورة كاملة للدم و هرمون الغدة الدرقية و فحص بول و مخزون الحديد) يوم الإثنين ٨ يناير لم تظهر النتيجة في التطبيق لمدة ٤٨ ساعة ولم يتم الرد من قبل المختبر على المكالمات المتكررة وعند توجهي اليوم لاستقبال المختبر أخبروني أن النتيجة غير ظاهرة وطلبوا مني الدخول لغرفة الفحص لأخذ عينة دم جديدة عندها أخبرتهم ان النتيجة لزوجتي وليست لي!!! فذهب موظف من استقبال المختبر لجهة المختبر و بعد سؤالهم لي اكثر من مرة عن نوع الفحوصات المعمولة وبعد ما يزيد عن ٣٠ دقيقه اخبرني ان النتائج جاهزة دون ابداء اي اسباب للتأخير غير المبرر والمفهوم طلبت مقابلة المدير واخبرته بشكل واضح ليس لدي مشكلة بالتاخير لكن اريد ان افهم السبب فكانت ردوده فظه وغير لائقة وعندما اخبرته انه نتائج هذه التحاليل لا تأخد اكثر من ساعات اخبرني غير صحيح (مين قلك ) وعند سؤالي عن موعد صدور النتائج أطلعني على نتائج الفحوصات على شاشة الكمبيوتر وكان جليا ان تاريخ النتيجه هو ١٠ يناير الساعة ٥:٤٥م اي عندما قدمت للمستشفى وسألت عند الموضوع ( هنا اخبرته ان النتيجة مدخله على النظام الآن) قال لا هذا وقت طباعة النتيجة لك علماً انه لم يتم طباعة اي نتيجة ورقية لي ومراراً لم يتم التجاوب والتوضيح انه هناك خطأ ما في سؤالي له عن سبب عدم ظهور النتيجة على التطبيق قال يعني (هو لما حظرتك تشيك على التطبيق لازم تشوف النتيجة) أخبرته انني ارغب بالتقدم بشكوى سألته عن مكاتب الادراة تم ابلاغي ( دور لحالك بالمستشفى) وعن اسمه رفض ايضاً الإدلاء باسمه في تصرف غير مقبول من موظف باختصار، أنا الان غير مقتنع بالنتيجة وأشك في صحتها بشكل كامل اضافة لذلك تصرف الموظف كان غير لائق | BC28: Blood tests were conducted (complete blood count, thyroid hormone test, urine test, and iron stores) on Monday, January 8. The result did not appear in the application for 48 hours, and the laboratory did not respond to repeated phone calls. When I went today to the laboratory reception, they told me that the result was not showing and asked me to enter the examination room to take a new blood sample. At that point, I informed them that the result was for my wife, not for me!!! A staff member from the laboratory reception went to the laboratory section, and after asking me several times about the type of tests performed, and after more than 30 minutes, he informed me that the results were ready without giving any reasons for the unjustified and incomprehensible delay. I requested to meet the manager and clearly told him that I do not have a problem with the delay, but I want to understand the reason. His responses were rude and inappropriate. When I told him that the results of these tests do not take more than hours, he said that this was not correct (“Who told you?”). When I asked about the time the results were issued, he showed me the test results on the computer screen, and it was clear that the result date was January 10 at 5:45 PM, which was when I came to the hospital and inquired about the matter (here I informed him that the result was entered into the system at that moment). He said, “No, this is the time of printing the result for you,” noting that no paper result was printed for me. Repeatedly, there was no response or clarification that there was some mistake. When I asked him about the reason the result did not appear in the application, he said, “So when you check the application, you must see the result?” I informed him that I wish to file a complaint. When I asked about the administration offices, I was told, “Look for them yourself in the hospital,” and he also refused to provide his name, which is unacceptable behavior from an employee. In short, I am now not convinced of the result and completely doubt its validity. In addition to that, the employee’s behavior was inappropriate | BE28: Patient | BO28: Total | BP28: 8 | BQ28: =BQ27+BQ26+BQ25 -> 100.00% | CS28: 24 Hours | CT28: 48 Hours | CU28: 72 Hours | CV28: More than 72 hours
B29: 27 | C29: 2068 | D29: 30305850 | E29: ذوي المراجع | F29: العيادات الخارجية | G29: الإداري | H29: قسم المالية | I29: 2024-01-13T16:08:00 | J29: مي سليمان الدخيل | K29: 24 Hours | L29: 2024-01-13 | M29: 16:08:00 | N29: مي سليمان الدخيل | O29: 2024-01-13 | P29: 16:08:00 | Q29: 2024-01-15 | R29: 19:07:00 | S29: مي سليمان الدخيل | T29: 2024-01-15 | U29: 19:14:00 | V29: مي سليمان الدخيل | W29: 2.129166667 | AA29: -45306.80139 | AE29: 0 | AJ29: -45306.80139 | AK29: 2024-01-16 | AL29: 16:00:00 | AM29: ابرار بندر الشمري | AN29: 0.8652777778 | AQ29: -45306.80139 | AU29: -45306.80139 | AX29: Management complaints | AY29: 5. Communication | AZ29: 3.4.Finance and Billing | BA29: 3.1.4.Required Service not obtained | BB29: تم حجز موعد عند الدكتور محمود فوزي ودفع مبلغ ختان قدره ٧٠٠ ريال وبعد الدفع والزيارة الثانية رفض الا بتقرير طبي من مسالك بولية ، وجينا المرة الثالثة وتم الرفض ايضا وبعد الذهاب لدكتور اخر عمل له الختان بكل يسر وسهولة، حاليا نطالب باسترجاع مبلغ الختان لرفض الدكتور محمود فوزي عمل العمليه لثلاث مرات متتاليه! | BC29: An appointment was booked with Dr. Mahmoud Fawzi and a circumcision fee of 700 riyals was paid. After payment and the second visit, he refused unless there was a medical report from a urologist. We came for the third time and it was also refused. After going to another doctor, the circumcision was performed very easily and smoothly. We are now requesting a refund of the circumcision fee due to Dr. Mahmoud Fawzi’s refusal to perform the procedure three consecutive times! | BE29: Patient | BO29: Medical | BP29: 1 | BQ29: =BP29/BP33 -> 12.50% | BY29: Employee Name | BZ29: Number of complaints | CA29: Total Percentage | CB29: 24 Hours | CC29: 48 Hours | CD29: 72 Hours | CE29: More than 72 hours | CF29: Total | CI29: Patients | CJ29: 18 | CK29: =CJ29/BP41 -> 27.69% | CS29: 5 | CT29: 1 | CU29: 1 | CV29: 8
B30: 28 | C30: 2068 | D30: 30305850 | E30: ذوي المراجع | F30: العيادات الخارجية | G30: الطبي | H30: عيادات جراحة المسالك البولية (أطفال) | I30: 2024-01-13T19:33:00 | J30: مي سليمان الدخيل | K30: 24 Hours | L30: 2024-01-13 | M30: 16:08:00 | N30: مي سليمان الدخيل | O30: 2024-01-13 | P30: 16:08:00 | Q30: 2024-01-15 | R30: 19:07:00 | S30: مي سليمان الدخيل | T30: 2024-01-15 | U30: 19:14:00 | V30: مي سليمان الدخيل | W30: 2.129166667 | AA30: -45306.80139 | AE30: 0 | AJ30: -45306.80139 | AK30: 2024-01-16 | AL30: 16:00:00 | AM30: ابرار بندر الشمري | AN30: 0.8652777778 | AO30: 2024-01-16 | AP30: 09:07:00 | AQ30: 0.5784722222 | AU30: -45306.80139 | AV30: 4903 | AW30: Dr MAHMOUD FAWZY ABDELFATTAH ABDELHALIM | AX30: Relationship Complaints | AY30: 5. Communication | AZ30: 5.1.Patient-staff communication | BA30: 5.1.2.Poor provider-patient communication | BB30: تم حجز موعد عند الدكتور محمود فوزي ودفع مبلغ ختان قدره ٧٠٠ ريال وبعد الدفع والزيارة الثانية رفض الا بتقرير طبي من مسالك بولية ، وجينا المرة الثالثة وتم الرفض ايضا وبعد الذهاب لدكتور اخر عمل له الختان بكل يسر وسهولة، حاليا نطالب باسترجاع مبلغ الختان لرفض الدكتور محمود فوزي عمل العمليه لثلاث مرات متتاليه! | BC30: An appointment was booked with Dr. Mahmoud Fawzi and a circumcision fee of 700 riyals was paid. After payment and the second visit, he refused unless there was a medical report from a urologist. We came for the third time and it was also refused. After going to another doctor, the circumcision was performed very easily and smoothly. We are now requesting a refund of the circumcision fee due to Dr. Mahmoud Fawzi’s refusal to perform the procedure three consecutive times! | BE30: Patient | BO30: Admin | BP30: 7 | BQ30: =BP30/BP33 -> 87.50% | BY30: ابرار بندر الشمري | BZ30: 14 | CA30: =BZ30/BZ33 -> 58.33% | CB30: 9 | CC30: 1 | CD30: 1 | CE30: 3 | CF30: 14 | CS30: =CS29/CT26 -> 33.33% | CT30: =CT29/CT26 -> 6.67% | CU30: =CU29/CT26 -> 6.67% | CV30: =CV29/CT26 -> 53.33%
B31: 29 | C31: 2069 | D31: 30071173 | E31: مراجع | F31: الطوارئ | G31: الإداري | H31: مكتب التنويم | I31: 2024-01-14T12:44:00 | J31: امال ماهل القحطاني | K31: More than 72 Hours | L31: 2024-01-14 | M31: 12:38:00 | N31: امال ماهل القحطاني | O31: 2024-01-14 | P31: 12:44:00 | Q31: 2024-01-14 | R31: 13:08:00 | S31: امال ماهل القحطاني | T31: 2024-01-14 | U31: 13:16:00 | V31: امال ماهل القحطاني | W31: 0.02222222222 | X31: 2024-01-16 | Y31: 12:10:00 | Z31: امال ماهل القحطاني | AA31: 1.954166667 | AB31: 2024-01-18 | AC31: 10:31:00 | AD31: امال ماهل القحطاني | AE31: 1.93125 | AJ31: -45305.55278 | AN31: -45305.55278 | AO31: 2024-01-16 | AP31: 14:36:00 | AQ31: 2.055555556 | AR31: 2024-01-22 | AS31: 13:38:00 | AT31: امال ماهل القحطاني | AU31: 8.015277778 | AV31: 15697 | AW31: SARAH KHALIFAH BIN MOKLEF ALANAZI | AX31: Management complaints | AY31: 5. Communication | AZ31: 5.1.Patient-staff communication | BA31: 6.2.1.Inappropriate/aggressive behavior | BB31: تم حضور لقسم الطوارئ وتم طلب حضور المسؤل وحضرت الموظفه ساره من مكتب التنويم وتم النقاش فيما يخص البنود المفترض ان يتم التوقيع عليها من قبلي وبعد النقااش تم رفع الصوت من قبل الموظفة وعند سؤالي وطلب التوضيح اكثر لم يتم التجاوب ويتم ابلاغي بالتوقيع فقط ومن ثم تم خروجها بدون اكمال النقاش وعدم احترامي والتعامل بطريقة غير لائقه من قبل الموظفة . | BC31: I attended the Emergency Department and requested the presence of the person in charge. Ms. Sarah from the admission office came, and a discussion took place regarding the clauses that I was supposed to sign. During the discussion, the employee raised her voice, and when I asked for further clarification, there was no response, and I was simply told to sign. She then left without completing the discussion, showing disrespect and behaving in an inappropriate manner. | BE31: Patient | BO31: Nursing | BP31: 0 | BQ31: =BP31/BP33 -> 0.00% | BY31: امال ماهل القحطاني | BZ31: 3 | CA31: =BZ31/BZ33 -> 12.50% | CB31: 2 | CC31: 0 | CD31: 1 | CE31: 0 | CF31: 3 | CI31: 24 Hours | CJ31: 48 Hours | CK31: 72 Hours | CL31: More than 72 hours
A32: 3 | B32: 30 | C32: 2074 | D32: 20050079 | E32: مجلس الضمان الصحي | F32: العيادات الخارجية | G32: الإداري | H32: قسم الموافقات الطبية | I32: 2024-01-16T12:16:00 | J32: امال ماهل القحطاني | K32: 24 Hours | L32: 2024-01-16 | M32: 12:16:00 | N32: امال ماهل القحطاني | O32: 2024-01-16 | P32: 12:16:00 | T32: 2024-01-16 | U32: 12:16:00 | V32: امال ماهل القحطاني | W32: 0 | AA32: -45307.51111 | AE32: 0 | AJ32: -45307.51111 | AN32: -45307.51111 | AQ32: -45307.51111 | AR32: 2024-01-16 | AS32: 12:36:00 | AT32: امال ماهل القحطاني | AU32: 0.01388888889 | AX32: Management complaints | AY32: 5. Communication | AZ32: 3.4.Finance and Billing | BA32: 3.4.4.Reimbursements issues | BB32: تم طلب لاجراء منظار لابني وتم رفع الطلب علما انه تم ابلاغي بالموافقه على التخدير والمنظار ورفض التنويم وتم الدفع كاش وبعد الانتهاء من الاجراء اتضح وجود موافقه على التنويم وتم الرجوع للمستشفى وتم رفض التعويض بانتظار التوضيح فيما يخص الموافقه والتعويض . | BC32: A request was made to perform an endoscopy for my son, and the request was submitted. I was informed that there was approval for anesthesia and the endoscopy, and that admission was not approved. Payment was made in cash. After completing the procedure, it became clear that there was approval for admission. We returned to the hospital, and compensation was refused. We are awaiting clarification regarding the approval and the compensation. | BE32: Hospital | BO32: Support Services | BP32: 0 | BQ32: =BP32/BP33 -> 0.00% | BY32: مي سليمان الدخيل | BZ32: 7 | CA32: =BZ32/BZ33 -> 29.17% | CB32: 4 | CC32: 0 | CD32: 1 | CE32: 2 | CF32: 7 | CI32: 5 | CJ32: 5 | CK32: 0 | CL32: 8 | CS32: In-Patient | CT32: 7 | CU32: =CT32/CT35 -> 46.67%
B33: 31 | C33: 2076 | D33: 30308966 | E33: وزارة الصحة | F33: الطوارئ | G33: الإداري | H33: استقبال الطوارئ | I33: 2024-01-16T17:56:00 | J33: ابرار بندر الشمري | K33: 48 Hours | L33: 2024-01-16 | M33: 17:56:00 | N33: ابرار بندر الشمري | O33: 2024-01-16 | P33: 17:56:00 | T33: 2024-01-16 | U33: 18:01:00 | V33: ابرار بندر الشمري | W33: 0.003472222226 | X33: 2024-01-17 | Y33: 17:47:00 | Z33: مي سليمان الدخيل | AA33: 0.9902777778 | AE33: -45308.74097 | AJ33: -45307.75069 | AK33: 2024-01-18 | AL33: 14:36:00 | AM33: ابرار بندر الشمري | AN33: 1.857638889 | AO33: 2024-01-17 | AP33: 18:59:00 | AQ33: 1.040277778 | AU33: -45307.75069 | AX33: Management complaints | AY33: 5. Communication | AZ33: 3.1.Administrative Policies and Procedures | BA33: 4.1.3.Patient admission refusal | BB33: رفضو استقبال المريض مع العلم ان فئة تامينه تدخله المستشفى بدون موافقه مسبقه .. | BC33: They refused to admit the patient, even though his insurance category allows him to be admitted to the hospital without prior approval. | BE33: Patient | BO33: Total | BP33: 8 | BQ33: =BQ32+BQ31+BQ30+BQ29 -> 100.00% | BY33: Total | BZ33: =BZ30+BZ31+BZ32 -> 24 | CA33: 100.00% | CB33: =CB30+CB31+CB32 -> 15 | CC33: 1 | CD33: 3 | CE33: 5 | CF33: 24 | CI33: =CI32/CJ29 -> 27.78% | CJ33: =CJ32/CJ29 -> 27.78% | CK33: =CK32/CJ29 -> 0.00% | CL33: =CL32/CJ29 -> 44.44% | CS33: Out-Patient | CT33: 8 | CU33: =CT33/CT35 -> 53.33%
B34: 32 | C34: 2079 | D34: 30048922 | E34: مراجع | F34: العيادات الخارجية | G34: الطبي | H34: عيادات جراحة الأوعية الدموية | I34: 2024-01-16T18:56:00 | J34: مي سليمان الدخيل | K34: 48 Hours | L34: 2024-01-16 | M34: 18:49:00 | N34: مي سليمان الدخيل | O34: 2024-01-16 | P34: 18:56:00 | Q34: 2024-01-16 | R34: 19:03:00 | S34: مي سليمان الدخيل | T34: 2024-01-16 | U34: 19:05:00 | V34: مي سليمان الدخيل | W34: 0.006249999999 | X34: 2024-01-17 | Y34: 18:12:00 | Z34: مي سليمان الدخيل | AA34: 0.9631944444 | AE34: -45308.75833 | AJ34: -45307.79514 | AN34: -45307.79514 | AO34: 2024-01-18 | AP34: 00:11:00 | AQ34: 1.2125 | AR34: 2024-01-18 | AS34: 15:31:00 | AT34: ابرار بندر الشمري | AU34: 1.851388889 | AV34: 8763 | AW34: Dr KHALID ABDULRAHMAN SALEM ALBREKEIT | AX34: Clinical complaints | AY34: 6. Humanness / Caring | AZ34: 1.5.Diagnosis | BA34: 3.1.4.Required Service not obtained | BB34: رفض الاطلاع على تقاريري واشعتي من مستشفى آخر ومحاولة اقناعي بعمل جديدة على تكلفة التأمين وحين رفضت ، رفض تشخيصي. | BC34: He refused to look at my reports and scans from another hospital and tried to convince me to do a new one at the cost of insurance, and when I refused, he rejected my diagnosis. | BE34: Patient | CS34: ER | CT34: 0 | CU34: =CT34/CT35 -> 0.00%
B35: 33 | C35: 2083 | D35: 30309788 | E35: ذوي المراجع | F35: العيادات الخارجية | G35: الطبي | H35: عيادات الأطفال | I35: 2024-01-17T18:32:00 | J35: مي سليمان الدخيل | K35: More than 72 Hours | L35: 2024-01-17 | M35: 14:40:00 | N35: مي سليمان الدخيل | O35: 2024-01-17 | P35: 18:32:00 | Q35: 2024-01-18 | R35: 15:57:00 | S35: مي سليمان الدخيل | T35: 2024-01-18 | U35: 16:07:00 | V35: مي سليمان الدخيل | W35: 0.8993055556 | X35: 2024-01-20 | Y35: 17:01:00 | Z35: مي سليمان الدخيل | AA35: 2.0375 | AB35: 2024-01-22 | AC35: 14:12:00 | AD35: مي سليمان الدخيل | AE35: 1.882638889 | AJ35: -45309.67153 | AN35: =(AL35+AK35)-(U35+T35) -> -45309.67153 | AO35: 2024-01-24 | AP35: 09:04:00 | AQ35: 5.70625 | AR35: 2024-01-24 | AS35: 15:22:00 | AT35: مي سليمان الدخيل | AU35: 5.96875 | AV35: 4843 | AW35: Dr YAMINE KERARMA | AX35: Clinical complaints | AY35: 6. Humanness / Caring | AZ35: 1.5.Diagnosis | BA35: 1.5.1.Errors in diagnosis | BB35: راجعت اثنين من الاطباء بقسم الاطفال بغرض فحص ابني الذي يعاني من السعال والحراره و بعد عمل صوره اشعه تبين ان لديه التهاب حاد بالرئه . كان رأي الاطباء اعطاؤه دواء عادي و رغم طلبنا من احد الطبيبين فحص الاكسجين لابني الا انها رفضت بدعوى انها يمكنها تمييز نقص الاكسجين عند الطفل بعينها المجرده بسبب خبرتها و انه لا يظهر عليه اي اعراض . و طلبت منا مراجعه الطواريء لصرف الادويه و عندما راجعنا الطواريء قامو بعمل الاجراء الروتيني و هو فحص ال2spo تبين ان مستوى الاكسجين لدى طفلي ذو العامين هو ٨١ ! و بناء عليه تم تحويله مباشره للعنايه المركزه و رقد بالمستشفى لمدة ٥ ايام !! لا يمكنني تخيل ما كان سيحصل لو اني سمعت كلامهم ولم اتبع حدسي و اطلب فحص الاكسجين! حاليا اتمنى ان يكون فحص الاكسجين والضغط اجراء روتيني و اجباري قبل كل مراجعه وقبل الدخول عند الطبيب ( كما هو متعارف عليه بكل العالم). و ان يستعمل الاطباء الادوات الطبيه المتاحه لهم بدلا من اتباع اعينهم المجرده ان امكن. | BC35: I consulted two doctors in the Pediatrics Department to examine my son, who was suffering from cough and fever. After an X-ray was performed, it was found that he had acute pneumonia. The doctors’ opinion was to give him regular medication. Despite our request to one of the two doctors to check my son’s oxygen level, she refused, claiming that she could recognize oxygen deficiency in a child with her naked eye due to her experience and that he did not show any symptoms. She asked us to go to the Emergency Department to receive the medications. When we went to the Emergency Department, they performed the routine procedure, which is checking SpO2. It turned out that my two-year-old child’s oxygen level was 81! Accordingly, he was immediately transferred to the Intensive Care Unit and was hospitalized for 5 days!! I cannot imagine what would have happened if I had listened to them and not followed my instinct to request an oxygen check! Currently, I hope that checking oxygen and blood pressure will become a routine and mandatory procedure before every visit and before entering the doctor’s office (as is customary worldwide). I also hope that doctors will use the medical tools available to them instead of relying solely on their naked eyes whenever possible. | BE35: Patient | BY35: MOH | BZ35: 24 | CA35: =BZ35/BP41 -> 36.92% | CI35: In-Patient | CJ35: 2 | CK35: =CJ35/CJ38 -> 11.11% | CS35: Total | CT35: 15 | CU35: 100.00%
B36: 43 | C36: 2086 | D36: 30185001 | E36: وزارة الصحة | F36: التنويم | G36: الإداري | H36: قسم الموافقات الطبية | I36: 2024-01-18T12:51:00 | J36: ابرار بندر الشمري | K36: 24 Hours | L36: 2024-01-18 | M36: 12:51:00 | N36: ابرار بندر الشمري | O36: 2024-01-18 | P36: 12:51:00 | T36: 2024-01-18 | U36: 13:03:00 | V36: ابرار بندر الشمري | W36: 0.008333333331 | AA36: -45309.54375 | AE36: 0 | AJ36: -45309.54375 | AN36: -45309.54375 | AO36: 2024-01-18 | AP36: 13:27:00 | AQ36: 0.01666666667 | AR36: 2024-01-18 | AS36: 17:43:00 | AT36: ابرار بندر الشمري | AU36: 0.1944444444 | AX36: Management complaints | AY36: 5. Communication | AZ36: 3.4.Finance and Billing | BA36: 3.4.3.Calculate Additional amount | BB36: تم رفع طلب لتامين وتم الموافقه من قبل التامين وتم احتساب رسوم زياده لتويم . | BC36: An insurance application was submitted and approved by the insurance company, and additional fees were calculated for the twinning service. | BE36: Patient | CI36: Out-Patient | CJ36: 15 | CK36: =CJ36/CJ43 -> 83.33% | CS36: Medical | CT36: 10 | CU36: =CT36/CT40 -> 66.67%
B37: 35 | C37: 2086 | D37: 30185001 | E37: وزارة الصحة | F37: التنويم | G37: الإداري | H37: قسم المالية | I37: 2024-01-18T12:51:00 | J37: ابرار بندر الشمري | K37: 24 Hours | L37: 2024-01-18 | M37: 12:51:00 | N37: ابرار بندر الشمري | O37: 2024-01-18 | P37: 12:51:00 | T37: 2024-01-18 | U37: 13:03:00 | V37: ابرار بندر الشمري | W37: 0.008333333331 | AA37: -45309.54375 | AE37: 0 | AJ37: -45309.54375 | AN37: -45309.54375 | AO37: 2024-01-18 | AP37: 15:13:00 | AQ37: 0.09027777778 | AR37: 2024-01-18 | AS37: 17:43:00 | AT37: ابرار بندر الشمري | AU37: 0.1944444444 | AX37: Management complaints | AY37: 5. Communication | AZ37: 3.4.Finance and Billing | BA37: 3.4.3.Calculate Additional amount | BB37: تم رفع طلب لتامين وتم الموافقه من قبل التامين وتم احتساب رسوم زياده لتويم . | BC37: An insurance application was submitted and approved by the insurance company, and additional fees were calculated for the twinning service. | BE37: Patient | BY37: 24 Hours | BZ37: 48 Hours | CA37: 72 Hours | CB37: More than 72 hours | CI37: ER | CJ37: 1 | CK37: =CJ37/CJ43 -> 5.56% | CS37: Admin | CT37: 2 | CU37: =CT37/CT40 -> 13.33%
B38: 36 | C38: 2087 | D38: 24761 | E38: وزارة الصحة | F38: العيادات الخارجية | G38: الإداري | H38: قسم التقارير الطبية | I38: 2024-01-18T13:03:00 | J38: ابرار بندر الشمري | K38: 24 Hours | L38: 2024-01-18 | M38: 13:03:00 | N38: ابرار بندر الشمري | O38: 2024-01-18 | P38: 13:03:00 | T38: 2024-01-18 | U38: 13:13:00 | V38: ابرار بندر الشمري | W38: 0.006944444445 | AA38: -45309.55069 | AE38: 0 | AJ38: -45309.55069 | AN38: -45309.55069 | AO38: 2024-01-18 | AP38: 14:31:00 | AQ38: 0.05416666667 | AR38: 2024-01-18 | AS38: 17:37:00 | AT38: ابرار بندر الشمري | AU38: 0.1833333333 | AX38: Clinical complaints | AY38: 1. Quality | AZ38: 4.3.Delays | BA38: 4.3.5.Delayed test result | BB38: تاخير في رفع فحص ماقبل الزواج رغم ظهور النتائج في النظام . | BC38: There is a delay in uploading the premarital medical examination results despite the results appearing in the system. | BE38: Patient | BY38: 15 | BZ38: 1 | CA38: 3 | CB38: 5 | CI38: Total | CJ38: 18 | CK38: =CJ38/CJ43 -> 100.00% | CS38: Nursing | CT38: 2 | CU38: =CT38/CT40 -> 13.33%
B39: 37 | C39: 2088 | D39: 30308966 | E39: مجلس الضمان الصحي | F39: الطوارئ | G39: الإداري | H39: استقبال الطوارئ | I39: 2024-01-18T14:36:00 | J39: ابرار بندر الشمري | K39: 24 Hours | L39: 2024-01-18 | M39: 13:03:00 | N39: ابرار بندر الشمري | O39: 2024-01-18 | P39: 13:03:00 | T39: 2024-01-18 | U39: 13:13:00 | V39: ابرار بندر الشمري | W39: 0.006944444445 | AA39: -45309.55069 | AE39: 0 | AJ39: -45309.55069 | AN39: -45309.55069 | AQ39: -45309.55069 | AR39: 2024-01-18 | AS39: 17:37:00 | AT39: ابرار بندر الشمري | AU39: 0.1833333333 | AX39: Management complaints | AY39: 5. Communication | AZ39: 3.1.Administrative Policies and Procedures | BA39: 4.1.3.Patient admission refusal | BB39: رفضو استقبال المريض مع العلم ان فئة تامينه تدخله المستشفى بدون موافقه مسبقه . | BC39: They refused to admit the patient, even though his insurance category allowed him to enter the hospital without prior approval. | BE39: Patient | BY39: =BY38/BZ35 -> 62.50% | BZ39: =BZ38/BZ35 -> 4.17% | CA39: =CA38/BZ35 -> 12.50% | CB39: =CB38/BZ35 -> 20.83% | CI39: Medical | CJ39: 15 | CK39: =CJ39/CJ43 -> 83.33% | CS39: Support Services | CT39: 1 | CU39: =CT39/CT40 -> 6.67%
B40: 38 | C40: 2089 | D40: 30254489 | E40: مراجع | F40: العيادات الخارجية | G40: الطبي | H40: عيادات النساء والولادة | I40: 2024-01-18T15:51:00 | J40: مي سليمان الدخيل | K40: More than 72 Hours | L40: 2024-01-18 | M40: 15:43:00 | N40: مي سليمان الدخيل | O40: 2024-01-18 | P40: 15:51:00 | Q40: 2024-01-18 | R40: 16:04:00 | S40: مي سليمان الدخيل | T40: 2024-01-18 | U40: 16:06:00 | V40: مي سليمان الدخيل | W40: 0.01041666666 | X40: 2024-01-20 | Y40: 17:00:00 | Z40: مي سليمان الدخيل | AA40: 2.0375 | AB40: 2024-01-22 | AC40: 14:11:00 | AD40: مي سليمان الدخيل | AE40: 1.882638889 | AJ40: -45309.67083 | AN40: -45309.67083 | AO40: 2024-01-23 | AP40: 21:19:00 | AQ40: 5.217361111 | AR40: 2024-01-24 | AS40: 15:20:00 | AT40: مي سليمان الدخيل | AU40: 5.968055556 | AV40: 11936 | AW40: Dr AZZA JAFFAR BASHIR MOHAMED | AX40: Clinical complaints | AY40: 1. Quality | AZ40: 1.4.Treatment | BA40: 1.2.1.Miscoordination | BB40: كشفت عند الدكتوره في العياده ووصفت لي وصفه طبيه وتأخرت في تنزيلها مع اني رجعت لها العياده وطلبت منها تنزلها ولكن مانزلتها وكلمت الاستقبال لتنزيلها لكن مانزلتها الا لما رجعت البيت مع العلم اني من خارج الرياض واخذت اجازه وقت قصير واخذت موعد يوم الاحد معها وتم الغاء الموعد اليوم مافي اي مسوؤليه ولا انتظام! | BC40: I saw the doctor at the clinic and she prescribed medication, but she was late in filling it out, even though I went back to the clinic and asked her to fill it out. She didn't fill it out, and I even called reception to have it filled out, but she didn't fill it out until I got home. Keep in mind that I'm from outside Riyadh and took a short leave of absence. I had an appointment with her on Sunday, but it was canceled today. There's no accountability or punctuality! | BE40: Patient | CI40: Admin | CJ40: 3 | CK40: =CJ40/CJ43 -> 16.67% | CS40: Total | CT40: 15 | CU40: 100.00%
B41: 39 | C41: 2090 | D41: 1321129 | E41: مراجع | F41: العيادات الخارجية | G41: الطبي | H41: قسم المختبر | I41: 2024-01-19T00:50:00 | J41: مي سليمان الدخيل | K41: 24 Hours | L41: 2024-01-18 | M41: 19:42:00 | N41: مي سليمان الدخيل | O41: 2024-01-19 | P41: 00:50:00 | Q41: 2024-01-20 | R41: 17:13:00 | S41: مي سليمان الدخيل | T41: 2024-01-20 | U41: 17:15:00 | V41: مي سليمان الدخيل | W41: 1.684027778 | AA41: -45311.71875 | AE41: 0 | AJ41: -45311.71875 | AN41: -45311.71875 | AO41: 2024-01-20 | AP41: 17:30:00 | AQ41: 0.01041666666 | AR41: 2024-01-20 | AS41: 17:51:00 | AT41: مي سليمان الدخيل | AU41: 0.025 | AX41: Management complaints | AY41: 3. Institutional Issues | AZ41: 3.1.Administrative Policies and Procedures | BA41: 3.1.4.Required Service not obtained | BB41: رفض تحاليل قد ظهرت الموافقة عليها tsh , cbc , glocouse في تطبيق المستشفى . | BC41: The hospital application rejected tests that had already been approved (TSH, CBC, glucose). | BE41: Patient | BO41: Total | BP41: 65 | BY41: In-Patient | BZ41: 2 | CA41: =BZ41/BZ44 -> 8.33% | CI41: Nursing | CJ41: 0 | CK41: =CJ41/CJ43 -> 0.00%
B42: 40 | C42: 2092 | D42: 30060409 | E42: وزارة الصحة | F42: العيادات الخارجية | G42: الطبي | H42: قسم الصيدلية | I42: 2024-01-20T11:31:00 | J42: ابرار بندر الشمري | K42: More than 72 Hours | L42: 2024-01-20 | M42: 11:31:00 | N42: ابرار بندر الشمري | O42: 2024-01-20 | P42: 11:31:00 | T42: 2024-01-20 | U42: 11:38:00 | V42: ابرار بندر الشمري | W42: 0.004861111112 | X42: 2024-01-21 | Y42: 13:11:00 | Z42: ابرار بندر الشمري | AA42: 1.064583333 | AE42: -45312.54931 | AJ42: -45311.48472 | AN42: -45311.48472 | AO42: 2024-01-21 | AP42: 17:11:00 | AQ42: 1.23125 | AR42: 2024-01-24 | AS42: 18:56:00 | AT42: ابرار بندر الشمري | AU42: 4.304166667 | AX42: Management complaints | AY42: 1. Quality | AZ42: 1.4.Treatment | BA42: 2.1.6.Prescription of expired medication | BB42: تم صرف مكمل غذائي منتهي الصلاحية . | BC42: An expired dietary supplement was dispensed. | BE42: Patient | BY42: Out-Patient | BZ42: 18 | CA42: =BZ42/BZ44 -> 75.00% | CI42: Support Services | CJ42: 0 | CK42: =CJ42/CJ43 -> 0.00%
B43: 41 | C43: 2095 | D43: 1810320 | E43: مجلس الضمان الصحي | F43: العيادات الخارجية | G43: الإداري | H43: قسم الموافقات الطبية | I43: 2024-01-21T14:30:00 | J43: مي سليمان الدخيل | K43: 24 Hours | L43: 2024-01-21 | M43: 14:30:00 | N43: مي سليمان الدخيل | O43: 2024-01-21 | P43: 14:30:00 | T43: 2024-01-21 | U43: 15:04:00 | V43: مي سليمان الدخيل | W43: 0.02361111112 | AA43: -45312.62778 | AE43: 0 | AJ43: -45312.62778 | AN43: -45312.62778 | AO43: 2024-01-22 | AP43: 09:57:00 | AQ43: 0.7868055556 | AR43: 2024-01-22 | AS43: 14:14:00 | AT43: مي سليمان الدخيل | AU43: 0.9652777778 | AX43: Management complaints | AY43: 3.4.Finance and Billing | AZ43: 3.4.Finance and Billing | BA43: 6.4.2.No/Invalid consent obtained | BB43: رفض تغطية العملية من قبل شركة التأمين التعاونية في المستشفى وذلك بسبب تشوه خلقي مع العلم بأن التأمين الخاص بنا مغطي للتشوه الخلقي. | BC43: The hospital's cooperative insurance company refused to cover the operation due to a congenital defect, even though our private insurance covers congenital defects. | BE43: Hospital | BY43: ER | BZ43: 4 | CA43: =BZ43/BZ44 -> 16.67% | CI43: Total | CJ43: 18 | CK43: =CJ43/CJ43 -> 100.00%
B44: 42 | C44: 2097 | D44: 30291618 | E44: مجلس الضمان الصحي | F44: العيادات الخارجية | G44: الطبي | H44: عيادات الأطفال | I44: 2024-01-21T17:00:00 | J44: ابرار بندر الشمري | K44: 72 Hours | L44: 2024-01-21 | M44: 17:00:00 | N44: ابرار بندر الشمري | O44: 2024-01-21 | P44: 17:00:00 | T44: 2024-01-21 | U44: 17:03:00 | V44: ابرار بندر الشمري | W44: 0.002083333333 | X44: 2024-01-21 | Y44: 20:18:00 | Z44: مي سليمان الدخيل | AA44: 0.1354166667 | AB44: 2024-01-22 | AC44: 13:49:00 | AD44: امال ماهل القحطاني | AE44: 0.7298611111 | AJ44: -45312.71042 | AN44: -45312.71042 | AO44: 2024-01-22 | AP44: 10:32:00 | AQ44: 0.7284722222 | AR44: 2024-01-24 | AS44: 14:35:00 | AT44: امال ماهل القحطاني | AU44: 2.897222222 | AV44: 4918 | AW44: Dr NIBAL RADWAN OKLEH SHAWAKFAH | AX44: Management complaints | AY44: 1. Quality | AZ44: 1.4.Treatment | BA44: 3.1.4.Required Service not obtained | BB44: الشكوى هي بخصوص سوء تعامل مقدم الرعاية الصحية واحتياله الواضح والصريح على شركة التأمين والمريض! لأكثر من زياره لدى المستشفي اتضح ان الطفله لديها عسر هضم لاكتوز وتحتاج حليب قليل الاكتوز تم وصف لي حليب نان من قبل المستشفي تم استخدام العادي وتركيبة وكلها لم تناسب الطفله طلبت من الدكتور كتابة وصفه لحليب اخر افادني انه ممنوع من نفس المستشفي كتابة اي وصفه لصيدليه خارجيه فقط يتم كتابة وصفه للادوية والحليب المتوفر في صيدلية المستشفي! لكن الحليب المتوفر عندهم لم يناسب الطفله وكانت هناك زياره للطوارىْ حيث كانت الطفله عندها غازات شديده وعسر هضم بسبب الحليب وتم عمل سونار واشعه للبطن وتم كتابة تقرير من قبل الدكتورة لكن لم يتم صرف اي علاج ولا حليب اخر والعذر انه غير متوفر في الصيدلية وتم طلب كتابة وصفه طبية ليتم اخذها من صيدلية خارج المستشفي تم الرفض والعذر ايضاً ممنوع من ادارة المستشفي كتابة اي وصفات خارجيه فقط يتم كتابة المتوفر في صيدلية المستشفي وهذا يخالف وثيقة الضمان الصحي والبند ١١ من الوثيقه. | BC44: The complaint is regarding the poor conduct of the healthcare provider and his clear and explicit fraud against the insurance company and the patient. After multiple visits to the hospital, it became clear that the child has lactose intolerance and needs low-lactose milk. NAN milk was prescribed to me by the hospital. The regular type and the formula were both used, and neither suited the child. I requested the doctor to write a prescription for another type of milk. He informed me that he is prohibited by the hospital from writing any prescription for an external pharmacy and that prescriptions are only written for medications and milk available in the hospital pharmacy. However, the milk available there did not suit the child. There was also a visit to the Emergency Department when the child had severe gas and indigestion due to the milk. An ultrasound and abdominal X-ray were performed, and a report was written by the doctor, but no treatment or alternative milk was dispensed, with the excuse that it was not available in the pharmacy. I requested a medical prescription so that I could obtain it from a pharmacy outside the hospital, but this was refused, again with the excuse that hospital administration prohibits writing any external prescriptions and that only what is available in the hospital pharmacy can be prescribed. This contradicts the Health Insurance Policy and Clause 11 of the policy | BE44: Patient | BY44: Total | BZ44: =BZ41+BZ42+BZ43 -> 24 | CA44: =CA43+CA42+CA41 -> 100.00%
A45: 4 | B45: 43 | C45: 2101 | D45: 30307349 | E45: وزارة الصحة | F45: العيادات الخارجية | G45: الإداري | H45: قسم التقارير الطبية | I45: 2024-01-22T13:34:00 | J45: امال ماهل القحطاني | K45: 24 Hours | L45: 2024-01-22 | M45: 13:34:00 | N45: امال ماهل القحطاني | O45: 2024-01-22 | P45: 13:34:00 | T45: 2024-01-22 | U45: 13:37:00 | V45: امال ماهل القحطاني | W45: 0.002083333333 | AA45: -45313.56736 | AE45: 0 | AJ45: -45313.56736 | AN45: -45313.56736 | AO45: 2024-01-22 | AP45: 14:37:00 | AQ45: 0.04166666666 | AR45: 2024-01-23 | AS45: 10:15:00 | AT45: امال ماهل القحطاني | AU45: 0.8597222222 | AX45: Management complaints | AY45: 3. Institutional Issues | AZ45: 3.7.Medical records | BA45: 3.7.7.Sick leave issues | BB45: لم يتم اصدار الاجازه الى الان للمريض بتاريخ 16/1/2024 | BC45: The sick leave certificate has not yet been issued for the patient as of 1/16/2024 | BE45: Patient | BY45: Medical | BZ45: 6 | CA45: =BZ45/BZ49 -> 
B46: 44 | C46: 2104 | D46: 30194469 | E46: مراجع | F46: التنويم | G46: الطبي | H46: قسم عمليات الولادة | I46: 2024-01-22T17:44:00 | J46: امال ماهل القحطاني | K46: 48 Hours | L46: 2024-01-22 | M46: 15:17:00 | N46: امال ماهل القحطاني | O46: 2024-01-22 | P46: 17:44:00 | Q46: 2024-01-23 | R46: 10:39:00 | S46: امال ماهل القحطاني | T46: 2024-01-23 | U46: 13:33:00 | V46: امال ماهل القحطاني | W46: 0.8256944444 | AA46: -45314.56458 | AE46: 0 | AJ46: -45314.56458 | AN46: -45314.56458 | AO46: 2024-01-23 | AP46: 16:45:00 | AQ46: 0.1333333333 | AR46: 2024-01-25 | AS46: 13:21:00 | AT46: امال ماهل القحطاني | AU46: 1.991666667 | AV46: 15251 | AW46: Dr WARDA ABDELHALIM HAMED ELEISAWY | AX46: Clinical complaints | AY46: 6. Humanness / Caring | AZ46: 4.2.Patient Disposition ( final plan) | BA46: 6.1.2.Neglect | BB46: تم طلب ابرة الظهر لزوجتي من قبل الطبيبه ورد المناوبه بقسم التوليد بدون الرجوع لملف المريضه علما ان الطبيبه المعالجه في الزيارات السابقه مروة حسني ابلغتنا بان ابرة الظهر لا يمكن اعطائها للمريضه بسبب حالتها الصحيه ووجود مشكلة بفقرات الظهر الاولى والخامسه علما انه تم النقاشوالشرح لطبيبه ورد بعدم اعطائها الابره ولكنها كانت مصره على ذلك وقمت بطلب الرجوع للملف والتاكد قبل عمل اي اجراء ابلغتني لا يوجد مشكله بين الفقرات واعطاء ابرة الظهر وبعد ذلك قمت برفض الاجراء لزوجتي واستدعاء طبيب التخديرللتاكد لعدم تجاوب الطبيبه معنا وعندما حضر دكتور التخدير قائًلا لا أستطيع أن أعطي الزوجة إبرة الظهر لوجود مشكلة صحية ممكن تؤدي لشلل لاسمح الله لوجود مشكله بالفقرات كما تم ذكره سابقا اضافة الى تعامل الطبيبه الغير لائق مع المريضه وعدم صبرها على المريضه حيث انها اول ولاده لزوجتي وكانت تجربه جدا سئيه مما واجهت من تعامل من الطبيبه اثناء الولاده .. بانتظار الافاده والتحقيق في ذلك . | BC46: A request was made for an epidural injection for my wife by the doctor on duty in the Maternity Department without referring to the patient’s file, noting that the treating doctor during previous visits, Dr. Marwa Hosny, had informed us that the epidural injection could not be given to the patient due to her health condition and the presence of a problem in the first and fifth lumbar vertebrae. It should be noted that the matter was discussed and explained to the duty doctor regarding not giving her the injection, but she insisted on proceeding. I requested that she refer back to the file and verify before performing any procedure. She informed me that there was no problem between the vertebrae and that the epidural would be administered. After that, I refused the procedure for my wife and called for the anesthesiologist to confirm due to the doctor’s lack of response to us. When the anesthesiologist arrived, he said, “I cannot give your wife the epidural injection due to a health issue that could lead to paralysis, God forbid, because of a problem in the vertebrae as previously mentioned.” In addition, the doctor’s inappropriate behavior toward the patient and her lack of patience with her should be noted, as this was my wife’s first delivery and it was a very bad experience due to the way the doctor treated her during labor. We are awaiting clarification and an investigation into this matter. | BE46: Patient | BY46: Admin | BZ46: 12 | CA46: =BZ46/BZ49 -> 
B47: 45 | C47: 2105 | D47: 30303597 | E47: وزارة الصحة | F47: العيادات الخارجية | G47: التمريض | H47: تمريض غرفة التطعيمات | I47: 2024-01-22T17:23:00 | J47: مي سليمان الدخيل | K47: 24 Hours | L47: 2024-01-22 | M47: 17:23:00 | N47: مي سليمان الدخيل | O47: 2024-01-22 | P47: 17:23:00 | T47: 2024-01-22 | U47: 17:42:00 | V47: مي سليمان الدخيل | W47: 0.01319444444 | AA47: -45313.7375 | AE47: 0 | AJ47: -45313.7375 | AN47: -45313.7375 | AO47: 2024-01-22 | AP47: 18:58:00 | AQ47: 0.05277777778 | AR47: 2024-01-22 | AS47: 19:20:00 | AT47: مي سليمان الدخيل | AU47: 0.06805555555 | AX47: Management complaints | AY47: 6. Humanness / Caring | AZ47: 2.1.Medication & Vaccination | BA47: 4.3.8.Vaccinating delay | BB47: لم يظهر التطعيم في النظام | BC47: vaccination not appear on the system | BE47: Patient | BY47: Nursing | BZ47: 6 | CA47: =BZ47/BZ49 -> 
B48: 46 | C48: 2107 | D48: 30301934 | E48: وزارة الصحة | F48: العيادات الخارجية | G48: التمريض | H48: تمريض غرفة التطعيمات | I48: 2024-01-23T14:42:00 | J48: مي سليمان الدخيل | K48: 24 Hours | L48: 2024-01-23 | M48: 14:42:00 | N48: مي سليمان الدخيل | O48: 2024-01-23 | P48: 14:42:00 | T48: 2024-01-23 | U48: 15:10:00 | V48: مي سليمان الدخيل | W48: 0.01944444444 | AA48: -45314.63194 | AE48: 0 | AJ48: -45314.63194 | AN48: -45314.63194 | AO48: 2024-01-23 | AP48: 15:10:00 | AQ48: 0 | AR48: 2024-01-23 | AS48: 17:37:00 | AT48: مي سليمان الدخيل | AU48: 0.1020833333 | AX48: Management complaints | AY48: 6. Humanness / Caring | AZ48: 2.1.Medication & Vaccination | BA48: 4.3.8.Vaccinating delay | BB48: لم يظهر التطعيم في النظام | BC48: vaccination not appear on the system | BE48: Patient
B49: 47 | C49: 2110 | D49: 30259928 | E49: مراجع | F49: العيادات الخارجية | G49: الطبي | H49: قسم المختبر | I49: 2024-01-23T20:00:00 | J49: مي سليمان الدخيل | K49: More than 72 Hours | L49: 2024-01-23 | M49: 19:54:00 | N49: مي سليمان الدخيل | O49: 2024-01-23 | P49: 20:00:00 | Q49: 2024-01-24 | R49: 19:35:00 | S49: مي سليمان الدخيل | T49: 2024-01-24 | U49: 19:39:00 | V49: مي سليمان الدخيل | W49: 0.9854166667 | X49: 2024-01-27 | Y49: 12:03:00 | Z49: مي سليمان الدخيل | AA49: 2.683333333 | AE49: -45318.50208 | AJ49: -45315.81875 | AN49: -45315.81875 | AO49: 2024-01-28 | AP49: 18:10:00 | AQ49: 3.938194444 | AR49: 2024-01-28 | AS49: 18:59:00 | AT49: مي سليمان الدخيل | AU49: 3.972222222 | AX49: Clinical complaints | AY49: 6. Humanness / Caring | AZ49: 1.3.Quality of Care | BA49: 2.3.4.Poor hand-hygiene | BB49: تم سحب عينة دم من قبل ممرض غير مهتم بنظافته ، للاسف لابس قلفز في يد واحدة و اليد الثانية بدون قلفز ، و اظافرة طويلة متسخة ، شعر رأسه طويل و فيه قشرة ! بالرغم من انه يعمل في مكان حساس قد يسبب ذلك خطر عند عملية سحب الدم ، لذا ارجو الاهتمام بهذا الموضوع . | BC49: Artistic dolls were drawn by a nurse with poor hygiene; unfortunately, she was wearing gloves on one hand and not on the other, and her nails were long and of high quality Nigerian hair! Although she works somewhere that could cause danger during the blood draw, I would like attention to this matter. | BE49: Patient
B50: 48 | C50: 2116 | D50: 20265882 | E50: مراجع | F50: التنويم | G50: الطبي | H50: قسم عمليات الولادة | I50: 2024-01-25T08:53:00 | J50: مي سليمان الدخيل | K50: More than 72 Hours | L50: 2024-01-24 | M50: 17:33:00 | N50: مي سليمان الدخيل | O50: 2024-01-25 | P50: 08:53:00 | Q50: 2024-01-25 | R50: 16:04:00 | S50: مي سليمان الدخيل | T50: 2024-01-25 | U50: 16:46:00 | V50: مي سليمان الدخيل | W50: 0.3284722222 | X50: 2024-01-27 | Y50: 12:02:00 | Z50: مي سليمان الدخيل | AA50: 1.802777778 | AB50: 2024-01-28 | AC50: 19:00:00 | AD50: مي سليمان الدخيل | AE50: 1.290277778 | AF50: 2024-01-29 | AG50: 14:42:00 | AH50: مي سليمان الدخيل | AI50: The complaint was escalated due to the department's failure to respond | AJ50: 3.913888889 | AN50: -45316.69861 | AQ50: -45316.69861 | AU50: -45316.69861 | AV50: 15804 | AW50: SARAH YOUSEF | AX50: Clinical complaints | AY50: 6. Humanness / Caring | AZ50: .3.Skills and Conduct | BA50: 1.3.1.Substandard clinical/nursing care | BB50: الطبيب المناوب سارة كان اسلوبها غير لائق بالتعامل وكانت تقوم بعكس تعليمات النيرس والدكتورة مروى واخصائي التخدير . بعد اعطائي ابرة التخدير بالظهر اخبرني اخصائي التخدير والنيرس بالجلوس ثابته دون التحرك لفتره من الزمن . لكن بعد ثواني اتت د.سارة وقالت استلقي على اليمين واخبرتني بطريقة غير محترمه ( تسمين. هذا لفه . لفي عاليمين بصوت مرتفع ولا احترمت المريض ) وبعدها بقليل اختلفت مؤشرات نبض الطفل ولم ينتبه احد الا اخصائي التخدير . وقام بالصراخ عليهم لعدم انتباههم لمؤشرات الطفل . كان يوم سيئ جدا بغرفة الولاده رقم 3 . وكانت الطبيبة المناوبة سارة تتعامل معي كل البعد عن مايسمى احترافيه بالعمل وتخالف تعليمات الدكتورة الاساسية مروى والنيرس الفلبينيه واخصائي التخدير. و ترى رأيها هو الصح وتخالف تعليمات الطاقم الطبي حولها وستكون هي السبب بعدم مراجعتي مره اخرى بالمستشفى كامل مع المريض من سوء التعامل الذي واجهته . | BC50: The on-duty doctor, Sarah, had an inappropriate manner of dealing with me and was acting contrary to the instructions of the nurse, Dr. Marwa, and the anesthesiologist. After receiving the epidural injection, the anesthesiologist and the nurse told me to sit still without moving for a period of time. But a few seconds later, Dr. Sarah came and told me to lie on my right side and spoke to me in an unprofessional manner (“turn to the right, roll over” in a loud voice, without respecting the patient). Shortly after, the baby’s vital signs changed, and no one noticed except the anesthesiologist, who shouted at them for not paying attention to the baby’s indicators. It was a very bad day in delivery room number 3. The on-duty doctor, Sarah, behaved in a way completely unprofessional, violating the main instructions of Dr. Marwa, the Filipino nurse, and the anesthesiologist. She insisted that her opinion was correct and disregarded the instructions of the surrounding medical staff. Her behavior will be the reason I will not visit this hospital again due to the poor treatment I faced. | BE50: Patient
B51: 49 | C51: 2118 | D51: 1730272 | E51: وزارة الصحة | F51: العيادات الخارجية | G51: الإداري | H51: استقبال العيادات الخارجية | I51: 2024-01-25T09:37:00 | J51: امال ماهل القحطاني | K51: 24 Hours | L51: 2024-01-25 | M51: 09:37:00 | N51: امال ماهل القحطاني | O51: 2024-01-25 | P51: 09:37:00 | T51: 2024-01-25 | U51: 09:37:00 | V51: امال ماهل القحطاني | W51: 0 | AA51: -45316.40069 | AE51: 0 | AJ51: -45316.40069 | AN51: -45316.40069 | AQ51: -45316.40069 | AR51: 2024-01-25 | AS51: 13:18:00 | AT51: امال ماهل القحطاني | AU51: 0.1534722222 | AX51: Management complaints | AY51: 5. Communication | AZ51: 5.1.Patient-staff communication | BA51: 4.1.2.Poor availability and scheduling | BB51: تأخير في الرد من قبل الاداره وعند الحضور وطلب التواصل لم يكن هناك تجاوب من قبل المستشفى | BC51: There was a delay in response from the administration, and upon arrival and requesting communication, there was no response from the hospital. | BE51: Patient
B52: 50 | C52: 2121 | D52: 30207627 | E52: وزارة الصحة | F52: العيادات الخارجية | G52: الإداري | H52: قسم التقارير الطبية | I52: 2024-01-27T15:33:00 | J52: ابرار بندر الشمري | K52: More than 72 Hours | L52: 2024-01-27 | M52: 15:33:00 | N52: ابرار بندر الشمري | O52: 2024-01-27 | P52: 15:33:00 | T52: 2024-01-27 | U52: 15:46:00 | V52: ابرار بندر الشمري | W52: 0.009027777778 | AA52: -45318.65694 | AE52: 0 | AJ52: -45318.65694 | AK52: 2024-01-30 | AL52: 18:45:00 | AM52: ابرار بندر الشمري | AN52: 3.124305556 | AO52: 2024-01-27 | AP52: 16:42:00 | AQ52: 0.03888888888 | AU52: -45318.65694 | AX52: Management complaints | AY52: 4. Accessibility | AZ52: 3.7.Medical records | BA52: 3.1.4.Required Service not obtained | BB52: رفض اصدار تقرير طبي من شهر 5 . | BC52: Refusal to issue a medical report from May.
B53: 51 | C53: 2122 | D53: 30110473 | E53: وزارة الصحة | F53: الطوارئ | G53: الإداري | H53: استقبال الطوارئ | I53: 2024-01-27T15:46:00 | J53: ابرار بندر الشمري | K53: More than 72 Hours | L53: 2024-01-27 | M53: 15:46:00 | N53: ابرار بندر الشمري | O53: 2024-01-27 | P53: 15:46:00 | T53: 2024-01-27 | U53: 15:56:00 | V53: ابرار بندر الشمري | W53: 0.006944444445 | X53: 2024-01-28 | Y53: 18:21:00 | Z53: ابرار بندر الشمري | AA53: 1.100694444 | AB53: 2024-01-30 | AC53: 17:41:00 | AD53: امال ماهل القحطاني | AE53: 1.972222222 | AJ53: -45318.66389 | AN53: -45318.66389 | AO53: 2024-01-30 | AP53: 20:18:00 | AQ53: 3.181944444 | AR53: 2024-02-01 | AS53: 13:06:00 | AT53: ابرار بندر الشمري | AU53: 4.881944444 | AX53: Management complaints | AY53: 6. Humanness / Caring | AZ53: 1.3.Quality of Care | BA53: 4.1.3.Patient admission refusal | BB53: تم حضور المريض الى الطوارى وكانت الحالة طارئه ولم يتم استقبال الحالة . | BC53: The patient was brought to the emergency room, and the case was an emergency, but the patient was not admitted. | BE53: Patient
B54: 52 | C54: 2123 | D54: 30239611 | E54: ذوي المراجع | F54: التنويم | G54: الخدمات المساندة | H54: قسم النظافة | I54: 2024-01-27T17:11:00 | J54: مي سليمان الدخيل | K54: 24 Hours | L54: 2024-01-27 | M54: 16:49:00 | N54: مي سليمان الدخيل | O54: 2024-01-27 | P54: 17:11:00 | Q54: 2024-01-28 | R54: 20:14:00 | S54: مي سليمان الدخيل | T54: 2024-01-29 | U54: 14:38:00 | V54: مي سليمان الدخيل | W54: 1.89375 | AA54: -45320.60972 | AE54: 0 | AJ54: -45320.60972 | AK54: 2024-01-30 | AL54: 13:28:00 | AM54: ابرار بندر الشمري | AN54: 0.9513888889 | AO54: 2024-01-29 | AP54: 14:48:00 | AQ54: 0.006944444445 | AU54: -45320.60972 | AX54: Clinical complaints | AY54: 6. Humanness / Caring | AZ54: 1.3.Quality of Care | BA54: 3.2.2.Poor cleanliness/sanitizing | BB54: السلام عليكم نفيد اني بهذا اليوم رايت بقع من الدم بالبطانيه وكانت جديده وطلبنا تغييرها ووجدنا بقع مره اخرى فطلبنا تغيرها للمره الثالثه لذا نرجو منكم المحافظه على النظافه بشكل عام لكون ذلك مسبب للامراض. | BC54: Peace be upon you. We would like to inform you that today we found bloodstains on a new blanket. We asked for it to be changed, but we found more stains and asked for it to be changed a third time. Therefore, we urge you to maintain cleanliness in general, as this can cause illness. | BE54: Patient
B55: 53 | C55: 2126 | D55: 30299442 | E55: وزارة الصحة | F55: العيادات الخارجية | G55: الطبي | H55: عيادات الأسنان | I55: 2024-01-28T14:40:00 | J55: مي سليمان الدخيل | K55: 24 Hours | L55: 2024-01-28 | M55: 14:40:00 | N55: مي سليمان الدخيل | O55: 2024-01-28 | P55: 14:40:00 | T55: 2024-01-28 | U55: 14:40:00 | V55: مي سليمان الدخيل | W55: 0 | AA55: -45319.61111 | AE55: 0 | AJ55: -45319.61111 | AN55: -45319.61111 | AQ55: -45319.61111 | AR55: 2024-01-28 | AS55: 14:59:00 | AT55: مي سليمان الدخيل | AU55: 0.01319444444 | AX55: Management complaints | AY55: 6. Humanness / Caring | AZ55: 1.3.Quality of Care | BA55: 3.1.4.Required Service not obtained | BB55: المستفيده تفيد انه تم دفع مبلغ التركيبه وجات على الموعد ولم يتم خدمتها واعطائها التركيبه | BC55: The beneficiary reports that she paid for the treatment and arrived on time, but was not served or given the treatment. | BE55: Patient
B56: 54 | C56: 2127 | D56: 1411694 | E56: وزارة الصحة | F56: العيادات الخارجية | G56: الإداري | H56: استقبال العيادات الخارجية | I56: 2024-01-28T15:46:00 | J56: مي سليمان الدخيل | K56: More than 72 Hours | L56: 2024-01-28 | M56: 15:46:00 | N56: مي سليمان الدخيل | O56: 2024-01-28 | P56: 15:46:00 | T56: 2024-01-28 | U56: 16:01:00 | V56: مي سليمان الدخيل | W56: 0.01041666666 | X56: 2024-01-29 | Y56: 14:07:00 | Z56: مي سليمان الدخيل | AA56: 0.9208333333 | AB56: 2024-01-30 | AC56: 18:36:00 | AD56: مي سليمان الدخيل | AE56: 1.186805556 | AJ56: -45319.66736 | AN56: -45319.66736 | AO56: 2024-02-01 | AP56: 19:31:00 | AQ56: 4.145833333 | AR56: 2024-02-01 | AS56: 20:37:00 | AT56: مي سليمان الدخيل | AU56: 4.191666667 | AX56: Management complaints | AY56: 5. Communication | AZ56: 3.4.Finance and Billing | BA56: 3.4.3.Calculate Additional amount | BB56: تم الحضور لموعد بتاريخ 12/31 وبتاريخ 13/01 تمت الزيارة ايضا ولم تكمل 14 يوم ولكن طلبو منها تدفع لانها غيرت تأمينها | BC56: An appointment was scheduled for 12/31, and another visit took place on 13/01. The 14 days were not completed, but they asked her to pay because she had changed her insurance. | BE56: Patient
B57: 56 | C57: 2128 | D57: 30308109 | E57: وزارة الصحة | F57: العيادات الخارجية | G57: الطبي | H57: قسم الصيدلية | I57: 2024-01-28T16:01:00 | J57: مي سليمان الدخيل | K57: More than 72 Hours | L57: 2024-01-28 | M57: 16:01:00 | N57: مي سليمان الدخيل | O57: 2024-01-28 | P57: 16:01:00 | T57: 2024-01-28 | U57: 18:22:00 | V57: ابرار بندر الشمري | W57: 0.09791666667 | X57: 2024-01-29 | Y57: 14:06:00 | Z57: مي سليمان الدخيل | AA57: 0.8222222222 | AB57: 2024-01-30 | AC57: 18:36:00 | AD57: مي سليمان الدخيل | AE57: 1.1875 | AJ57: -45319.76528 | AN57: -45319.76528 | AO57: 2024-02-01 | AP57: 15:16:00 | AQ57: 3.870833333 | AR57: 2024-02-03 | AS57: 19:24:00 | AT57: مي سليمان الدخيل | AU57: 6.043055556 | AX57: Management complaints | AY57: 6. Humanness / Caring | AZ57: 1.4.Treatment | BA57: 2.1.9.Refusal to dispense medications | BB57: افاد المريض برفض صرف الدواء جرعات الحديد من قبل صيدلية بالمنشأة وهي مصروفة من قبل الطبيب المعالج بالمنشأه وهو متضرر بهذا الخصوص. | BC57: The patient reported that the pharmacy at the facility refused to dispense the iron medication doses, which were prescribed by the treating physician at the facility, and he is harmed in this regard. | BE57: Patient
B58: 57 | C58: 2130 | D58: 30098711 | E58: وزارة الصحة | F58: العيادات الخارجية | G58: الطبي | H58: عيادات الجهاز الهضمي والمناظير | I58: 2024-01-28T18:22:00 | J58: ابرار بندر الشمري | K58: 24 Hours | L58: 2024-01-28 | M58: 18:22:00 | N58: ابرار بندر الشمري | O58: 2024-01-28 | P58: 18:22:00 | T58: 2024-01-28 | U58: 18:22:00 | V58: ابرار بندر الشمري | W58: 0 | AA58: -45319.76528 | AE58: 0 | AJ58: -45319.76528 | AN58: -45319.76528 | AQ58: -45319.76528 | AR58: 2024-01-28 | AS58: 18:34:00 | AT58: ابرار بندر الشمري | AU58: 0.008333333331 | AX58: Management complaints | AY58: 4. Accessibility | AZ58: 3.7.Medical records | BA58: 5.1.1.Miscommunication with Patient | BB58: عدم تسليم السي دي تبع المنظار . | BC58: The patient reported that the pharmacy at the facility refused to dispense the iron medication doses, which were prescribed by the treating physician at the facility, and he is harmed in this regard. | BE58: Patient
B59: 58 | C59: 2134 | D59: 30075758 | E59: مراجع | F59: العيادات الخارجية | G59: الطبي | H59: عيادات جراحة الأنف وأذن وحنجرة | I59: 2024-01-28T23:20:00 | J59: ابرار بندر الشمري | K59: 48 Hours | L59: 2024-01-28 | M59: 18:53:00 | N59: ابرار بندر الشمري | O59: 2024-01-28 | P59: 23:20:00 | Q59: 2024-01-29 | R59: 12:59:00 | S59: ابرار بندر الشمري | T59: 2024-01-29 | U59: 13:00:00 | V59: ابرار بندر الشمري | W59: 0.5694444444 | AA59: -45320.54167 | AE59: 0 | AJ59: -45320.54167 | AN59: -45320.54167 | AQ59: -45320.54167 | AR59: 2024-01-30 | AS59: 17:36:00 | AT59: امال ماهل القحطاني | AU59: 1.191666667 | AV59: 90598 | AW59: Dr ABDULAZIZ SALEH LABALLA | AX59: Clinical complaints | AY59: 6. Humanness / Caring | AZ59: 1.3.Quality of Care | BA59: 2.2.11.Wrong surgery | BB59: العملية المفترض اجراءها عملية تعديل جزئي للحاجز الانفي وتصغير قرنيات، بعد العملية وبعد ذهاب التورم اتضح ان هناك ثقب غريب في الانف (بشكل طولي) حيث تتجمع وتستقر فيه الافرازات، تنظيفه صعب ولا اعرف سبب وجود هذا الثقب الذي لا يخدم هدف العملية بأي شكل حتى انه ليس قريب من مكان الانحراف! بالاضافة الى ظهور صوت صفير من الانف بشكل متفاوت من وقت الى آخر بسبب هذا الثقب. | BC59: The procedure I was supposed to undergo was a partial septoplasty and turbinate reduction. After the surgery and once the swelling subsided, it became clear that there was an unusual hole in my nose (longitudinally) where secretions collect and settle. Cleaning it is difficult, and I don't know the reason for this hole, which doesn't serve the purpose of the surgery at all, and isn't even close to the deviated septum! In addition, I experience intermittent whistling sounds from my nose due to this hole. | BE59: Patient
B60: 59 | C60: 2137 | D60: 30293609 | E60: وزارة الصحة | F60: العيادات الخارجية | G60: التمريض | H60: تمريض غرفة التطعيمات | I60: 2024-01-28T20:48:00 | J60: مي سليمان الدخيل | K60: 24 Hours | L60: 2024-01-28 | M60: 20:48:00 | N60: مي سليمان الدخيل | O60: 2024-01-28 | P60: 20:48:00 | T60: 2024-01-28 | U60: 20:55:00 | V60: مي سليمان الدخيل | W60: 0.004861111112 | AA60: -45319.87153 | AE60: 0 | AJ60: -45319.87153 | AN60: -45319.87153 | AO60: 2024-01-29 | AP60: 12:11:00 | AR60: 2024-01-29 | AS60: 14:08:00 | AT60: مي سليمان الدخيل | AU60: 0.7173611111 | AX60: Clinical complaints | AY60: 6. Humanness / Caring | AZ60: 2.1.Medication & Vaccination | BA60: 4.3.8.Vaccinating delay | BB60: لم يظهر التطعيم في النظام | BC60: vaccination not appear on the system. | BE60: Patient
A61: 5 | B61: 60 | C61: 2141 | D61: 1760166 | E61: مجلس الضمان الصحي | F61: العيادات الخارجية | G61: الإداري | H61: استقبال العيادات الخارجية | I61: 2024-01-30T12:48:00 | J61: ابرار بندر الشمري | K61: More than 72 Hours | L61: 2024-01-30 | M61: 12:48:00 | N61: ابرار بندر الشمري | O61: 2024-01-30 | P61: 12:48:00 | T61: 2024-01-30 | U61: 12:57:00 | V61: ابرار بندر الشمري | W61: 0.006249999999 | X61: 2024-01-30 | Y61: 17:35:00 | Z61: امال ماهل القحطاني | AA61: 0.1930555556 | AB61: 2024-02-01 | AC61: 12:50:00 | AD61: ابرار بندر الشمري | AE61: 1.802083333 | AJ61: -45321.53958 | AN61: -45321.53958 | AO61: 2024-01-31 | AP61: 09:18:00 | AR61: 2024-02-04 | AS61: 13:04:00 | AT61: امال ماهل القحطاني | AU61: 5.004861111 | AX61: Management complaints | AY61: 1. Quality | AZ61: 5.1.Patient-staff communication | BA61: 3.4.2.Miscalculation | BB61: كان عند زوجتي كشف في مستشفي الحمادي فرع النزهة وقام ممثل الخدمة بمحاسبتي علي الكشف والدواء بأكثر من ١٠ ٪؜ وعند سؤالي عن كيفية حساب النسبة تم الرد بأنني يجب أن اتواصل مع خدمة عملاء التعاونية ليقوموا بالرد علي استفساري علما بأن النسبة ظاهرة عنده علي النظام ١٠٪؜ بالفعل قمت بالتواصل مع خدمة عملاء التعاونية وقاموا بتوضيح ان المحاسبات تكون عن طريق نظام المستشفي واوصوا بتقديم شكوي علي مزود الخدمة . | BC61: My wife had a consultation at Al Hammadi Hospital, Al Nozha branch, and the service representative charged me more than 10% for the consultation and medication. When I asked how this percentage was calculated, I was told I should contact the cooperative's customer service for clarification, even though the percentage appeared as 10% on their system. I did contact the cooperative's customer service, and they explained that the billing is done through the hospital's system and recommended that I file a complaint against the service provider. | BE61: Patient
B62: 61 | C62: 2142 | D62: 30239611 | E62: ذوي المراجع | F62: التنويم | G62: التمريض | H62: تمريض تنويم النساء والولادة | I62: 2024-01-30T13:28:00 | J62: ابرار بندر الشمري | K62: More than 72 Hours | L62: 2024-01-30 | M62: 13:28:00 | N62: ابرار بندر الشمري | O62: 2024-01-30 | P62: 13:28:00 | T62: 2024-01-30 | U62: 14:02:00 | V62: ابرار بندر الشمري | W62: 0.02361111111 | X62: 2024-02-01 | Y62: 20:21:00 | Z62: مي سليمان الدخيل | AA62: 2.263194444 | AE62: -45323.84792 | AJ62: -45321.58472 | AN62: -45321.58472 | AO62: 2024-02-07 | AP62: 14:52:00 | AR62: 2024-02-11 | AS62: 15:13:00 | AT62: مي سليمان الدخيل | AU62: 12.04930556 | AX62: Clinical complaints | AY62: 6. Humanness / Caring | AZ62: 1.3.Quality of Care | BA62: 3.2.2.Poor cleanliness/sanitizing | BB62: مرحباً، لقد وجدت بقع دم على البطانية ثلاث مرات، يُرجى التأكد من نظافة البطانية وتغييرها يومياً للمرضى لأن ذلك قد يُسبب العدوى. | BC62: Hello, I found blood stains on the blanket 3 times, please make sure blanket been clean and change it everyday to patients because that might make a disease | BE62: Patient
B63: 62 | C63: 2143 | D63: 30239611 | E63: ذوي المراجع | F63: التنويم | G63: التمريض | H63: عيادات جراحة العيون | I63: 2024-01-30T13:44:00 | J63: ابرار بندر الشمري | K63: 24 Hours | L63: 2024-01-30 | M63: 13:44:00 | N63: ابرار بندر الشمري | O63: 2024-01-30 | P63: 13:44:00 | T63: 2024-01-30 | U63: 13:44:00 | V63: ابرار بندر الشمري | W63: 0 | AA63: -45321.57222 | AE63: 0 | AJ63: -45321.57222 | AK63: 2024-01-30 | AL63: 13:53:00 | AN63: 0.006249999999 | AU63: -45321.57222 | AX63: Clinical complaints | AY63: 6. Humanness / Caring | AZ63: 1.3.Quality of Care | BA63: 3.2.2.Poor cleanliness/sanitizing | BB63: مرحباً، لقد وجدت بقع دم على البطانية ثلاث مرات، يُرجى التأكد من نظافة البطانية وتغييرها يومياً للمرضى لأن ذلك قد يُسبب العدوى. | BC63: Hello, I found blood stains on the blanket 3 times, please make sure blanket been clean and change it everyday to patients because that might make a disease | BE63: Patient
B64: 63 | C64: 2149 | D64: 30302944 | E64: وزارة الصحة | F64: العيادات الخارجية | G64: التمريض | H64: تمريض غرفة التطعيمات | I64: 2024-01-31T13:56:00 | J64: ابرار بندر الشمري | K64: 24 Hours | L64: 2024-01-31 | M64: 13:56:00 | N64: ابرار بندر الشمري | O64: 2024-01-31 | P64: 13:56:00 | T64: 2024-01-31 | U64: 14:42:00 | V64: ابرار بندر الشمري | W64: 0.03194444445 | AA64: -45322.6125 | AE64: 0 | AJ64: -45322.6125 | AN64: -45322.6125 | AO64: 2024-01-31 | AP64: 18:47:00 | AR64: 2024-02-01 | AS64: 12:26:00 | AT64: ابرار بندر الشمري | AU64: 0.9055555556 | AX64: Clinical complaints | AY64: 6. Humanness / Caring | AZ64: 2.1.Medication & Vaccination | BA64: 4.3.8.Vaccinating delay | BB64: لم يظهر التطعيم في النظام | BC64: the vaccination is not in the system 1212372369 iqamaa for baby | BE64: Patient
B65: 64 | C65: 2150 | D65: 30217804 | E65: وزارة الصحة | F65: العيادات الخارجية | G65: التمريض | H65: تمريض غرفة التطعيمات | I65: 2024-01-31T15:51:00 | J65: امال ماهل القحطاني | K65: 72 Hours | L65: 2024-01-31 | M65: 15:51:00 | N65: امال ماهل القحطاني | O65: 2024-01-31 | P65: 15:51:00 | T65: 2024-02-01 | U65: 14:29:00 | V65: امال ماهل القحطاني | W65: 0.9430555556 | AA65: -45323.60347 | AE65: 0 | AJ65: -45323.60347 | AN65: -45323.60347 | AO65: 2024-02-03 | AP65: 10:45:00 | AR65: 2024-02-03 | AS65: 17:23:00 | AT65: امال ماهل القحطاني | AU65: 2.120833333 | AX65: Clinical complaints | AY65: 6. Humanness / Caring | AZ65: 2.1.Medication & Vaccination | BA65: 4.3.8.Vaccinating delay | BB65: لم يظهر التطعيم في النظام رقم هوية الأم: 1078586979 / رقم هوية الطفل: 1211838014 رتيل فرج | BC65: vaccination not avalible on the system ID for mom :1078586979 / ID for baby: 1211838014 Rutayl Faraj file: 30302913/ vaccination not avalible | BE65: Patient
B66: 65 | C66: 2151 | D66: 30049850 | E66: مجلس الضمان الصحي | F66: العيادات الخارجية | G66: الإداري | H66: قسم الموافقات الطبية | I66: 2024-01-31T15:58:00 | J66: امال ماهل القحطاني | K66: 24 Hours | L66: 2024-01-31 | M66: 15:58:00 | N66: امال ماهل القحطاني | O66: 2024-01-31 | P66: 15:58:00 | T66: 2024-01-31 | U66: 16:02:00 | V66: امال ماهل القحطاني | W66: 0.00277777778 | X66: 2024-02-01 | Y66: 10:51:00 | Z66: امال ماهل القحطاني | AA66: 0.7840277778 | AE66: -45323.45208 | AJ66: -45322.66806 | AN66: -45322.66806 | AO66: 2024-02-01 | AP66: 11:29:00 | AR66: 2024-02-01 | AS66: 14:00:00 | AT66: امال ماهل القحطاني | AU66: 0.9152777778 | AX66: Management complaints | AY66: 1. Quality | AZ66: 3.4.Finance and Billing | BA66: 6.4.2.No/Invalid consent obtained | BB66: تم رفض رفع طلب موافقه لي من قبل قسم الموافقات تاريخ 20-1-2024 | BC66: The request for prior approval was rejected on 20-1-2024 | BE66: Patient
B67: 66 | C67: 2153 | D67: 1842668 | E67: مراجع | F67: العيادات الخارجية | G67: الإداري | H67: قسم الموافقات الطبية | I67: 2024-01-31T20:34:00 | J67: مي سليمان الدخيل | K67: 48 Hours | L67: 2024-01-31 | M67: 20:06:00 | N67: مي سليمان الدخيل | O67: 2024-01-31 | P67: 20:34:00 | Q67: 2024-02-08 | R67: 15:46:00 | S67: ابرار بندر الشمري | T67: 2024-02-08 | U67: 16:20:00 | V67: ابرار بندر الشمري | W67: =(U67+T67)-(P67+O67) -> 7.823611111 | AA67: =(Y67+X67)-(U67+T67) -> -45330.68056 | AE67: =(AC67+AB67)-(Y67+X67) -> 0 | AJ67: -45330.68056 | AN67: -45330.68056 | AO67: 2024-02-10 | AP67: 09:05:00 | AR67: 2024-02-10 | AS67: 14:36:00 | AT67: ابرار بندر الشمري | AU67: =(AS67+AR67)-(U67+T67) -> 1.927777778 | AX67: Management complaints | AY67: 1. Quality | AZ67: 3.4.Finance and Billing | BA67: 6.4.2.No/Invalid consent obtained | BB67: المستشفى رفعت عدة طلبات لعمليات مختلفة من ضمنها خلع التركيبة ومعالجة العصب للسن وتم مواجهة مشاكل مستمرة مع شركة التأمين بحيث يتم الرفض للعمليات او القبول الجزئي بسبب عدم توافق الكود المرفوع من المستشفى بالكود الموجود بشركة التأمين. والآن المشكلة انعادت مرة اخرى بحيث تم رفع طلب لاستشارة وتركيب الكراون وتم رفضه او قبوله جزئيًا والقبول الجزئي يكون على الاستشارة ويتم رفض تركيب الكراون باستمرار. وتم التوضيح بأن اول سبب للرفض من قبل شركة التأمين كان عدم وجود رقم الضرس بالطلب المرفوع والطلبات الثانية والثالثة ... تم رفضها بسبب ان الكود المدخل بالطلب المرسل لشركة التأمين لا يتوافق وغير صحيح. تم زيارة قسم الموافقات لحل الاشكالية ولم يتم ايجاد حل. ذهبت لمدير الموافقات لحل الإشكالية وتم التأكيد لي بأن اتضح له بالنظام ان الكود المرفوع سابقًا غلط ويجب تغييره وتم التواصل امامي بقسم الاسنان وتمت الاتفاقية بينهم بان سيتم تزويده بقائمة الكودات المحدثة الصحيحة ليتم رفع الطلب من جديد. لكن بسبب عدد الطلبات التي تم رفعها والتي تم قبولها جزئيًا باستمرار فقد تم استنفاذ جميع رصيد الاسنان عندي وتم التواصل مع شركة التأمين بعد رفع شكوى عليهم وتم التوضيح بأن السبب الرئيسي لاستنفاذ الرصيد هو الرفع المستمر للطلبات التي تشمل (استشارة وتركيب الكراون)، التي تم قبولها جزئيًا بشكل مستمر مما سبب باستنفاد الرصيد. نأمل منكم حل الاشكالية والغاء الطلبات المسبقة المرفوعة بالكود الخطأ والتي تشمل استشارات لم تتم وتزويد شركة التأمين بالكود الصحيح لعملية تركيب الكراون ليتم القبول عليها من قبلهم. المطلوب حاليا الغاء جميع الطلبات الخاطئة التي تم رفعها مسبقًا ليتم استرجاع قيمتها برصيدي عند شركة التأمين. وتزويد شركة التأمين بالكود الصحيح للعملية ليتم معالجة الضرس بشكل صحي وسليم. | BC67: The hospital submitted several requests for different procedures, including crown removal and root canal treatment. Continuous problems were encountered with the insurance company, as procedures were either rejected or partially approved due to the hospital’s submitted code not matching the code in the insurance system. The problem has recurred, as a request was submitted for a consultation and crown placement, and it was either rejected or partially approved—the partial approval covering only the consultation, while the crown placement continues to be rejected. It was clarified that the first reason for rejection by the insurance company was the absence of the tooth number in the submitted request. The second, third, and subsequent requests were rejected because the code submitted did not match or was incorrect. Visits were made to the approvals department to resolve the issue, but no solution was found. I went to the Approvals Manager, who confirmed that the previously submitted code was incorrect and needed to be updated. He communicated with the dental department in my presence, and it was agreed that the updated correct list of codes would be provided to resubmit the request. However, due to the number of requests submitted and the continuous partial approvals, all my dental coverage balance has been exhausted. After filing a complaint with the insurance company, it was clarified that the main reason for the exhausted balance was the repeated submission of requests for (consultation and crown placement), which were continuously partially approved, causing the depletion of the coverage. We hope that the issue can be resolved by canceling all previously submitted requests with incorrect codes that included consultations that were not completed, and by providing the insurance company with the correct code for crown placement so it can be approved by them. The current request is to cancel all previously submitted incorrect requests so that their value is restored to my insurance balance and to provide the insurance company with the correct code for the procedure so the tooth can be treated properly and safely | BE67: Patient
A71: Week 1 | B71: 19 | E71: MOH | F71: 24 | G71: =F71/F75 -> 36.92% | I71: Medical | J71: بنك الدم | K71: 1 | X71: Employee Name | Y71: Number of complaints | Z71: Total Percentage | AA71: 24 Hours | AB71: 48 Hours | AC71: 72 Hours | AD71: More than 72 hours | AE71: Total | AF71: Self | AN71: الشكاوي المصعدة | AO71: خلال 72 | AP71: مبكرة | AQ71: متأخرة | AR71: الموظف المسؤول
A72: Week 2 | B72: 10 | E72: CCHI | F72: 8 | G72: =F72/F75 -> 12.31% | J72: تنويم الاطفال | K72: 2 | Q72: Number of delays in sending the complaint (delay in activation) | S72: Percentage | T72: Activated within two hours | U72: Percentage | V72: Total | X72: ابرار بندر الشمري | Y72: 23 | Z72: =Y72/Y78 -> 35.38% | AA72: 12 | AB72: 2 | AC72: 3 | AD72: 6 | AE72: 23 | AF72: 0 | AN72: 2 | AR72: ابرار بندر الشمري | AT72: Medical | AU72: بنك الدم | AV72: 4.41 | AW72: 4.41
A73: Week 3 | B73: 13 | E73: Patients | F73: 18 | G73: =F73/F75 -> 27.69% | J73: تنويم النساء والولادة | K73: 1 | X73: Percentage | AA73: =AA72/Y72 -> 52.17% | AB73: =AB72/Y72 -> 8.70% | AC73: =AC72/Y72 -> 13.04% | AD73: =AD72/Y72 -> 26.09% | AR73: امال ماهل القحطاني | AU73: تنويم الاطفال | AV73: =(AW73+AX73)/2 -> 1.575 | AW73: 0.85 | AX73: 2.30
A74: Week 4 | B74: 16 | E74: Patient’s relatives | F74: 15 | G74: =F74/F75 -> 23.08% | J74: عيادات الاسنان | K74: 1 | Q74: ابرار بندر الشمري | R74: 1 | S74: =R74/V77 -> 1.54% | T74: 22 | U74: =T74/V77 -> 33.85% | V74: =T74+R74 -> 23 | X74: امال ماهل القحطاني | Y74: 9 | Z74: =Y74/Y78 -> 13.85% | AA74: 4 | AB74: 1 | AC74: 1 | AD74: 3 | AE74: 9 | AF74: 1 | AQ74: 2 | AR74: مي سليمان الدخيل | AU74: تنويم النساء والولادة | AV74: 3.8 | AW74: 3.8
A75: Week 5 | B75: 7 | E75: Total | F75: =F71+F72+F73+F74 -> 65 | G75: =G71+G72+G73+G74 -> 100% | J75: عيادات الاطفال | K75: 5 | Q75: امال ماهل القحطاني | R75: 4 | S75: =R75/V77 -> 6.15% | T75: 5 | U75: =T75/V77 -> 7.69% | V75: =T75+R75 -> 9 | X75: Percentage | AA75: =AA74/Y74 -> 44.44% | AB75: =AB74/Y74 -> 11.11% | AC75: =AC74/Y74 -> 11.11% | AD75: =AD74/Y74 -> 33.33% | AU75: عيادات الاسنان | AV75: 0.007 | AW75: 0.007
A76: Total | B76: =B71+B75+B74+ B73+B72 -> 65 | E76: In-Patient | F76: 11 | G76: =F76/F79 -> 16.92% | J76: عيادات االجراحة العامة اطفال | K76: 1 | Q76: مي سليمان الدخيل | R76: 20 | S76: =R76/V77 -> 30.77% | T76: 13 | U76: =T76/V77 -> 20.00% | V76: =R76+T76 -> 33 | X76: مي سليمان الدخيل | Y76: 33 | Z76: =Y76/Y78 -> 50.77% | AA76: 13 | AB76: 6 | AC76: 2 | AD76: 12 | AE76: 33 | AF76: 1 | AU76: عيادات الاطفال | AV76: =(AW76+AX76+AY76+AZ76+BA76)/5 -> 4.414 | AW76: 3.17 | AX76: 2.30 | AY76: 7.9 | AZ76: 5.9 | BA76: 2.8
E77: Out-Patient | F77: 52 | G77: =F77/F79 -> 80.00% | J77: عيادات الجهاز الهضمي والمناظير | K77: 1 | Q77: Total | R77: =R76+R75+R74 -> 25 | S77: =S74+S75+S76 -> 38.46% | T77: =T74+T75+T76 -> 40 | U77: =U74+U75+U76 -> 61.54% | V77: =V74+V75+V76 -> 65 | X77: Percentage | AA77: =AA76/Y76 -> 39.39% | AB77: =AB76/Y76 -> 18.18% | AC77: =AC76/Y76 -> 6.06% | AD77: =AD76/Y76 -> 36.36% | AN77: الشكاوي المغلقة | AO77: خلال 72 | AP77: مبكرة | AQ77: متأخرة | AR77: الموظف المسؤول | AU77: عيادات االجراحة العامة اطفال | AV77: 1.29 | AW77: 1.29
E78: ER | F78: 2 | G78: =F78/F79 -> 3.08% | J78: عيادات العيون | K78: 2 | X78: Total | Y78: =Y72+Y74+Y76 -> 65 | Z78: =Z74+Z72+Z76 -> 100.00% | AA78: =AA74+AA72+AA76 -> 29 | AB78: 9 | AC78: 6 | AD78: 21 | AE78: 65 | AF78: =AF72+AF74+AF76 -> 2 | AN78: 8 | AP78: 5 | AR78: ابرار بندر الشمري | AU78: عيادات الجهاز الهضمي والمناظير | AV78: 0.005 | AW78: 0.005
A79: 1st Half | B79: 29 | E79: Total | F79: =F76+F77+F78 -> 65 | G79: =G76+G77+G78 -> 100% | J79: عيادات النساء والولادة | K79: 2 | AA79: =AA78/AE78 -> 44.62% | AB79: =AB78/AE78 -> 13.85% | AC79: =AC78/AE78 -> 9.23% | AD79: =AD78/AE78 -> 32.31% | AQ79: 1 | AR79: امال ماهل القحطاني | AU79: عيادات العيون | AV79: =(AW79+AX79)/2 -> 1.27 | AW79: 0.75 | AX79: 1.79
A80: 2nd Half | B80: 36 | E80: Medical | F80: 32 | G80: =F80/F84 -> 49.23% | J80: عيادات جراحة انف اذن حنجرة | K80: 1 | AO80: 1 | AQ80: 1 | AR80: مي سليمان الدخيل | AU80: عيادات النساء والولادة | AV80: =(AW80+AX80)/2 -> 87.98 | AW80: 170 | AX80: 5.96
A81: Total | B81: =B79+B80 -> 65 | E81: Admin | F81: 24 | G81: =F81/F84 -> 36.92% | J81: عيادات جراحة الاوعية الدموية | K81: 1 | AU81: عيادات جراحة انف اذن حنجرة | AV81: 1.18 | AW81: 1.18
E82: Nursing | F82: 8 | G82: =F82/F84 -> 12.31% | J82: عيادات جراحة المسالك البولية | K82: 1 | AU82: عيادات جراحة الاوعية الدموية | AV82: 1.84 | AW82: 1.84
E83: Support Services | F83: 1 | G83: =F83/F84 -> 1.54% | J83: عيادات جراحة المسالك البولية اطفال | K83: 1 | AU83: عيادات جراحة المسالك البولية | AV83: 6.9 | AW83: 6.9
E84: Total | F84: =F80+F81+F82+F83 -> 65 | G84: =G80+G81+G82+G83 -> 100% | J84: قسم الصيدلية | K84: 2 | AU84: عيادات جراحة المسالك البولية اطفال
J85: قسم المختبر | K85: 7 | AU85: قسم الصيدلية | AV85: =(AW85+AX85)/2 -> 5.1 | AW85: 4.2 | AX85: 6.00
J86: قسم عمليات الولادة | K86: 2 | AU86: قسم المختبر | AV86: =(AY86+AZ86+BA86+BB86+BC86)/5 -> 2.701 | AY86: 0.72 | AZ86: 0.87 | BA86: 8.0 | BB86: 0.015 | BC86: 3.9
J87: وحدة العناية المتوسطة | K87: 1 | AU87: قسم عمليات الولادة | AV87: 1.97 | AW87: 1.97
J88: Total | K88: =K71+K72+K77+K84+K86+K73+K85+K74+K75+K76+K78+K79+K80+K82+K81+K83+K87 -> 32 | AU88: وحدة العناية المتوسطة
AU89: Total | AV89: 32
I91: Non-Medical | J91: استقبال الطواريء | K91: 5
J92: استقبال العيادات الخارجية | K92: 4 | AT92: Non-Medical | AU92: استقبال الطواريء | AV92: =(AW92+AX92+AZ92+BA92)/4 -> 2.2075 | AW92: 3 | AX92: 0.79 | AZ92: 0.17 | BA92: 4.87
J93: المدير المناوب | K93: 1 | AU93: استقبال العيادات الخارجية | AV93: =(AX93+AY93+AZ93)/3 -> 3.106666667 | AX93: 0.14 | AY93: 4.18 | AZ93: 5
J94: قسم التقارير الطبية | K94: 4 | AU94: المدير المناوب | AV94: 2.14 | AW94: 2.14
J95: قسم المالية | K95: 2 | AU95: قسم التقارير الطبية | AV95: =(AW95+AX95+AY95)/3 -> 0.5666666667 | AW95: 0.69 | AX95: 0.17 | AY95: 0.84
J96: قسم الموافقات الطبية | K96: 7 | AU96: قسم المالية | AV96: 0.18 | AX96: 0.18
J97: مكتب التنويم | K97: 1 | AU97: قسم الموافقات الطبية | AV97: =(AW97+AX97+AY97+AZ97+BA97+BB97+BC97)/7 -> 0.8182857143 | AW97: 0.76 | AX97: 1.01 | AY97: 0.008 | AZ97: 0.18 | BA97: 0.96 | BB97: 0.89 | BC97: 1.92
J98: Total | K98: =K97+K91+K93+K92+K94+K95+K96 -> 24 | AU98: مكتب التنويم | AV98: 8 | AW98: 8
AU99: Total | AV99: 24
I100: Nursing | J100: تمريض النساء والولادة | K100: 1
J101: تمريض غرفة التطعيمات | K101: 6 | AT101: Nursing | AU101: تمريض النساء والولادة | AV101: 12 | AW101: 12
J102: تمريض عيادة العيون | K102: 1 | AU102: تمريض غرفة التطعيمات | AV102: =(AW102+AX102+AY102+AZ102+BA102+BB102)/6 -> 0.79 | AW102: 0.9 | AX102: 0.05 | AY102: 0.09 | AZ102: 0.71 | BA102: 0.89 | BB102: 2.1
J103: Total | K103: =K100+K101+K102 -> 8 | AU103: تمريض عيادة العيون
AU104: Total | AV104: 8
I106: Support Services | J106: قسم النظافة | K106: 1
J107: Total | K107: 1 | AT107: Support Services | AU107: قسم النظافة
AU108: Total | AV108: =1 -> 1
I110: Total | K110: 65
AU111: Total | AW111: =AV89+AV99+AV104+AV108 -> 65
BL178: 1043
BL179: 1102

Sheet February 2024
A1: Week | B1: No. | C1: رقم الشكوى | D1: رقم الملف | E1: جهة الشكوى | F1: الموقع | G1: القسم الرئيس | H1: القسم الفرعي | I1: تاريخ إستلام الشكوى | J1: المدخل | K1: Time line | L1: إرسال نموذج الشكوى | N1: Employee | O1: تحرير الشكوى | Q1: تفعيل الشكوى | S1: Employee | T1: تم ارسال الشكوى | V1: Employee | W1: الوقت بين التحرير والارسال | X1: First Reminder Sent | Z1: Employee | AA1: الوقت بين اول ايميل والارسال | AB1: Second Reminder Sent | AD1: Employee | AE1: الوقت بين ثاني ايميل والاول | AF1: Escalated | AH1: Employee | AI1: Reason of Escalation | AJ1: الوقت بين التصعيد والارسال | AK1: Closed | AM1: Employee | AN1: الوقت بين الاغلاق والارسال | AO1: تاريخ الرد | AQ1: الوقت بين الرد والارسال | AR1: Resolved | AT1: Employee | AU1: الوقت بين المعالجة و الارسال | AV1: ID | AW1: اسم الشخص المشتكى عليه - ان وجد | AX1: Domain | AY1: Category | AZ1: Sub-Category | BA1: Classification | BB1: محتوى الشكوى (عربي) | BC1: محتوى الشكوى (English) | BD1: Satisfied/Dissatisfied | BE1: The Rightful Side | BF1: Recommendation/Action plan | BO1: رقم الشكوى | BP1: رقم الملف | BQ1: جهة الشكوى | BR1: الموقع | BS1: القسم الرئيس | BT1: القسم الفرعي | BU1: تاريخ إستلام الشكوى | BV1: المدخل | BW1: Time line | BY1: رقم الشكوى | BZ1: رقم الملف | CA1: جهة الشكوى | CB1: الموقع | CC1: القسم الرئيس | CD1: القسم الفرعي | CE1: تاريخ إستلام الشكوى | CF1: المدخل | CG1: Time line | CI1: رقم الشكوى | CJ1: رقم الملف | CK1: جهة الشكوى | CL1: الموقع | CM1: القسم الرئيس | CN1: القسم الفرعي | CO1: تاريخ إستلام الشكوى | CP1: المدخل | CQ1: Time line | CS1: رقم الشكوى | CT1: رقم الملف | CU1: جهة الشكوى | CV1: الموقع | CW1: القسم الرئيس | CX1: القسم الفرعي | CY1: تاريخ إستلام الشكوى | CZ1: المدخل | DA1: Time line
K2: Time line | L2: Date | M2: Time | O2: Date | P2: Time | Q2: Date | R2: Time | T2: Date | U2: Time | X2: Date | Y2: Time | AB2: Date | AC2: Time | AF2: Date | AG2: Time | AK2: Date | AL2: Time | AO2: Date | AP2: Time | AR2: Date | AS2: Time | BO2: 2171 | BP2: 30313372 | BQ2: مجلس الضمان الصحي | BR2: العيادات الخارجية | BS2: الإداري | BT2: قسم الموافقات الطبية | BU2: 2024-02-05T12:15:00 | BV2: ابرار بندر الشمري | BW2: 48 Hours | BY2: 2155 | BZ2: 30175276 | CA2: وزارة الصحة | CB2: العيادات الخارجية | CC2: الطبي | CD2: عيادات الكلى | CE2: 2024-02-01T10:51:00 | CF2: امال ماهل القحطاني | CG2: More than 72 Hours | CI2: 2183 | CJ2: 30034926 | CK2: مراجع | CL2: العيادات الخارجية | CM2: الطبي | CN2: قسم الأشعة | CO2: 2024-02-10T12:49:00 | CP2: ابرار بندر الشمري | CQ2: More than 72 Hours | CS2: 2177 | CT2: 30157806 | CU2: ذوي المراجع | CV2: العيادات الخارجية | CW2: الطبي | CX2: قسم المختبر | CY2: 2024-02-06T18:29:00 | CZ2: مي سليمان الدخيل | DA2: 72 Hours
A3: 1 | B3: 1 | C3: 2155 | D3: 30175276 | E3: وزارة الصحة | F3: العيادات الخارجية | G3: الطبي | H3: عيادات الكلى | I3: 2024-02-01T10:51:00 | J3: امال ماهل القحطاني | K3: More than 72 Hours | L3: 2024-02-01 | M3: 10:51:00 | N3: امال ماهل القحطاني | O3: 2024-02-01 | P3: 10:51:00 | T3: 2024-02-01 | U3: 12:08:00 | V3: امال ماهل القحطاني | W3: =(U3+T3)-(P3+O3) -> 0.05347222223 | AA3: =(Y3+X3)-(U3+T3) -> -45323.50556 | AE3: =(AC3+AB3)-(U3+T3) -> -45323.50556 | AJ3: =(AG3+AF3)-(U3+T3) -> -45323.50556 | AN3: =(AL3+AK3)-(U3+T3) -> -45323.50556 | AO3: 2024-02-01 | AP3: 21:16:00 | AQ3: =(AO3+AN3)-(Y3+X3) -> -0.5055555556 | AR3: 2024-02-14 | AS3: 11:01:00 | AT3: امال ماهل القحطاني | AU3: =(AS3+AR3)-(U3+T3) -> 12.95347222 | AV3: 4904 | AW3: Dr ABDULRAHMAN ABBAS MOHAMMED ALMUTAWAKEL | AX3: Management complaints | AY3: 4. Accessibility | AZ3: 4.1.Access | BA3: 4.1.2.Poor availability and scheduling | BB3: تم التأخر ع موعدي لمدة 5 دقائق علما ان موعدي 8:50 وعند التوجه للعياده يتم ابلاغي بخروج الطبيب وتم التواصل معه بعد ذلك ولم يتم التجاوب .. | BC3: I was 5 minutes late for my appointment, which was at 8:50. When I went to the clinic, I was told that the doctor had left, and I tried to contact him afterward, but there was no response. | BE3: Patient | BO3: 2174 | BP3: 30271626 | BQ3: مجلس الضمان الصحي | BR3: التنويم | BS3: الإداري | BT3: إدارة التنويم | BU3: 2024-02-05T13:52:00 | BV3: مي سليمان الدخيل | BW3: 48 Hours | BY3: 2161 | BZ3: 30304268 | CA3: وزارة الصحة | CB3: التنويم | CC3: الطبي | CD3: وحدة العناية المركزة لحديثي الولادة | CE3: 2024-02-03T19:55:00 | CF3: مي سليمان الدخيل | CG3: More than 72 Hours | CI3: 2188 | CJ3: 30303864 | CK3: مراجع | CL3: العيادات الخارجية | CM3: التمريض | CN3: تمريض العيادات الخارجية | CO3: 2024-02-11T18:59:00 | CP3: ابرار بندر الشمري | CQ3: More than 72 Hours | CS3: 2180 | CT3: 30105091 | CU3: ذوي المراجع | CV3: العيادات الخارجية | CW3: التمريض | CX3: تمريض غرفة التطعيمات | CY3: 2024-02-08T19:34:00 | CZ3: مي سليمان الدخيل | DA3: 24 Hours
B4: 2 | C4: 2161 | D4: 30304268 | E4: وزارة الصحة | F4: التنويم | G4: الطبي | H4: وحدة العناية المركزة لحديثي الولادة | I4: 2024-02-03T19:55:00 | J4: مي سليمان الدخيل | K4: More than 72 Hours | L4: 2024-02-03 | M4: 19:55:00 | N4: مي سليمان الدخيل | O4: 2024-02-03 | P4: 19:55:00 | T4: 2024-02-07 | U4: 14:33:00 | V4: مي سليمان الدخيل | W4: =(U4+T4)-(P4+O4) -> 3.776388889 | X4: 2024-02-08 | Y4: 14:57:00 | Z4: ابرار بندر الشمري | AA4: =(Y4+X4)-(U4+T4) -> 1.016666667 | AB4: 2024-02-10 | AC4: 19:10:00 | AD4: مي سليمان الدخيل | AE4: =(AC4+AB4)-(U4+T4) -> 3.192361111 | AJ4: -45329.60625 | AN4: -45329.60625 | AO4: 2024-02-11 | AP4: 09:29:00 | AQ4: =(AO4+AN4)-(Y4+X4) -> -45327.22917 | AR4: 2024-02-11 | AS4: 14:34:00 | AT4: مي سليمان الدخيل | AU4: 4.000694444 | AV4: 15095 | AW4: Dr ABIR MOHAMMED ABOZAID MOSLEH | AX4: Clinical complaints | AY4: 1. Quality | AZ4: 1.5.Diagnosis | BA4: 1.3.5.Rushed, not time to see patients | BB4: تمت ولادة الطفله لدى المستشفى وكانت بالحضانه لكونها طفل خديج بولاده مبكره واثناء تلك الفتره حصل للطفله التهاب شديد بالامعاء مما تسبب بانفجار داخل الامعاء وتم رفض نقلها الى مستشفى اخر لاجراء العمليه من قبل الطبيبه مع وجود الموافقه وكان السبب الذي ذكرته الطبيبه نقص في صفائح الدم لكن تبين عكس ماذكرته عند وصولنا للمستشفى الاخر وكان السبب في رفضها هو قرب انتهاء فترة دوامها وعدم رغبتها للذهاب مع النقل تلك اللحظه . | BC4: The baby was born at the hospital and was in the nursery because she was a premature baby. During that time, the baby developed a severe intestinal infection, which caused a rupture inside the intestines. The doctor refused to transfer her to another hospital to perform the operation, despite the approval. The reason the doctor mentioned was a lack of platelets, but it turned out to be the opposite of what she mentioned when we arrived at the other hospital. The reason for her refusal was the approaching end of her shift and her unwillingness to go with the transfer at that moment. | BE4: Patient | BO4: 2195 | BP4: 30036213 | BQ4: مجلس الضمان الصحي | BR4: العيادات الخارجية | BS4: الإداري | BT4: قسم الموافقات الطبية | BU4: 2024-02-13T17:41:00 | BV4: ابرار بندر الشمري | BW4: 72 Hours | BY4: 2172 | BZ4: 30212982 | CA4: وزارة الصحة | CB4: العيادات الخارجية | CC4: الطبي | CD4: عيادات النساء والولادة | CE4: 2024-02-05T12:26:00 | CF4: ابرار بندر الشمري | CG4: 24 Hours | CI4: 2205 | CJ4: 30122175 | CK4: مراجع | CL4: التنويم | CM4: الطبي | CN4: وحدة العناية المركزة لحديثي الولادة | CO4: 2024-02-15T21:15:00 | CP4: مي سليمان الدخيل | CQ4: More than 72 Hours | CS4: 2185 | CT4: 30118655 | CU4: ذوي المراجع | CV4: العيادات الخارجية | CW4: الطبي | CX4: عيادات جراحة الأنف وأذن وحنجرة | CY4: 2024-02-10T16:38:00 | CZ4: ابرار بندر الشمري | DA4: 48 Hours
B5: 3 | C5: 2171 | D5: 30313372 | E5: مجلس الضمان الصحي | F5: العيادات الخارجية | G5: الإداري | H5: قسم الموافقات الطبية | I5: 2024-02-05T12:15:00 | J5: ابرار بندر الشمري | K5: 48 Hours | L5: 2024-02-05 | M5: 12:15:00 | N5: ابرار بندر الشمري | O5: 2024-02-05 | P5: 12:15:00 | T5: 2024-02-05 | U5: 12:25:00 | V5: ابرار بندر الشمري | W5: 0.006944444445 | AA5: -45327.51736 | AE5: -45327.51736 | AJ5: -45327.51736 | AN5: -45327.51736 | AO5: 2024-02-05 | AP5: 12:32:00 | AQ5: -0.5173611111 | AR5: 2024-02-06 | AS5: 12:55:00 | AT5: ابرار بندر الشمري | AU5: 1.020833333 | AX5: Management complaints | AY5: 4. Accessibility | AZ5: 3.1.Administrative Policies and Procedures | BA5: 4.4.1.Patient referral refusal | BB5: تم رفض رفع طلب تحويل لمركز اخر يوجد فيه الخدمه بتاريخ 4 فبراير | BC5: A request to transfer to another center offering the service was rejected on February 4th. | BE5: Patient | BO5: 2217 | BP5: 1598009 | BQ5: مجلس الضمان الصحي | BR5: العيادات الخارجية | BS5: الإداري | BT5: قسم المواعيد | BU5: 2024-02-18T17:51:00 | BV5: ابرار بندر الشمري | BW5: 48 Hours | BY5: 2181 | BZ5: 30294036 | CA5: وزارة الصحة | CB5: العيادات الخارجية | CC5: الإداري | CD5: قسم الموافقات الطبية | CE5: 2024-02-08T20:14:00 | CF5: مي سليمان الدخيل | CG5: 48 Hours | CI5: 2207 | CJ5: 30301481 | CK5: مراجع | CL5: العيادات الخارجية | CM5: الطبي | CN5: عيادات الأسنان | CO5: 2024-02-17T15:14:00 | CP5: مي سليمان الدخيل | CQ5: More than 72 Hours | CS5: 2202 | CT5: 30313889 | CU5: ذوي المراجع | CV5: التنويم | CW5: التمريض | CX5: تمريض الحضانة | CY5: 2024-02-15T02:56:00 | CZ5: مي سليمان الدخيل | DA5: 72 Hours
B6: 4 | C6: 2172 | D6: 30212982 | E6: وزارة الصحة | F6: العيادات الخارجية | G6: الطبي | H6: عيادات النساء والولادة | I6: 2024-02-05T12:26:00 | J6: ابرار بندر الشمري | K6: 24 Hours | L6: 2024-02-05 | M6: 12:26:00 | N6: ابرار بندر الشمري | O6: 2024-02-05 | P6: 12:26:00 | T6: 2024-02-05 | U6: 13:13:00 | V6: ابرار بندر الشمري | W6: 0.03263888889 | AA6: -45327.55069 | AE6: -45327.55069 | AJ6: -45327.55069 | AN6: -45327.55069 | AO6: 2024-02-05 | AP6: 17:28:00 | AQ6: -0.5506944444 | AR6: 2024-02-06 | AS6: 12:55:00 | AT6: ابرار بندر الشمري | AU6: 0.9875 | AV6: 11936 | AW6: Dr AZZA JAFFAR BASHIR MOHAMED | AX6: Management complaints | AY6: 1. Quality | AZ6: 2.1.Medication & Vaccination | BA6: 2.1.9.Refusal to dispense medications | BB6: رفض كتابة الدواء على التامين وتوجيهه المريض الى صيدلية خارجية ( النهدي ) | BC6: He refused to prescribe the medication under the insurance and directed the patient to an external pharmacy (Nahdi). | BE6: Patient | BO6: 2237 | BP6: 30298192 | BQ6: مجلس الضمان الصحي | BR6: العيادات الخارجية | BS6: الإداري | BT6: قسم الموافقات الطبية | BU6: 2024-02-26T19:54:00 | BV6: مي سليمان الدخيل | BW6: 24 Hours | BY6: 2193 | BZ6: 30286500 | CA6: وزارة الصحة | CB6: العيادات الخارجية | CC6: التمريض | CD6: تمريض غرفة التطعيمات | CE6: 2024-02-12T20:38:00 | CF6: مي سليمان الدخيل | CG6: 24 Hours | CI6: 2238 | CJ6: 30210437 | CK6: مراجع | CL6: العيادات الخارجية | CM6: الطبي | CN6: عيادات جراحة العظام | CO6: 2024-02-27T17:19:00 | CP6: مي سليمان الدخيل | CQ6: 24 Hours | CS6: 2206 | CT6: تجربة | CU6: ذوي المراجع | CV6: العيادات الخارجية | CW6: الطبي | CX6: بنك الدم | CY6: 2024-02-17T10:55:00 | CZ6: امال ماهل القحطاني
B7: 5 | C7: 2174 | D7: 30271626 | E7: مجلس الضمان الصحي | F7: التنويم | G7: الإداري | H7: إدارة التنويم | I7: 2024-02-05T13:52:00 | J7: مي سليمان الدخيل | K7: 48 Hours | L7: 2024-02-05 | M7: 13:52:00 | N7: مي سليمان الدخيل | O7: 2024-02-05 | P7: 13:52:00 | T7: 2024-02-05 | U7: 20:26:00 | V7: مي سليمان الدخيل | W7: 0.2736111111 | AA7: -45327.85139 | AE7: -45327.85139 | AJ7: -45327.85139 | AN7: -45327.85139 | AO7: 2024-02-07 | AP7: 13:25:00 | AQ7: 1.148611111 | AR7: 2024-02-07 | AS7: 13:49:00 | AT7: مي سليمان الدخيل | AU7: 1.724305556 | AX7: Management complaints | AY7: 1. Quality | AZ7: 3.4.Finance and Billing | BA7: 3.4.4.Reimbursements issues | BB7: ولدت في مستشفى الحمادي وعندي تامين تعاونيه يغطي جميع بكج الولادة ومادفعت ولا ريال ويغطي ابرة الظهر ولما قلت قالو لازم تدفعين بعدين نرجعها ودفعت ولا رجعوها لي | BC7: I gave birth at Al Hammadi Hospital and I have Tawuniya insurance that covers the entire delivery package, and I didn't pay a single riyal. It also covers the epidural, and when I mentioned it, they said I had to pay upfront and then they'd reimburse me. I paid up, but they didn't reimburse me. | BE7: Patient | BO7: 2239 | BP7: 30182581 | BQ7: مجلس الضمان الصحي | BR7: الطوارئ | BS7: الإداري | BT7: استقبال الطوارئ | BU7: 2024-02-27T17:39:00 | BV7: ابرار بندر الشمري | BW7: 48 Hours | BY7: 2199 | BZ7: 30101833 | CA7: وزارة الصحة | CB7: الطوارئ | CC7: الطبي | CD7: أطباء الطوارئ | CE7: 2024-02-14T16:50:00 | CF7: مي سليمان الدخيل | CG7: 24 Hours | CS7: 2240 | CT7: 30226915 | CU7: ذوي المراجع | CV7: العيادات الخارجية | CW7: الطبي | CX7: قسم المختبر | CY7: 2024-02-28T02:53:00 | CZ7: مي سليمان الدخيل | DA7: More than 72 Hours
B8: 6 | C8: 2177 | D8: 30157806 | E8: ذوي المراجع | F8: العيادات الخارجية | G8: الطبي | H8: قسم المختبر | I8: 2024-02-06T18:29:00 | J8: مي سليمان الدخيل | K8: More than 72 Hours | L8: 2024-02-05 | M8: 19:02:00 | N8: مي سليمان الدخيل | O8: 2024-02-06 | P8: 18:29:00 | Q8: 2024-02-07 | R8: 18:45:00 | S8: مي سليمان الدخيل | T8: 2024-02-07 | U8: 18:47:00 | V8: مي سليمان الدخيل | W8: 1.0125 | X8: 2024-02-08 | Y8: 14:59:00 | Z8: ابرار بندر الشمري | AA8: 0.8416666667 | AB8: 2024-02-10 | AC8: 16:22:00 | AD8: ابرار بندر الشمري | AE8: 2.899305556 | AJ8: -45329.78264 | AN8: -45329.78264 | AO8: 2024-02-11 | AP8: 11:54:00 | AQ8: -45327.40694 | AR8: 2024-02-11 | AS8: 13:14:00 | AT8: مي سليمان الدخيل | AU8: 3.76875 | AX8: Management complaints | AY8: 3. Institutional Issues | AZ8: 3.7.Medical records | BA8: 3.7.6.Lab results issues | BB8: ‏تم عمل تحليل يوم السبت اتصلوا علينا وقالوا العينة غير صالحة وتم المجيء من بكرة وتم عمل العينة وبعدها تم الاتصال علينا قالوا العينة غير كافية واتينا وأخذنا تحليل مرة ثالثه اتصلوا علينا مرة أخرى وقال العينه لا تكفي وعملنا تحليل للمره الرابعه وقالو التحليل يطلع بعد ساعتين ولم يخرج التحليل حتى الان ..اغلب فني المختبر غير محترفين ولا يعرفون تقدير التحاليل ولا مقدار الدم المسحوب ..والوالده كبيره بالسن اربع مرات تأتي الى المستشفى من اجل التحليل والتعب من التحليل كل هذا بتهاون من فني المختبر .. لكن اخر تحليل نسويه بالمستشفى الغير محترف ..وغير الاخطاء الحاصله من قبل ولم تتم الشكوى عليهم | BC8: We had a test done on Saturday, and they called us saying the sample was invalid. We came back the next day, and they did the test again. Then they called again and said the sample wasn't enough. We came back and got the test done a third time, and they called again and said the sample wasn't enough. We had the test done a fourth time, and they said the results would be ready in two hours, but they haven't been ready yet. Most of the lab technicians are unprofessional and don't know how to estimate the blood volume or how much blood to draw. My mother is elderly and has come to the hospital four times for the test, and she's exhausted from all the testing. This is all due to the negligence of the lab technicians. This is the last test we'll have done at this unprofessional hospital, and there have been previous mistakes, yet no complaints have been filed against them. | BE8: Patient | BY8: 2203 | BZ8: 30312309 | CA8: وزارة الصحة | CB8: العيادات الخارجية | CC8: الإداري | CD8: قسم الموافقات الطبية | CE8: 2024-02-15T19:05:00 | CF8: مي سليمان الدخيل | CG8: 72 Hours | CS8: 2240 | CT8: 30226915 | CU8: ذوي المراجع | CV8: التنويم | CW8: التمريض | CX8: تمريض تنويم الأطفال | CY8: 2024-02-27T19:58:00 | CZ8: مي سليمان الدخيل | DA8: 72 Hours
A9: 2 | B9: 7 | C9: 2180 | D9: 30105091 | E9: ذوي المراجع | F9: العيادات الخارجية | G9: التمريض | H9: تمريض غرفة التطعيمات | I9: 2024-02-08T19:34:00 | J9: مي سليمان الدخيل | K9: 24 Hours | L9: 2024-02-08 | M9: 19:08:00 | N9: مي سليمان الدخيل | O9: 2024-02-08 | P9: 19:34:00 | Q9: 2024-02-08 | R9: 21:09:00 | S9: مي سليمان الدخيل | T9: 2024-02-10 | U9: 14:58:00 | V9: ابرار بندر الشمري | W9: 1.808333333 | AA9: -45332.62361 | AE9: -45332.62361 | AJ9: -45332.62361 | AN9: -45332.62361 | AO9: 2024-02-10 | AP9: 21:11:00 | AQ9: -0.6236111111 | AR9: 2024-02-11 | AS9: 14:41:00 | AT9: مي سليمان الدخيل | AU9: 0.9881944444 | AX9: Clinical complaints | AY9: 1. Quality | AZ9: 1.3.Quality of Care | BA9: 6.2.1.Inappropriate/aggressive behavior | BB9: ذهبت اليوم إلى غرفة التطعيم مع طفلي البالغ من العمر أربع سنوات لأخذ لقاح، وفتحت كاميرا هاتفي لألتقط له صورة جميلة أثناء تلقيه اللقاح، لكنني لم ألتقط أي صورة للممرضة، فغضبت مني وضربت طفلي أثناء إدخال اللقاح بعنف في جسده. | BC9: I visit vaccination room today with my baby 4 years old to took a vaccine and open my phone cam to took nice photo to my baby while he took the vaccine without tooking any photo to the nurse but she is angry at .me and hit my baby while inserted the vaccine violently into the child body | BE9: Patient | BY9: 2204 | BZ9: 30048922 | CA9: وزارة الصحة | CB9: العيادات الخارجية | CC9: الطبي | CD9: عيادات جراحة الأوعية الدموية | CE9: 2024-02-15T19:44:00 | CF9: مي سليمان الدخيل | CG9: 48 Hours | CS9: 2244 | CT9: 30116435 | CU9: ذوي المراجع | CV9: العيادات الخارجية | CW9: الطبي | CX9: عيادات المخ والأعصاب | CY9: 2024-02-29T17:48:00 | CZ9: مي سليمان الدخيل | DA9: 24 Hours
B10: 8 | C10: 2181 | D10: 30294036 | E10: وزارة الصحة | F10: العيادات الخارجية | G10: الإداري | H10: قسم الموافقات الطبية | I10: 2024-02-08T20:14:00 | J10: مي سليمان الدخيل | K10: 48 Hours | L10: 2024-02-08 | M10: 20:14:00 | N10: مي سليمان الدخيل | O10: 2024-02-08 | P10: 20:14:00 | T10: 2024-02-08 | U10: 20:27:00 | V10: مي سليمان الدخيل | W10: 0.009027777778 | AA10: -45330.85208 | AE10: -45330.85208 | AJ10: -45330.85208 | AN10: -45330.85208 | AO10: 2024-02-10 | AP10: 10:29:00 | AQ10: 1.147916667 | AR10: 2024-02-10 | AS10: 17:23:00 | AT10: مي سليمان الدخيل | AU10: 1.872222222 | AX10: Management complaints | AY10: 1. Quality | AZ10: 3.4.Finance and Billing | BA10: 6.4.2.No/Invalid consent obtained | BB10: دخلت المريضه للطوارىء واخبرتها الطبيبه بضرورة الدخول للتنويم لاحتمال الولاده لكن عند دخولها لدى طبيبة التنويم اخبرتها انه لا يوجد ولاده ولا تحتاج الى تنويم وانما فقط ستبقى تحت الملاحظه ( إجراء مراقبه) لمدة ساعتين وبعدها يتم الخروج ولم تتم كتابة ذلك في التقرير المرسل للتأمين وانما كتبت كلمة تنويم بدلا من اجراء المراقبه وجاء الرفض من التأمين بناء على ذلك ولا زالت المشكله قائمه. | BC10: The patient entered the emergency room and the doctor told her that she needed to be admitted for possible childbirth. However, when she entered the admissions doctor's office, she was told that there was no childbirth and she did not need to be admitted, but would only remain under observation (monitoring procedure) for two hours, after which she would be discharged. This was not written in the report sent to the insurance company, but the word "admission" was written instead of "monitoring procedure," and the insurance company rejected it based on this. The problem is still ongoing. | BE10: Patient | BY10: 2212 | BZ10: 30315607 | CA10: وزارة الصحة | CB10: الطوارئ | CC10: الطبي | CD10: أطباء الطوارئ | CE10: 2024-02-18T14:26:00 | CF10: مي سليمان الدخيل | CG10: 24 Hours | CI10: Employee Name | CJ10: Number of complaints | CK10: Total Percentage | CL10: 24 Hours | CM10: 48 Hours | CN10: 72 Hours | CO10: More than 72 hours | CP10: Total
B11: 9 | C11: 2183 | D11: 30034926 | E11: مراجع | F11: العيادات الخارجية | G11: الطبي | H11: قسم الأشعة | I11: 2024-02-10T12:49:00 | J11: ابرار بندر الشمري | K11: More than 72 Hours | L11: 2024-02-10 | M11: 12:38:00 | N11: ابرار بندر الشمري | O11: 2024-02-10 | P11: 12:49:00 | Q11: 2024-02-10 | R11: 15:09:00 | S11: مي سليمان الدخيل | T11: 2024-02-10 | U11: 15:10:00 | V11: مي سليمان الدخيل | W11: 0.09791666667 | AA11: -45332.63194 | AE11: -45332.63194 | AJ11: -45332.63194 | AN11: -45332.63194 | AQ11: -45332.63194 | AR11: 2024-02-18 | AS11: 17:37:00 | AT11: مي سليمان الدخيل | AU11: 8.102083333 | AX11: Management complaints | AY11: 1. Quality | AZ11: 3.4.Finance and Billing | BA11: 6.4.2.No/Invalid consent obtained | BB11: خطأ في ارسال طلب موافقة التامين حيث اضطرت لدخول غرفة الاشعة والخروج منها بعد بداية التصوير لغلط في كود الفحص المطلوب ولا اعلم الجهة المسوولة عن الخطا ان كان من طبيب او قسم الموافقات | BC11: An error occurred in submitting the insurance approval request. I had to enter and then leave the radiology room after the scan had started due to a mistake in the required scan code. I don't know who is responsible for the error, whether it was the doctor or the approvals department. | BE11: Patient | BO11: Employee Name | BP11: Number of complaints | BQ11: Total Percentage | BR11: 24 Hours | BS11: 48 Hours | BT11: 72 Hours | BU11: More than 72 hours | BV11: Total | BY11: 2215 | BZ11: 30133147 | CA11: وزارة الصحة | CB11: العيادات الخارجية | CC11: الإداري | CD11: قسم التقارير الطبية | CE11: 2024-02-18T16:19:00 | CF11: امال ماهل القحطاني | CG11: 24 Hours | CI11: ابرار بندر الشمري | CJ11: 2 | CK11: =CJ11/CJ14 -> 40.00% | CL11: 0 | CM11: 0 | CN11: 0 | CO11: 2 | CP11: 2 | CS11: Employee Name | CT11: Number of complaints | CU11: Total Percentage | CV11: 24 Hours | CW11: 48 Hours | CX11: 72 Hours | CY11: More than 72 hours | CZ11: Total
B12: 10 | C12: 2185 | D12: 30118655 | E12: ذوي المراجع | F12: العيادات الخارجية | G12: الطبي | H12: عيادات جراحة الأنف وأذن وحنجرة | I12: 2024-02-10T16:38:00 | J12: ابرار بندر الشمري | K12: 48 Hours | L12: 2024-02-10 | M12: 16:26:00 | N12: ابرار بندر الشمري | O12: 2024-02-10 | P12: 16:38:00 | Q12: 2024-02-10 | R12: 16:44:00 | S12: مي سليمان الدخيل | T12: 2024-02-10 | U12: 16:47:00 | V12: مي سليمان الدخيل | W12: 0.006249999999 | X12: 2024-02-11 | Y12: 15:30:00 | Z12: مي سليمان الدخيل | AA12: 0.9465277778 | AE12: -45332.69931 | AJ12: -45332.69931 | AN12: -45332.69931 | AQ12: -90666.34514 | AR12: 2024-02-12 | AS12: 13:45:00 | AT12: ابرار بندر الشمري | AU12: 1.873611111 | AV12: 6876 | AW12: Dr AHMAD HASSAN KAKAA | AX12: Management complaints | AY12: 4. Accessibility | AZ12: 4.3.Delays | BA12: 4.1.4.Appointment delay | BB12: عندي موعد الساعة ٣ العصر وهو اول موعد في عيادة الطبيب لهذا اليوم. قطعت فاتورة من الاستقبال الساعة 58:٢ وقمت بالانتظار اكثر من ٤٠ دقيقة حتى دخولي على الطبيب علما ان الطبيب اتى للعيادة الساعة 22:٣ وقام بادخال عدد ٦ مرضى قبلي على الرغم من ان موعدي اول واحد وعندما دخلت العيادة لم نتجاوز ٣ دقائق عنده. هل هذا منطق؟ انتظر ٤٠ دقيقة عشان ٣ دقائق؟ لو ان الدكتور التزم بمواعيد مرضاه وأولوية الدخول لمن له موعد لكنت لم اجلس اكثر من ٥ دقائق. | BC12: I have an appointment at 3 PM, the first appointment at the doctor's clinic today. I got a receipt from reception at 2:58 PM and waited for over 40 minutes before seeing the doctor, even though he arrived at the clinic at 10:22 PM and saw six patients before me, despite my appointment being the first. When I finally got in, I only had three minutes with him. Is this reasonable? Wait 40 minutes for three minutes? If the doctor had respected his patients' appointments and prioritized those with appointments, I wouldn't have waited more than five minutes. | BE12: Patient | BO12: ابرار بندر الشمري | BP12: 4 | BQ12: 0.00% | BR12: 0 | BS12: 3 | BT12: 1 | BU12: 0 | BV12: 4 | BY12: 2216 | BZ12: 30261660 | CA12: وزارة الصحة | CB12: العيادات الخارجية | CC12: الإداري | CD12: استقبال العيادات الخارجية | CE12: 2024-02-18T16:24:00 | CF12: امال ماهل القحطاني | CG12: 72 Hours | CI12: امال ماهل القحطاني | CJ12: 0 | CK12: =CJ12/CJ14 -> 0.00% | CL12: 0 | CM12: 0 | CN12: 0 | CO12: 0 | CP12: 0 | CS12: ابرار بندر الشمري | CT12: 1 | CU12: =CT12/CT15 -> 14.29% | CV12: 0 | CW12: 1 | CX12: 0 | CY12: 0 | CZ12: 1
B13: 11 | C13: 2188 | D13: 30303864 | E13: مراجع | F13: العيادات الخارجية | G13: التمريض | H13: تمريض العيادات الخارجية | I13: 2024-02-11T18:59:00 | J13: ابرار بندر الشمري | K13: More than 72 Hours | L13: 2024-02-11 | M13: 18:47:00 | N13: ابرار بندر الشمري | O13: 2024-02-11 | P13: 18:59:00 | Q13: 2024-02-11 | R13: 20:03:00 | S13: مي سليمان الدخيل | T13: 2024-02-11 | U13: 20:08:00 | V13: مي سليمان الدخيل | W13: 0.04791666666 | AA13: -45333.83889 | AE13: -45333.83889 | AJ13: -45333.83889 | AN13: -45333.83889 | AO13: 2024-02-12 | AP13: 11:39:00 | AQ13: 0.1611111111 | AR13: 2024-02-21 | AS13: 08:54:00 | AT13: مي سليمان الدخيل | AU13: 9.531944444 | AV13: 11856 | AW13: SARAH UTTO SANDIGAN | AX13: Management complaints | AY13: 4. Accessibility | AZ13: 4.3.Delays | BA13: 4.1.4.Appointment delay | BB13: وصلتُ إلى موعدي قبل عشر دقائق، لكن الممرضة جعلتني أنتظر ساعة كاملة رغم وجود مريض واحد فقط قبلي. وبعد وصول المرضى الآخرين، بدأت بالسماح لهم بالدخول قبلي. وعندما سألتها، قالت إن هناك أربعة مرضى فقط قبلي، لكن في الواقع كان هناك أكثر من أربعة مرضى دخلوا قبلي. وعندما سألتها مرة أخرى، قالت إن هناك أربعة مرضى آخرين قبلي. آمل أن تتعلم قول الحقيقة للمرضى وألا تكذب مجدداً. | BC13: I came to my appointment 10 min. earlier but the nurse let me wait for a whole hour even there was only 1 patient before me and after other patients reach to the clinic , she started to let them enter to clinic before me and when asked her she told me there are only 4 patients before me but there was more than 4 patients entered before me and when I asked her again she said there are another 4 patients before me , I hope that she learn to say the truth to patient and don t lie again | BE13: Patient | BO13: امال ماهل القحطاني | BP13: 0 | BQ13: 0.00% | BR13: 0 | BS13: 0 | BT13: 0 | BU13: 0 | BV13: 0 | BY13: 2218 | BZ13: 52507 | CA13: وزارة الصحة | CB13: العيادات الخارجية | CC13: الإداري | CD13: قسم التقارير الطبية | CE13: 2024-02-18T18:57:00 | CF13: امال ماهل القحطاني | CG13: 24 Hours | CI13: مي سليمان الدخيل | CJ13: 3 | CK13: =CJ13/CJ14 -> 60.00% | CL13: 1 | CM13: 0 | CN13: 0 | CO13: 2 | CP13: 3 | CS13: امال ماهل القحطاني | CT13: 0 | CU13: =CT13/CT15 -> 0.00% | CV13: 0 | CW13: 0 | CX13: 0 | CY13: 0 | CZ13: 0
B14: 12 | C14: 2193 | D14: 30286500 | E14: وزارة الصحة | F14: العيادات الخارجية | G14: التمريض | H14: تمريض غرفة التطعيمات | I14: 2024-02-12T20:38:00 | J14: مي سليمان الدخيل | K14: 24 Hours | L14: 2024-02-12 | M14: 20:38:00 | N14: مي سليمان الدخيل | O14: 2024-02-12 | P14: 20:38:00 | T14: 2024-02-12 | U14: 20:42:00 | V14: مي سليمان الدخيل | W14: 0.00277777778 | AA14: -45334.8625 | AE14: -45334.8625 | AJ14: -45334.8625 | AN14: -45334.8625 | AO14: 2024-02-12 | AP14: 20:54:00 | AQ14: -0.8625 | AR14: 2024-02-12 | AS14: 21:08:00 | AT14: مي سليمان الدخيل | AU14: 0.01805555556 | AX14: Clinical complaints | AY14: 6. Humanness / Caring | AZ14: 2.1.Medication & Vaccination | BA14: 4.3.8.Vaccinating delay | BB14: لم يظهر التطعيم في صحتي | BC14: vaccination not appear on SEHATI since 6 months | BE14: Patient | BO14: مي سليمان الدخيل | BP14: 2 | BQ14: 100.00% | BR14: 1 | BS14: 1 | BT14: 0 | BU14: 0 | BV14: 2 | BY14: 2219 | BZ14: 30303190 | CA14: وزارة الصحة | CB14: العيادات الخارجية | CC14: الطبي | CD14: قسم الصيدلية | CE14: 2024-02-19T16:03:00 | CF14: امال ماهل القحطاني | CG14: 24 Hours | CI14: Total | CJ14: 5 | CK14: 100.00% | CL14: 1 | CM14: 0 | CN14: 0 | CO14: 4 | CP14: 5 | CS14: مي سليمان الدخيل | CT14: 6 | CU14: =CT14/CT15 -> 85.71% | CV14: 2 | CW14: 0 | CX14: 3 | CY14: 1 | CZ14: 6
B15: 13 | C15: 2195 | D15: 30036213 | E15: مجلس الضمان الصحي | F15: العيادات الخارجية | G15: الإداري | H15: قسم الموافقات الطبية | I15: 2024-02-13T17:41:00 | J15: ابرار بندر الشمري | K15: 72 Hours | L15: 2024-02-15 | M15: 19:05:00 | N15: مي سليمان الدخيل | O15: 2024-02-15 | P15: 19:05:00 | T15: 2024-02-15 | U15: 19:11:00 | V15: مي سليمان الدخيل | W15: 0.004166666666 | X15: 2024-02-17 | Y15: 13:40:00 | Z15: امال ماهل القحطاني | AA15: 1.770138889 | AB15: 2024-02-18 | AC15: 14:45:00 | AD15: مي سليمان الدخيل | AE15: 2.815277778 | AJ15: -45337.79931 | AN15: -45337.79931 | AO15: 2024-02-14 | AP15: 13:27:00 | AQ15: -45341.36875 | AR15: 2024-02-18 | AS15: 18:39:00 | AT15: ابرار بندر الشمري | AU15: 2.977777778 | AX15: Management complaints | AY15: 1. Quality | AZ15: 3.4.Finance and Billing | BA15: 6.4.2.No/Invalid consent obtained | BB15: تواصل المستفيد يفيد بتاريخ 2/10 المتعلقة (صرف دواء)عدم رفع طلب الموافقة الطبية لشركة التامين وتمت افادته ان يوجد ادويه مجلس الضمان الصحي تمنعنا من رفع طلب الموافقة لشركة التامين | BC15: The joint statement issued on 2/10 regarding (dispensing medication) indicates that the insurance company has not submitted a request for medical approval, and it was stated that there are medications that the Health Council is preventing us from submitting a request for insurance approval. | BE15: Patient | BO15: Total | BP15: 6 | BQ15: 100.00% | BR15: 1 | BS15: 4 | BT15: 1 | BU15: 0 | BV15: 6 | BY15: 2220 | BZ15: 30244508 | CA15: وزارة الصحة | CB15: العيادات الخارجية | CC15: الطبي | CD15: قسم الصيدلية | CE15: 2024-02-19T18:22:00 | CF15: ابرار بندر الشمري | CG15: More than 72 Hours | CS15: Total | CT15: =CT12+CT13+CT14 -> 7 | CU15: 100.00% | CV15: 2 | CW15: 1 | CX15: 3 | CY15: 1 | CZ15: =CZ12+CZ13+CZ14 -> 7
B16: 14 | C16: 2199 | D16: 30101833 | E16: وزارة الصحة | F16: الطوارئ | G16: الطبي | H16: أطباء الطوارئ | I16: 2024-02-14T16:50:00 | J16: مي سليمان الدخيل | K16: 24 Hours | L16: 2024-02-14 | M16: 16:50:00 | N16: مي سليمان الدخيل | O16: 2024-02-14 | P16: 16:50:00 | T16: 2024-02-14 | U16: 18:08:00 | V16: مي سليمان الدخيل | W16: 0.05416666667 | AA16: -45336.75556 | AE16: -45336.75556 | AJ16: -45336.75556 | AN16: -45336.75556 | AO16: 2024-02-15 | AP16: 14:39:00 | AQ16: 0.2444444444 | AR16: 2024-02-15 | AS16: 15:11:00 | AT16: امال ماهل القحطاني | AU16: 0.8770833333 | AW16: DR.MOHAMMED ESSA ALNAZEEM | AX16: Management complaints | AY16: 4. Accessibility | AZ16: 3.1.Administrative Policies and Procedures | BA16: 5.2.1.Deficient Information | BB16: تم الذهاب للطوارىء لوجود مشكلة في الباطنية وتم عمل التحاليل اللازمة وافادوني بأن تحليل الحمل يأخذ وقت لتظهر النتيجه واني استطيع الاطلاع على النتيجه من التطبيق لكن عند اخباري للطبيب بأن لدي موعد في مستشفى آخر قام بحجب التقرير من التطبيق حيث جميع التقارير السابقه تظهر لدي الا تقرير الحمل مع العلم بأنه كان ظاهرا عند حديثي مع الطبيب لكن تم حجبه بعد خروجي من المستشفى. | BC16: I went to the emergency room because of an internal medicine problem, and the necessary tests were done. They informed me that the pregnancy test takes time to show the result and that I could view the result from the application. However, when I told the doctor that I had an appointment at another hospital, he blocked the report from the application, as all previous reports appear for me except for the pregnancy report, even though it was visible when I spoke with the doctor, but it was blocked after I left the hospital. | BE16: Hospital | BY16: 2221 | BZ16: 1732449 | CA16: وزارة الصحة | CB16: العيادات الخارجية | CC16: الطبي | CD16: عيادات النساء والولادة | CE16: 2024-02-20T16:37:00 | CF16: مي سليمان الدخيل | CG16: More than 72 Hours | CI16: Patients | CJ16: 5 | CK16: =CJ16/BP34 -> 12.82%
A17: 3 | B17: 15 | C17: 2202 | D17: 30313889 | E17: ذوي المراجع | F17: التنويم | G17: التمريض | H17: تمريض الحضانة | I17: 2024-02-15T02:56:00 | J17: مي سليمان الدخيل | K17: 72 Hours | L17: 2024-02-14 | M17: 20:50:00 | N17: مي سليمان الدخيل | O17: 2024-02-15 | P17: 02:56:00 | Q17: 2024-02-17 | R17: 18:39:00 | S17: مي سليمان الدخيل | T17: 2024-02-17 | U17: 18:42:00 | V17: مي سليمان الدخيل | W17: 2.656944444 | X17: 2024-02-18 | Y17: 14:46:00 | Z17: مي سليمان الدخيل | AA17: 0.8361111111 | AE17: -45339.77917 | AJ17: -45339.77917 | AN17: -45339.77917 | AO17: 2024-02-18 | AP17: 18:01:00 | AQ17: -45340.39444 | AR17: 2024-02-20 | AS17: 17:50:00 | AT17: مي سليمان الدخيل | AU17: 2.963888889 | AX17: Clinical complaints | AY17: 6. Humanness / Caring | AZ17: 1.3.Quality of Care | BA17: 1.3.1.Substandard clinical/nursing care | BB17: يعاني ابني البالغ من العمر 9 أيام من التهابات وتشوهات في منطقة الحوض بسبب إهمال من طاقم التمريض في قسم الحضانة خلال الفترة المسائية. أعتقد أن اسم الممرضة "كيك". كما أنهم رفضوا عرض الطفل على كاميرا شاشة الأم، ولم يلتزموا بتعليمات الطبيب الذي نصحهم بإرضاع الطفل فور دخوله الحضانة، بل أطعمته الممرضة بعد ساعتين. | BC17: My son 9 days old suffers from chafing and deformity in the breech area because of negligence from nursing staff in the nursery at evening shift, I think the nurse name is “Keyk”, they also refuse to show baby on cam on mother screen and don’t do doctor instruction who told them to feed the baby immediately after entering to nursery but the nurse feed him 2 hours later | BE17: Patient | BO17: CCHI | BP17: 6 | BQ17: =BP17/BP34 -> 15.38% | BY17: 2226 | BZ17: 30094791 | CA17: وزارة الصحة | CB17: العيادات الخارجية | CC17: الإداري | CD17: قسم الموافقات الطبية | CE17: 2024-02-22T16:37:00 | CF17: مي سليمان الدخيل | CG17: 24 Hours | CS17: Patient’s relatives | CT17: 7 | CU17: =CT17/BP34 -> 17.95%
B18: 16 | C18: 2203 | D18: 30312309 | E18: وزارة الصحة | F18: العيادات الخارجية | G18: الإداري | H18: قسم الموافقات الطبية | I18: 2024-02-15T19:05:00 | J18: مي سليمان الدخيل | K18: 72 Hours | L18: 2024-02-15 | M18: 19:05:00 | N18: مي سليمان الدخيل | O18: 2024-02-15 | P18: 19:05:00 | T18: 2024-02-15 | U18: 19:11:00 | V18: مي سليمان الدخيل | W18: 0.004166666666 | X18: 2024-02-17 | Y18: 13:40:00 | Z18: امال ماهل القحطاني | AA18: 1.770138889 | AB18: 2024-02-18 | AC18: 14:45:00 | AD18: مي سليمان الدخيل | AE18: 2.815277778 | AJ18: -45337.79931 | AN18: -45337.79931 | AO18: 2024-02-18 | AP18: 14:51:00 | AQ18: -45337.36875 | AR18: 2024-02-18 | AS18: 18:39:00 | AT18: ابرار بندر الشمري | AU18: 2.977777778 | AX18: Management complaints | AY18: 1. Quality | AZ18: 3.4.Finance and Billing | BA18: 6.4.2.No/Invalid consent obtained | BB18: الوزارة قبلت طلب العملية والمستشفى يقول لم يأتي طلب الموافقه | BC18: The ministry accepted the transaction request, but the hospital says it has not received approval for it. | BE18: Patient | BY18: 2227 | BZ18: 30130843 | CA18: وزارة الصحة | CB18: العيادات الخارجية | CC18: الطبي | CD18: عيادات الأسنان | CE18: 2024-02-22T16:48:00 | CF18: مي سليمان الدخيل | CG18: 24 Hours | CI18: 24 Hours | CJ18: 48 Hours | CK18: 72 Hours | CL18: More than 72 hours
B19: 17 | C19: 2204 | D19: 30048922 | E19: وزارة الصحة | F19: العيادات الخارجية | G19: الطبي | H19: عيادات جراحة الأوعية الدموية | I19: 2024-02-15T19:44:00 | J19: مي سليمان الدخيل | K19: 48 Hours | L19: 2024-02-15 | M19: 19:44:00 | N19: مي سليمان الدخيل | O19: 2024-02-15 | P19: 19:44:00 | T19: 2024-02-15 | U19: 19:52:00 | V19: مي سليمان الدخيل | W19: 0.005555555552 | AA19: -45337.82778 | AE19: -45337.82778 | AJ19: -45337.82778 | AN19: -45337.82778 | AO19: 2024-02-17 | AP19: 06:03:00 | AQ19: 1.172222222 | AR19: 2024-02-17 | AS19: 13:34:00 | AT19: امال ماهل القحطاني | AU19: 1.7375 | AV19: 8763 | AW19: Dr KHALID ABDULRAHMAN SALEM ALBREKEIT | AX19: Relationship Complaints | AY19: 5. Communication | AZ19: 5.1.Patient-staff communication | BA19: 5.1.2.Poor provider-patient communication | BB19: زرت الطبيب لاخذ رأي طبي لكنه رفض الاطلاع على تقاريري واشعتي من مستشفى آخر مع ان التقارير والاشعه ليست قديمه وقال لي انا لا اثق بنتائج غيري وحاول اقناعي بعمل جديدة على تكلفة التأمين وحين رفضت ، رفض تشخيصي. | BC19: I visited the doctor to get a medical opinion, but he refused to look at my reports and x-rays from another hospital, even though the reports and x-rays were not old. He told me that he did not trust the results of others and tried to convince me to do new ones at the cost of the insurance. When I refused, he rejected my diagnosis. | BE19: Patient | BO19: 24 Hours | BP19: 48 Hours | BQ19: 72 Hours | BR19: More than 72 hours | BY19: 2229 | BZ19: 30150533 | CA19: وزارة الصحة | CB19: العيادات الخارجية | CC19: الإداري | CD19: قسم الموافقات الطبية | CE19: 2024-02-24T09:52:00 | CF19: امال ماهل القحطاني | CG19: 48 Hours | CI19: 1 | CJ19: 0 | CK19: 0 | CL19: 4 | CS19: 24 Hours | CT19: 48 Hours | CU19: 72 Hours | CV19: More than 72 hours
B20: 18 | C20: 2205 | D20: 30122175 | E20: مراجع | F20: التنويم | G20: الطبي | H20: وحدة العناية المركزة لحديثي الولادة | I20: 2024-02-15T21:15:00 | J20: مي سليمان الدخيل | K20: More than 72 Hours | L20: 2024-02-15 | M20: 21:15:00 | N20: مي سليمان الدخيل | O20: 2024-02-15 | P20: 21:15:00 | Q20: 2024-02-17 | R20: 20:09:00 | S20: مي سليمان الدخيل | T20: 2024-02-20 | U20: 17:46:00 | V20: مي سليمان الدخيل | W20: 4.854861111 | X20: 2024-02-25 | Y20: 14:08:00 | Z20: مي سليمان الدخيل | AA20: 4.848611111 | AB20: 2024-02-27 | AC20: 14:29:00 | AD20: مي سليمان الدخيل | AE20: 6.863194444 | AJ20: -45342.74028 | AN20: -45342.74028 | AO20: 2024-02-28 | AP20: 09:56:00 | AQ20: -45340.32917 | AR20: 2024-02-28 | AS20: 14:29:00 | AT20: مي سليمان الدخيل | AU20: 7.863194444 | AV20: 15609 | AW20: Dr NOHA ALI ABDEL KHALEK SALEH | AX20: Relationship Complaints | AY20: 5. Communication | AZ20: 5.1.Patient-staff communication | BA20: 1.3.1.Substandard clinical/nursing care | BB20: اتمنى يكون فيه اهتمام كبير بقسم حساس ومهم مثل العنايه المركزه للاطفال ابتداء من طريقه الدكتوره نهى بالعلك بالفم المفتوح وبصوت مرتفع بدون لبس الكمامه على الفم وايضا الكشف على الطفل بدون لبس قفازات !! اكل البيض بالمكتب ورائحته منتشره بالمكان !! انتظرت بكل هدوء ل٣ ساعات مع العلم ان ولادتي كانت قيصري وكنت بحاله متعبه جدا ولا يوجد اي مراعاه لوضعي بالعكس انتظرت الى ان هبط سكري ل ٦٠ ووصلت لمرحله انهيار بالبكاء والصراخ وبمجرد شافو وضعي كذا قالو خلاص خلصنا اوراقك ؟!! بس بعرف كان محتاج الموضوع اوصل لهالمرحله من الانهيار ؟؟ | BC20: I hope there will be greater attention paid to a sensitive and important department like the pediatric intensive care unit, starting with Dr. Noha's method of chewing gum with her mouth open and loudly without wearing a mask, and also examining the child without wearing gloves! Eating eggs in the office and the smell permeated the place! I waited patiently for 3 hours, knowing that my delivery was a C-section and I was in a very weak state, and there was no consideration for my condition. On the contrary, I waited until my blood sugar dropped to 60 and I reached the point of collapse, crying and screaming. As soon as they saw my condition, they said, "We've finished your paperwork!" I just want to know, did it have to reach that point of collapse? | BE20: Patient | BO20: 1 | BP20: 4 | BQ20: 1 | BR20: 0 | BY20: 2230 | BZ20: 30313372 | CA20: وزارة الصحة | CB20: التنويم | CC20: الطبي | CD20: وحدة العناية المركزة لحديثي الولادة | CE20: 2024-02-24T17:06:00 | CF20: مي سليمان الدخيل | CG20: 24 Hours | CI20: =CI19/CJ16 -> 20.00% | CJ20: =CJ19/CJ16 -> 0.00% | CK20: =CK19/CJ16 -> 0.00% | CL20: =CL19/CJ16 -> 80.00% | CS20: 2 | CT20: 1 | CU20: 3 | CV20: 1
B21: 19 | C21: 2207 | D21: 30301481 | E21: مراجع | F21: العيادات الخارجية | G21: الطبي | H21: عيادات الأسنان | I21: 2024-02-17T15:14:00 | J21: مي سليمان الدخيل | K21: More than 72 Hours | L21: 2024-02-17 | M21: 14:56:00 | N21: مي سليمان الدخيل | O21: 2024-02-17 | P21: 15:14:00 | Q21: 2024-02-17 | R21: 16:01:00 | S21: مي سليمان الدخيل | T21: 2024-02-17 | U21: 16:02:00 | V21: مي سليمان الدخيل | W21: =(U21+T21)-(P21+O21) -> 0.03333333333 | X21: 2024-02-18 | Y21: 14:44:00 | Z21: مي سليمان الدخيل | AA21: =(Y21+X21)-(U21+T21) -> 0.9458333333 | AB21: 2024-02-20 | AC21: 17:14:00 | AD21: مي سليمان الدخيل | AE21: =(AC21+AB21)-(U21+T21) -> 3.05 | AJ21: -45339.66806 | AN21: -45339.66806 | AO21: 2024-02-27 | AP21: 19:51:00 | AQ21: =(AO21+AN21)-(Y21+X21) -> -45331.28194 | AR21: 2024-02-27 | AS21: 20:09:00 | AT21: مي سليمان الدخيل | AU21: 10.17152778 | AV21: 15920 | AW21: Dr HORIYA ABDULLAH ALMASARI | AX21: Clinical complaints | AY21: 6. Humanness / Caring | AZ21: 1.3.Quality of Care | BA21: 6.4.2.No/Invalid consent obtained | BB21: الاشاعه بها حشو عادي وتم عمل الحشو كامل وبعدها حدث الم شديد فى الضرس مع شرب ساخن أو بارد يزداد الالم فى زيارتى الثانيه خبرتها بهذا الالم قالتلى أنه تحسس من نوعية الحشو و وضعت لى جل مسكن ولكن بعد مدة بسيطه عاد الالم مرة أخرى وقمت بزيارتها مرة أخرى وكشفت وقالت إن الحشو مرتفع فقامت بتقصير الضرس ولكن مازال الالم موجود وقمت بزيارة أخرى واخبرتها بأن الالم لازال موجود وكشفت على واعطتنى تخدير ثم قامت بحفر الضرس مجددا واكتشفت وجود عصب وكان المفروض اكتشاف ذلك الامر مسبقا قبل حشو الضرس بعدها اخبرتنى أنها ستقوم برفع حشو العصب للتأمين فقلت لها ان التأمين خلص وفعلا جاء الرفض من التامين لان هناك طلب سابق ، حاليا اطالب بالتحقيق والتوضيح من قبل الطبيبه المعالجه بانتظار ردكم . | BC21: The x-ray shows a regular filling, and the filling was completed. Afterwards, I experienced severe pain in the tooth when drinking hot or cold liquids. The pain increases during my second visit. I informed her about this pain, and she told me it was an allergy to the type of filling. She applied a pain-relieving gel, but after a short time, the pain returned. I visited her again, and she examined me and said the filling was too high. She shortened the tooth, but the pain persisted. I visited her again and told her that the pain was still there. She examined me, gave me anesthesia, and then drilled the tooth again. She discovered a nerve, which should have been discovered before filling the tooth. After that, she told me that she would remove the root canal filling for insurance purposes. I told her that the insurance had expired, and indeed, the insurance company refused because there was a previous claim. Currently, I am requesting an investigation and clarification from the treating dentist. I await your response. | BE21: Patient | BO21: =BO20/BP17 -> 16.67% | BP21: =BP20/BP17 -> 66.67% | BQ21: =BQ20/BP17 -> 16.67% | BR21: =BR20/BP17 -> 0.00% | BY21: 2232 | BZ21: 30316291 | CA21: وزارة الصحة | CB21: التنويم | CC21: الطبي | CD21: قسم الجراحة العامة | CE21: 2024-02-25T15:07:00 | CF21: مي سليمان الدخيل | CG21: 48 Hours | CS21: =CS20/CT17 -> 28.57% | CT21: =CT20/CT17 -> 14.29% | CU21: =CU20/CT17 -> 42.86% | CV21: =CV20/CT17 -> 14.29%
B22: 20 | C22: 2212 | D22: 30315607 | E22: وزارة الصحة | F22: الطوارئ | G22: الطبي | H22: أطباء الطوارئ | I22: 2024-02-18T14:26:00 | J22: مي سليمان الدخيل | K22: 24 Hours | L22: 2024-02-18 | M22: 14:26:00 | N22: مي سليمان الدخيل | O22: 2024-02-18 | P22: 14:26:00 | T22: 2024-02-18 | U22: 14:31:00 | V22: مي سليمان الدخيل | W22: 0.003472222219 | X22: 2024-02-19 | Y22: 08:43:00 | Z22: مي سليمان الدخيل | AA22: 0.7583333333 | AE22: -45340.60486 | AJ22: -45340.60486 | AN22: -45340.60486 | AO22: 2024-02-19 | AP22: 10:40:00 | AQ22: =(AO22+AN22)-(Y22+X22) -> -45340.96806 | AR22: 2024-02-19 | AS22: 10:58:00 | AT22: مي سليمان الدخيل | AU22: 0.8520833333 | AX22: Management complaints | AY22: 3. Institutional Issues | AZ22: 3.7.Medical records | BA22: 3.7.7.Sick leave issues | BB22: تم رفض تعديل الاجازة المرضية من قبل الطبيب | BC22: The doctor refused to amend the sick leave certificate. | BE22: Patient | BY22: 2241 | BZ22: 1220929 | CA22: وزارة الصحة | CB22: العيادات الخارجية | CC22: التمريض | CD22: تمريض غرفة التطعيمات | CE22: 2024-02-28T15:59:00 | CF22: امال ماهل القحطاني | CG22: 72 Hours | CI22: In-Patient | CJ22: 1 | CK22: =CJ22/CJ25 -> 20.00%
B23: 21 | C23: 2215 | D23: 30133147 | E23: وزارة الصحة | F23: العيادات الخارجية | G23: الإداري | H23: قسم التقارير الطبية | I23: 2024-02-18T16:19:00 | J23: امال ماهل القحطاني | K23: 24 Hours | L23: 2024-02-18 | M23: 16:19:00 | N23: امال ماهل القحطاني | O23: 2024-02-18 | P23: 16:19:00 | T23: 2024-02-18 | U23: 16:24:00 | V23: امال ماهل القحطاني | W23: 0.003472222226 | AA23: -45340.68333 | AE23: -45340.68333 | AJ23: -45340.68333 | AN23: -45340.68333 | AO23: 2024-02-18 | AP23: 16:57:00 | AQ23: =(AO23+AN23)-(Y23+X23) -> -0.6833333333 | AR23: 2024-02-19 | AS23: 13:23:00 | AT23: امال ماهل القحطاني | AU23: 0.8743055556 | AX23: Management complaints | AY23: 3. Institutional Issues | AZ23: 3.7.Medical records | BA23: 3.7.7.Sick leave issues | BB23: المراجع يفيد بأنه تم رفض تسليمه اشعار المراجعه , بانتظار افادتكم | BC23: The reviewer reports that he was refused service with the review notice; awaiting your response. | BE23: Patient | BO23: In-Patient | BP23: 1 | BQ23: =BP23/BP26 -> 16.67% | CI23: Out-Patient | CJ23: 4 | CK23: =CJ23/CJ30 -> 80.00% | CS23: In-Patient | CT23: 2 | CU23: =CT23/CT26 -> 28.57%
B24: 22 | C24: 2216 | D24: 30261660 | E24: وزارة الصحة | F24: العيادات الخارجية | G24: الإداري | H24: استقبال العيادات الخارجية | I24: 2024-02-18T16:24:00 | J24: امال ماهل القحطاني | K24: 72 Hours | L24: 2024-02-18 | M24: 16:24:00 | N24: امال ماهل القحطاني | O24: 2024-02-18 | P24: 16:24:00 | T24: 2024-02-18 | U24: 16:48:00 | V24: امال ماهل القحطاني | W24: 0.01666666666 | X24: 2024-02-19 | Y24: 13:24:00 | Z24: مي سليمان الدخيل | AA24: 0.8583333333 | AB24: 2024-02-20 | AC24: 13:33:00 | AD24: امال ماهل القحطاني | AE24: 1.864583333 | AJ24: -45340.7 | AN24: -45340.7 | AO24: 2024-02-21 | AP24: 09:14:00 | AQ24: -45339.25833 | AR24: 2024-02-21 | AS24: 14:12:00 | AT24: مي سليمان الدخيل | AU24: 2.891666667 | AX24: Management complaints | AY24: 6. Humanness / Caring | AZ24: 6.4.Consent | BA24: 6.4.2.No/Invalid consent obtained | BB24: لدى المراجعه رغبه بعمل اجراء تحليل الزواج بمركز اخر ولكن تم رفع بياناتها لدى مستشفى الحمادي ويتوجب الغاءه من قبلكم لوجود تعارض عند رفع الطلب لدى المركز الاخر بانتظار افادتكم .. | BC24: The patient wishes to have the premarital analysis done at another center, but her data has already been submitted to Al Hammadi Hospital and it must be cancelled by you due to a conflict when submitting the request to the other center. We await your response. | BE24: Patient | BO24: Out-Patient | BP24: 4 | BQ24: =BP24/BP26 -> 66.67% | CI24: ER | CJ24: 0 | CK24: =CJ24/CJ30 -> 0.00% | CS24: Out-Patient | CT24: 5 | CU24: =CT24/CT26 -> 71.43%
B25: 23 | C25: 2217 | D25: 1598009 | E25: مجلس الضمان الصحي | F25: العيادات الخارجية | G25: الإداري | H25: قسم المواعيد | I25: 2024-02-18T17:51:00 | J25: ابرار بندر الشمري | K25: 48 Hours | L25: 2024-02-18 | M25: 17:51:00 | N25: ابرار بندر الشمري | O25: 2024-02-18 | P25: 17:51:00 | T25: 2024-02-18 | U25: 17:51:00 | V25: ابرار بندر الشمري | W25: 0 | AA25: -45340.74375 | AE25: -45340.74375 | AJ25: -45340.74375 | AN25: -45340.74375 | AQ25: -45340.74375 | AR25: 2024-02-19 | AS25: 18:37:00 | AT25: ابرار بندر الشمري | AU25: 1.031944444 | AX25: Clinical complaints | AY25: 5. Communication | AZ25: 3.Delays | BA25: 4.1.2.Poor availability and scheduling | BB25: مستشفى الحمادي النزهة قسم الاسنان عيادة دكتور هاني موسى الغى مواعيد علاج حشوات اسناني ثلاث مرات بحجة ان العيادة تتحول من مسائي الى صباحي .. و لما كلمت مواعيد المستشفى عشان احدد موعد ثاني مسائي مع دكتور اخر بعد ما الغى مواعيدي ثلاث مرات ابلغوني بعدم وجود اي دكتور متوفر مسائي .. والان لا اعلم ماذا افعل والحشو المؤقت يؤلم ولا استطع الذهاب لهم صباحا بحكم ظروف عملي . | BC25: Al Hammadi Hospital, Al Nozha, Dental Department, Dr. Hani Moussa's clinic, canceled my dental filling appointments three times, claiming that the clinic was switching from evening to morning hours. When I called the hospital's appointments department to schedule another evening appointment with another doctor after he canceled my appointments three times, they informed me that no doctor was available in the evening. Now I don't know what to do, and the temporary filling hurts, and I can't go to them in the morning due to my work circumstances. | BE25: Patient | BO25: ER | BP25: 1 | BQ25: =BP25/BP26 -> 16.67% | CI25: Total | CJ25: 5 | CK25: =CJ25/CJ30 -> 100.00% | CS25: ER | CT25: 0 | CU25: =CT25/CT26 -> 0.00%
B26: 24 | C26: 2218 | D26: 52507 | E26: وزارة الصحة | F26: العيادات الخارجية | G26: الإداري | H26: قسم التقارير الطبية | I26: 2024-02-18T18:57:00 | J26: امال ماهل القحطاني | K26: 24 Hours | L26: 2024-02-18 | M26: 18:57:00 | N26: امال ماهل القحطاني | O26: 2024-02-18 | P26: 18:57:00 | T26: 2024-02-18 | U26: 18:57:00 | V26: امال ماهل القحطاني | W26: 0 | AA26: -45340.78958 | AE26: -45340.78958 | AJ26: -45340.78958 | AN26: -45340.78958 | AQ26: -45340.78958 | AR26: 2024-02-18 | AS26: 19:13:00 | AT26: امال ماهل القحطاني | AU26: 0.01111111111 | AX26: Management complaints | AY26: 3. Institutional Issues | AZ26: 3.1.Administrative Policies and Procedures | BA26: 3.1.1.Paperwork delays | BB26: يفيد المراجع بضرورة استلام تقارير سنة 2010 وتمت افادته بعدم وجودها | BC26: The auditor stated that he needed to receive the 2010 reports but was informed that they were unavailable. | BE26: Patient | BO26: Total | BP26: 6 | BQ26: =BQ25+BQ24+BQ23 -> 100.00% | BY26: Employee Name | BZ26: Number of complaints | CA26: Total Percentage | CB26: 24 Hours | CC26: 48 Hours | CD26: 72 Hours | CE26: More than 72 hours | CF26: Total | CI26: Medical | CJ26: 4 | CK26: =CJ26/CJ30 -> 80.00% | CS26: Total | CT26: 7 | CU26: 100.00%
B27: 25 | C27: 2219 | D27: 30303190 | E27: وزارة الصحة | F27: العيادات الخارجية | G27: الطبي | H27: قسم الصيدلية | I27: 2024-02-19T16:03:00 | J27: امال ماهل القحطاني | K27: 24 Hours | L27: 2024-02-19 | M27: 16:03:00 | N27: امال ماهل القحطاني | O27: 2024-02-19 | P27: 16:03:00 | T27: 2024-02-19 | U27: 16:03:00 | V27: امال ماهل القحطاني | W27: 0 | AA27: -45341.66875 | AE27: -45341.66875 | AJ27: -45341.66875 | AN27: -45341.66875 | AQ27: -45341.66875 | AR27: 2024-02-19 | AS27: 19:40:00 | AT27: ابرار بندر الشمري | AU27: 0.1506944444 | AX27: Management complaints | AY27: 1. Quality | AZ27: 2.1.Medication & Vaccination | BA27: 2.1.3.No medication prescribed | BB27: لم يتم صرف الوصفه | BC27: The prescription was not filled. | BE27: Patient | BO27: Medical | BP27: 0 | BQ27: =BP27/BP31 -> 0.00% | BY27: ابرار بندر الشمري | BZ27: 2 | CA27: =BZ27/BZ30 -> 9.52% | CB27: 1 | CC27: 0 | CD27: 0 | CE27: 1 | CF27: 2 | CI27: Admin | CJ27: 0 | CK27: =CJ27/CJ30 -> 0.00% | CS27: Medical | CT27: 4 | CU27: =CT27/CT31 -> 57.14%
B28: 26 | C28: 2220 | D28: 30244508 | E28: وزارة الصحة | F28: العيادات الخارجية | G28: الطبي | H28: قسم الصيدلية | I28: 2024-02-19T18:22:00 | J28: ابرار بندر الشمري | K28: More than 72 Hours | L28: 2024-02-19 | M28: 18:22:00 | N28: ابرار بندر الشمري | O28: 2024-02-19 | P28: 18:22:00 | T28: 2024-02-19 | U28: 18:36:00 | V28: ابرار بندر الشمري | W28: 0.009722222225 | X28: 2024-02-20 | Y28: 13:26:00 | Z28: امال ماهل القحطاني | AA28: 0.7847222222 | AE28: -45341.775 | AF28: 2024-02-28 | AG28: 14:27:00 | AH28: مي سليمان الدخيل | AI28: The complaint was escalated due to the department's failure to respond | AJ28: 8.827083333 | AN28: -45341.775 | AO28: 2024-02-20 | AP28: 17:28:00 | AQ28: -45342.33472 | AR28: 2024-02-25 | AS28: 16:35:00 | AT28: ابرار بندر الشمري | AU28: 5.915972222 | AX28: Management complaints | AY28: 1. Quality | AZ28: 2.1.Medication & Vaccination | BA28: 2.1.3.No medication prescribed | BB28: لدى المريض وصفة طبيه ولم يتم صرفها للمريض . | BC28: The patient has a prescription that has not been dispensed to the patient. | BE28: Patient | BO28: Admin | BP28: 6 | BQ28: =BP28/BP31 -> 100.00% | BY28: امال ماهل القحطاني | BZ28: 7 | CA28: =BZ28/BZ30 -> 33.33% | CB28: 3 | CC28: 1 | CD28: 2 | CE28: 1 | CF28: 7 | CI28: Nursing | CJ28: 1 | CK28: =CJ28/CJ30 -> 20.00% | CS28: Admin | CT28: 0 | CU28: =CT28/CT31 -> 0.00%
B29: 27 | C29: 2221 | D29: 1732449 | E29: وزارة الصحة | F29: العيادات الخارجية | G29: الطبي | H29: عيادات النساء والولادة | I29: 2024-02-20T16:37:00 | J29: مي سليمان الدخيل | K29: More than 72 Hours | L29: 2024-02-20 | M29: 16:37:00 | N29: مي سليمان الدخيل | O29: 2024-02-20 | P29: 16:37:00 | T29: 2024-02-20 | U29: 16:58:00 | V29: مي سليمان الدخيل | W29: 0.01458333333 | X29: 2024-02-21 | Y29: 11:46:00 | Z29: مي سليمان الدخيل | AA29: 0.7833333333 | AB29: 2024-02-24 | AC29: 13:22:00 | AD29: امال ماهل القحطاني | AE29: 3.85 | AJ29: -45342.70694 | AN29: -45342.70694 | AO29: 2024-03-13 | AP29: 13:25:00 | AQ29: -45322.19722 | AR29: 2024-07-07 | AS29: 13:53:00 | AT29: ابرار بندر الشمري | AU29: 137.8715278 | AV29: 14761 | AW29: Dr DOAA AWAD MASSOUD MOHAMED | AX29: Clinical complaints | AY29: 5. Communication | AZ29: 3.Delays | BA29: 4.1.4.Appointment delay | BB29: كان عندي موعد الساعه 3 ونص مع د.دعاء يوم 2 فبراير وتوجهت للمستشفى الساعه 2 ولما جاء وقت موعدي تم تقديم ناس علي وادخالهم قبلي وانتظرت حتى الساعه السادسه وعند دخولي للدكتوره كان اسلوب الدكتوره جدا سيء معي وقالت انتي اصلا ماعندك موعد واطلعي لا تأخريني وتعطليني عن شغلي وانا عندي موعد والفاتوره معاي | BC29: I had an appointment at 3:30 with Dr. Doaa on February 2nd, and I went to the hospital at 2:00. When it was time for my appointment, people were seen before me, and I waited until 6:00. When I finally went in to see the doctor, she was very rude to me. She told me I didn't even have an appointment and to leave, saying I was delaying her and interfering with her work, even though I had an appointment and the bill was with me. | BE29: Patient | BO29: Nursing | BP29: 0 | BQ29: =BP29/BP31 -> 0.00% | BY29: مي سليمان الدخيل | BZ29: 12 | CA29: =BZ29/BZ30 -> 57.14% | CB29: 6 | CC29: 3 | CD29: 1 | CE29: 2 | CF29: 12 | CI29: Support Services | CJ29: 0 | CK29: =CJ29/CJ30 -> 0.00% | CS29: Nursing | CT29: 3 | CU29: =CT29/CT31 -> 42.86%
A30: 4 | B30: 28 | C30: 2226 | D30: 30094791 | E30: وزارة الصحة | F30: العيادات الخارجية | G30: الإداري | H30: قسم الموافقات الطبية | I30: 2024-02-22T16:37:00 | J30: مي سليمان الدخيل | K30: 24 Hours | L30: 2024-02-22 | M30: 16:37:00 | N30: مي سليمان الدخيل | O30: 2024-02-22 | P30: 16:37:00 | T30: 2024-02-24 | U30: 14:05:00 | V30: مي سليمان الدخيل | W30: 1.894444444 | AA30: -45346.58681 | AE30: -45346.58681 | AJ30: -45346.58681 | AN30: -45346.58681 | AO30: 2024-02-24 | AP30: 14:51:00 | AQ30: -0.5868055556 | AR30: 2024-02-24 | AS30: 18:30:00 | AT30: مي سليمان الدخيل | AU30: 0.1840277778 | AX30: Relationship Complaints | AY30: 6. Humanness / Caring | AZ30: 3.4.Finance and Billing | BA30: 6.4.2.No/Invalid consent obtained | BB30: تفيد المريضه بأنها دخلت للطوارىء كحالة ولادة وبعد الكشف تقرر عمل عملية قيصريه بشكل عاجل وتم عمل العمليه دون رفع طلب موافقه للتأمين في حينها وتم دفع تكاليف العمليه كاش على اساس ان طلب الموافقه تم رفعه وعند الحصول على الموافقه سيتم استرجاع تكاليف العمليه لكن الطلب لم يتم رفعه في حينها وتم رفع الطلب بعد ذلك بمده وجاء الرفض من التأمين لعدم وجود مبرر ولم تتم افادة التأمين بمبرر حتى الان. | BC30: The patient reports that she entered the emergency room as a childbirth case, and after examination, it was decided to perform an urgent cesarean section. The operation was performed without submitting an insurance approval request at the time, and the costs of the operation were paid in cash on the basis that the approval request had been submitted and that upon obtaining approval, the costs of the operation would be reimbursed. However, the request was not submitted at the time, and the request was submitted some time later, and the insurance rejected it due to the lack of justification. The insurance has not been informed of any justification to this day. | BE30: Patient | BO30: Support Services | BP30: 0 | BQ30: =BP30/BP31 -> 0.00% | BY30: Total | BZ30: =BZ27+BZ28+BZ29 -> 21 | CA30: 100.00% | CB30: 10 | CC30: 4 | CD30: 3 | CE30: 4 | CF30: =CF27+CF28+CF29 -> 21 | CI30: Total | CJ30: 5 | CK30: =CJ30/CJ30 -> 100.00% | CS30: Support Services | CT30: 0 | CU30: =CT30/CT31 -> 0.00%
B31: 29 | C31: 2227 | D31: 30130843 | E31: وزارة الصحة | F31: العيادات الخارجية | G31: الطبي | H31: عيادات الأسنان | I31: 2024-02-22T16:48:00 | J31: مي سليمان الدخيل | K31: 24 Hours | L31: 2024-02-22 | M31: 16:48:00 | N31: مي سليمان الدخيل | O31: 2024-02-22 | P31: 16:48:00 | T31: 2024-02-25 | U31: 13:30:00 | V31: امال ماهل القحطاني | W31: 2.8625 | AA31: -45347.5625 | AE31: -45347.5625 | AJ31: -45347.5625 | AN31: -45347.5625 | AO31: 2024-02-25 | AP31: 13:39:00 | AQ31: -0.5625 | AR31: 2024-02-25 | AS31: 14:20:00 | AT31: مي سليمان الدخيل | AU31: 0.03472222222 | AV31: 16211 | AW31: Dr FARHAN ABDUL AZEEZ | AX31: Clinical complaints | AY31: 5. Communication | AZ31: 3.Delays | BA31: 4.1.4.Appointment delay | BB31: حضرت المريضة إلى موعدها في الوقت المحدد وانتظرت لمدة ساعتين، وبعد ذلك غادر الطبيب العيادة ولم يناديها أحد للدخول. | BC31: patient come to appointment on time and wait for 2 hours and then after waiting , the doctor leave the clinic and no one calling her to enter to the clinic | BE31: Patient | BO31: Total | BP31: 6 | BQ31: =BQ30+BQ29+BQ28+BQ27 -> 100.00% | CS31: Total | CT31: 7 | CU31: 100.00%
B32: 30 | C32: 2229 | D32: 30150533 | E32: وزارة الصحة | F32: العيادات الخارجية | G32: الإداري | H32: قسم الموافقات الطبية | I32: 2024-02-24T09:52:00 | J32: امال ماهل القحطاني | K32: 48 Hours | L32: 2024-02-24 | M32: 09:52:00 | N32: امال ماهل القحطاني | O32: 2024-02-24 | P32: 09:52:00 | T32: 2024-02-24 | U32: 10:15:00 | V32: امال ماهل القحطاني | W32: 0.01597222222 | AA32: -45346.42708 | AE32: -45346.42708 | AJ32: -45346.42708 | AN32: -45346.42708 | AO32: 2024-02-24 | AP32: 10:52:00 | AQ32: -0.4270833333 | AR32: 2024-02-25 | AS32: 11:12:00 | AT32: امال ماهل القحطاني | AU32: 1.039583333 | AX32: Clinical complaints | AY32: 6. Humanness / Caring | AZ32: 3.4.Finance and Billing | BA32: 6.4.2.No/Invalid consent obtained | BB32: تم افادة المريض بانه تم رفع طلب للتأمين وعند التواصل مع التأمين يتم ابلاغ المراجع بانه لم يتم رفع اي طلب من قبل المستشفى بانتظار التواصل مع المستفيد للتوضيح ومن ثم الرد ع الشكوى بالنظام . | BC32: The patient's insurance request was submitted for insurance purposes, and communication with the insurance company is being reported. The hospital is notifying that no request has been submitted, pending communication with others for clarification, and then a response will be provided to the system. | BE32: Patient | BY32: MOH | BZ32: 21 | CA32: =BZ32/BP34 -> 53.85%
B33: 31 | C33: 2230 | D33: 30313372 | E33: وزارة الصحة | F33: التنويم | G33: الطبي | H33: وحدة العناية المركزة لحديثي الولادة | I33: 2024-02-24T17:06:00 | J33: مي سليمان الدخيل | K33: 24 Hours | L33: 2024-02-24 | M33: 17:06:00 | N33: مي سليمان الدخيل | O33: 2024-02-24 | P33: 17:06:00 | T33: 2024-02-25 | U33: 14:12:00 | V33: مي سليمان الدخيل | W33: 0.8791666667 | AA33: -45347.59167 | AE33: -45347.59167 | AJ33: -45347.59167 | AN33: -45347.59167 | AO33: 2024-02-25 | AP33: 15:11:00 | AQ33: -0.5916666667 | AR33: 2024-02-25 | AS33: 15:37:00 | AT33: مي سليمان الدخيل | AU33: 0.05902777777 | AV33: 15713 | AW33: Dr AYMAN SADEEK MOHAMMED MOUSTAFA | AX33: Clinical complaints | AY33: 6. Humanness / Caring | AZ33: 4.4.Referrals | BA33: 4.4.1.Patient referral refusal | BB33: تم رفض خروج الطفل لمستشفى آخر من قبل الطبيب دون سبب | BC33: The child was refused discharge to another hospital by the doctor without reason. | BE33: Patient
B34: 32 | C34: 2232 | D34: 30316291 | E34: وزارة الصحة | F34: التنويم | G34: الطبي | H34: قسم الجراحة العامة | I34: 2024-02-25T15:07:00 | J34: مي سليمان الدخيل | K34: 48 Hours | L34: 2024-02-25 | M34: 15:07:00 | N34: مي سليمان الدخيل | O34: 2024-02-25 | P34: 15:07:00 | T34: 2024-02-25 | U34: 15:24:00 | V34: مي سليمان الدخيل | W34: 0.01180555556 | X34: 2024-02-26 | Y34: 13:57:00 | Z34: امال ماهل القحطاني | AA34: 0.9395833333 | AE34: -45347.64167 | AJ34: -45347.64167 | AN34: -45347.64167 | AO34: 2024-02-26 | AP34: 15:11:00 | AQ34: -45348.22292 | AR34: 2024-02-26 | AS34: 19:30:00 | AT34: مي سليمان الدخيل | AU34: 1.170833333 | AV34: 15494 | AW34: Dr RATHATH ALSEDIQ ABDULLAH IBRAHIM | AX34: Clinical complaints | AY34: 6. Humanness / Caring | AZ34: 2.3.Skills and Conduct | BA34: 5.1.1.Miscommunication with Patient | BB34: تم دخولي للتنويم بعد عملية في الفك وكنت احتاج لاخذ مسكنات لتهدئة الالم وطلبت ذلك من الدكتوره لكنها رفضت على اعتبار اني سبق و اخذت المسكنات لكني لم اخذ المسكنات اطلاقا وذكرت ذلك للدكتوره ولم ترفض فقط بل سخرت من مشاعري بقولها تحملي الالم وهي تضحك | BC34: I was admitted to the ward after jaw surgery and needed painkillers to ease the pain. I asked the doctor for them, but she refused, saying I had already taken them. However, I hadn't taken any painkillers at all, and I mentioned this to the doctor. Not only did she refuse, but she mocked my feelings, telling me to endure the pain while laughing. | BE34: Patient | BO34: Total | BP34: 39 | BY34: 24 Hours | BZ34: 48 Hours | CA34: 72 Hours | CB34: More than 72 hours
B35: 33 | C35: 2237 | D35: 30298192 | E35: مجلس الضمان الصحي | F35: العيادات الخارجية | G35: الإداري | H35: قسم الموافقات الطبية | I35: 2024-02-26T19:54:00 | J35: مي سليمان الدخيل | K35: 24 Hours | L35: 2024-02-26 | M35: 19:54:00 | N35: مي سليمان الدخيل | O35: 2024-02-26 | P35: 19:54:00 | T35: 2024-02-26 | U35: 20:05:00 | V35: مي سليمان الدخيل | W35: 0.007638888885 | AA35: -45348.83681 | AE35: -45348.83681 | AJ35: -45348.83681 | AN35: -45348.83681 | AO35: 2024-02-27 | AP35: 08:36:00 | AQ35: 0.1631944444 | AR35: 2024-02-27 | AS35: 13:46:00 | AT35: مي سليمان الدخيل | AU35: 0.7368055556 | AX35: Clinical complaints | AY35: 6. Humanness / Caring | AZ35: 3.4.Finance and Billing | BA35: 6.4.2.No/Invalid consent obtained | BB35: افادني المستشفى بانه تم رفع طلب الموافقه على العمليه 6 مرات ويتم الرفض وعند التواصل مع شركة التأمين (بوبا) افادونا بعدم رفع البيانات الصحيحة من الطبيب المعالج وعند مراجعة الطبيب المعالج افادنا بأنه رفع البيانات بشكل صحيح . | BC35: The hospital informed me that the request for approval of the operation was submitted 6 times and was rejected. When we contacted the insurance company (Bupa), they informed us that the correct data was not submitted by the treating physician. When we consulted the treating physician, he informed us that he had submitted the data correctly. | BE35: Patient | BY35: 10 | BZ35: 4 | CA35: 3 | CB35: 4
B36: 34 | C36: 2238 | D36: 30210437 | E36: مراجع | F36: العيادات الخارجية | G36: الطبي | H36: عيادات جراحة العظام | I36: 2024-02-27T17:19:00 | J36: مي سليمان الدخيل | K36: 24 Hours | L36: 2024-02-27 | M36: 16:54:00 | N36: مي سليمان الدخيل | O36: 2024-02-27 | P36: 17:19:00 | Q36: 2024-02-27 | R36: 19:10:00 | S36: مي سليمان الدخيل | T36: 2024-02-27 | U36: 19:12:00 | V36: مي سليمان الدخيل | W36: 0.07847222222 | AA36: -45349.8 | AE36: -45349.8 | AJ36: -45349.8 | AN36: -45349.8 | AO36: 2024-02-27 | AP36: 19:44:00 | AQ36: -0.8 | AR36: 2024-02-27 | AS36: 20:14:00 | AT36: مي سليمان الدخيل | AU36: 0.04305555555 | AV36: 2536 | AW36: MOHAMMED HASHIM AL ATHAS | AX36: Clinical complaints | AY36: 6. Humanness / Caring | AZ36: 2.3.Skills and Conduct | BA36: 5.1.1.Miscommunication with Patient | BB36: طول وقت الزياره في العياده اكلم الدكتور وهو يناظر جواله ومتجاهلني وقاعد يرد على استفساراتي من غير نفس ولم يقم بتشخيصي بالشكل الصحيح ووقت الزياره من حقي كمريض ان يعيرني كامل اهتمامه حيث اعتبر ذلك نوع من انواع الاهانه والاستهزاء بي شخصيا | BC36: During my entire visit to the clinic, I was talking to the doctor while he was looking at his phone and ignoring me. He answered my questions listlessly and did not diagnose me properly. As a patient, I have the right to his full attention during my visit, and I consider this a form of insult and mockery of me personally. | BE36: Patient | BY36: =BY35/BZ32 -> 47.62% | BZ36: =BZ35/BZ32 -> 19.05% | CA36: =CA35/BZ32 -> 14.29% | CB36: =CB35/BZ32 -> 19.05%
B37: 35 | C37: 2239 | D37: 30182581 | E37: مجلس الضمان الصحي | F37: الطوارئ | G37: الإداري | H37: استقبال الطوارئ | I37: 2024-02-27T17:39:00 | J37: ابرار بندر الشمري | K37: 48 Hours | L37: 2024-02-27 | M37: 17:39:00 | N37: ابرار بندر الشمري | O37: 2024-02-27 | P37: 17:39:00 | T37: 2024-02-27 | U37: 17:58:00 | V37: ابرار بندر الشمري | W37: 0.01319444444 | AA37: -45349.74861 | AE37: -45349.74861 | AJ37: -45349.74861 | AN37: -45349.74861 | AO37: 2024-02-28 | AP37: 08:35:00 | AQ37: 0.2513888889 | AR37: 2024-02-28 | AS37: 13:04:00 | AT37: امال ماهل القحطاني | AU37: 0.7958333333 | AX37: Clinical complaints | AY37: 6. Humanness / Caring | AZ37: 3.4.Finance and Billing | BA37: 6.4.2.No/Invalid consent obtained | BB37: زرت المستشفى في حاله طاره طفلتي حررتها ٤٠ تم الافاده التامين غير مغطى مع انه مدرج من ضمن المستشفيات المغطى وطفلتي ولدت فيه | BC37: I visited the hospital in an emergency for my child. I paid 40 [currency unspecified] and was informed that the insurance did not cover it, even though it is listed among the covered hospitals. My child was admitted there. | BE37: Patient
B38: 36 | C38: 2240 | D38: 30226915 | E38: ذوي المراجع | F38: العيادات الخارجية | G38: الطبي | H38: قسم المختبر | I38: 2024-02-28T02:53:00 | J38: مي سليمان الدخيل | K38: More than 72 Hours | L38: 2024-02-27 | M38: 19:58:00 | N38: مي سليمان الدخيل | O38: 2024-02-28 | P38: 02:53:00 | Q38: 2024-02-28 | R38: 15:24:00 | S38: مي سليمان الدخيل | T38: 2024-02-28 | U38: 15:52:00 | V38: مي سليمان الدخيل | W38: 0.5409722222 | X38: 2024-02-29 | Y38: 13:14:00 | Z38: امال ماهل القحطاني | AA38: 0.8902777778 | AB38: 2024-03-02 | AC38: 13:36:00 | AD38: امال ماهل القحطاني | AE38: 2.905555556 | AJ38: -45350.66111 | AN38: -45350.66111 | AO38: 2023-03-02 | AP38: 17:25:00 | AQ38: -45715.2125 | AR38: 2024-03-02 | AS38: 17:31:00 | AT38: مي سليمان الدخيل | AU38: 3.06875 | AW38: KHANSA MOHAMMED ALI | AX38: Clinical complaints | AY38: 1. Quality | AZ38: 1.3.Quality of Care | BA38: 1.3.3.Rough treatment | BB38: تم تحليل عينه براز اكرمكم االله والنتيجه ايجابيه بجرثومه معده لطفلتي البالغه من العمر سنه وعلى اساسها قرر الطبيب تنويمها واعطائها مضادات حيويه وخطه علاجيه ثم بعد التنويم بيومين اكتشف الطبيب ان نتيجة التحليل كانت خاطئه من الاساس بعد اخذه لعينه اخرى وتحليلها حيث ظهرت النتائج سلبيه وهذا مايعود بالضرر على بنتي بسبب تحليل خاطئ من قبل موظفتكم | BC38: A stool sample was analyzed (excuse the expression) for my one-year-old daughter, and the result was positive for Helicobacter pylori. Based on this, the doctor decided to admit her and prescribe antibiotics and a treatment plan. However, two days after her admission, the doctor discovered that the initial test result was incorrect after taking another sample and analyzing it, which came back negative. This is harming my daughter because of an incorrect analysis by your employee. | BE38: Patient | BY38: In-Patient | BZ38: 3 | CA38: =BZ38/BZ41 -> 14.29%
B39: 37 | C39: 2240 | D39: 30226915 | E39: ذوي المراجع | F39: التنويم | G39: التمريض | H39: تمريض تنويم الأطفال | I39: 2024-02-27T19:58:00 | J39: مي سليمان الدخيل | K39: 72 Hours | L39: 2024-02-27 | M39: 19:58:00 | N39: مي سليمان الدخيل | O39: 2024-02-27 | P39: 19:58:00 | Q39: 2024-02-28 | R39: 15:24:00 | S39: مي سليمان الدخيل | T39: 2024-02-28 | U39: 15:30:00 | V39: مي سليمان الدخيل | W39: 0.8138888889 | X39: 2024-02-29 | Y39: 13:15:00 | Z39: امال ماهل القحطاني | AA39: 0.90625 | AB39: 2024-02-29 | AC39: 18:18:00 | AD39: مي سليمان الدخيل | AE39: 1.116666667 | AJ39: -45350.64583 | AN39: -45350.64583 | AQ39: -90702.19792 | AR39: 2024-03-02 | AS39: 13:38:00 | AT39: امال ماهل القحطاني | AU39: 2.922222222 | AX39: Clinical complaints | AY39: 1. Quality | AZ39: 1.3.Quality of Care | BA39: 1.3.3.Rough treatment | BB39: كانت الممرضة (إيلين) تعاملني أنا وطفلي معاملة سيئة، فقد لفت الشريط اللاصق حول ذراع الطفل بقوة، وطلبت منها التوقف، لكنها استمرت في ذلك حتى تورمت ذراع الطفل، وازداد التورم يومًا بعد يوم حتى جاء الطبيب ورأى ذراع الطفل في حالة سيئة للغاية. | BC39: The nurse (Eleen) was treated me and my baby badly, she wrapped the tape on baby’ arm strongly and I told her not to do but she keep doing that till baby’ arm became swollen and everyday it swollen more till doctor came and see baby arm in a very bad condition | BE39: Patient | BY39: Out-Patient | BZ39: 16 | CA39: =BZ39/BZ41 -> 76.19%
B40: 38 | C40: 2241 | D40: 1220929 | E40: وزارة الصحة | F40: العيادات الخارجية | G40: التمريض | H40: تمريض غرفة التطعيمات | I40: 2024-02-28T15:59:00 | J40: امال ماهل القحطاني | K40: 72 Hours | L40: 2024-02-28 | M40: 15:59:00 | N40: امال ماهل القحطاني | O40: 2024-02-28 | P40: 15:59:00 | T40: 2024-02-28 | U40: 16:11:00 | V40: امال ماهل القحطاني | W40: 0.008333333331 | X40: 2024-02-29 | Y40: 13:11:00 | Z40: امال ماهل القحطاني | AA40: 0.875 | AE40: -45350.67431 | AJ40: -45350.67431 | AN40: -45350.67431 | AO40: 2024-02-29 | AP40: 13:31:00 | AQ40: -45351.22361 | AR40: 2024-03-02 | AS40: 15:40:00 | AT40: امال ماهل القحطاني | AU40: 2.978472222 | AX40: Clinical complaints | AY40: 6. Humanness / Caring | AZ40: 2.1.Medication & Vaccination | BA40: 4.3.8.Vaccinating delay | BB40: لم تظهر لقاحات التهاب الكبد الوبائي سي، إيه، وبي بعد على موقع صحتي | BC40: Hepatitis C, A, and B vaccinations not yet appeared on seha | BE40: Patient | BY40: ER | BZ40: 2 | CA40: =BZ40/BZ41 -> 9.52%
B41: 39 | C41: 2244 | D41: 30116435 | E41: ذوي المراجع | F41: العيادات الخارجية | G41: الطبي | H41: عيادات المخ والأعصاب | I41: 2024-02-29T17:48:00 | J41: مي سليمان الدخيل | K41: 24 Hours | L41: 2024-02-29 | M41: 16:56:00 | N41: مي سليمان الدخيل | O41: 2024-02-29 | P41: 17:48:00 | Q41: 2024/03/02 | R41: 14:50:00 | S41: مي سليمان الدخيل | T41: 2024-03-02 | U41: 17:05:00 | V41: مي سليمان الدخيل | W41: 1.970138889 | AA41: -45353.71181 | AE41: -45353.71181 | AJ41: -45353.71181 | AN41: -45353.71181 | AQ41: -45353.71181 | AR41: 2024-03-02 | AS41: 20:49:00 | AT41: مي سليمان الدخيل | AU41: 0.1555555556 | AV41: 14375 | AW41: Dr SHAIMAA ALY AHMED GENEDY | AX41: Relationship Complaints | AY41: 6. Humanness / Caring | AZ41: 6.1.Emotional Support | BA41: 6.1.2.Neglect | BB41: أتقدم إليكم بشكوى عن ما تعرضت له والدتي من الإهمال وعدم التصرف بمهنية من قِبل مجموعة من أطباء العناية وبعض الممرضات أثناء تواجدها في العناية المركزة في المستشفى. حيث أنها تعرضت لجلطة دماغية في يوم الثلاثاء الموافق 2024-2-13 وتم إحضارها للطوارئ وبناء على توصية طبيب الطوارئ أدخلت للعناية المركزة بحدود الساعة الواحدة ليلا،ً وقد قابلت الدكتورة المناوبة في العناية المركزة والتي فحصت والدتي وكان وضعها الصحي مستقر وتتحدث بشكل عادي ومريح، وعند دخولي العناية في الساعة السادسة صباحاً وجدت والدتي تعاني من البرد الشديد، بشكل متكرر وسألت والدتي عما اذا كانت الطبيبه مرت عليها اثناء الليل وردت بالنفي! بعد ذلك قمت انا بالذهاب للطبيبة المناوبة وكانت المفاجأة أنها لا تعلم عن وضع والدتي أي شيء!! وطلبت منها الذهاب لوالدتي والتي صرفت لها مسكن للصداع، وعلاج للغثيان، وكان تعجبي أن الطبيبة لم تمر على المرضى ليلا!! وبعد إخراج والدتي من العناية على مسؤوليتي طلبت تقرير بحالتها الصحية فأخبرني الطبيب/ سيد بمراجعة الطبيبة المسؤولة عنها وهي شيماء علي وقد راجعتها صباح يوم السبت وكانت مغلقه مكتبها وطرقت الباب و إنتظرت طويلاً وبعد فترة تفاجأت أنها موجودة في الغرفة وليس لديها مريض ؟ وطلبت منها تقرير بوضع والدتي وان طبيب العناية ابلغني بمراجعتها لكنها رفضت بشكل قاطع إعطائي أي تقرير عن حالة والدتي وطلبت مني أن اتوجه للاستقبال لتسديد كشف جديد !!! ابلغتها ان كلامها غير صحيح وغير معقول وأثناء الحديث معها ومناقشة وضع والدتي الصحي كانت تجري مكالمة مع مكتب للشغالات وقطعت حديثي بشكل مستفز وغير مبالية بوجودي لتستمر في مكالمتها الهاتفية التي هي خارج نطاق العمل ووقت العمل لتتحدث بأمر خاص بمنزلها ! | BC41: I am submitting a complaint regarding the neglect and lack of professionalism that my mother was subjected to by a group of ICU doctors and some nurses during her stay in the Intensive Care Unit at the hospital. She suffered a stroke on Tuesday, 2024-2-13, and was brought to the Emergency Department. Based on the emergency doctor’s recommendation, she was admitted to the ICU at حوالي one o’clock at night. I met the on-duty ICU doctor who examined my mother, and her condition was stable and she was speaking normally and comfortably. When I entered the ICU at six in the morning, I found my mother suffering from severe cold repeatedly. I asked her whether the doctor had checked on her during the night, and she replied no. I then went to the on-duty doctor myself, and to my surprise, she did not know anything about my mother’s condition. I asked her to go and see my mother, and she prescribed a painkiller for headache and medication for nausea. I was shocked that the doctor had not checked on the patients during the night. After discharging my mother from the ICU under my responsibility, I requested a medical report about her condition. Dr. Sayed told me to follow up with the doctor responsible for her, Dr. Shaimaa Ali. I visited her on Saturday morning; her office was closed. I knocked and waited for a long time. After a while, I was surprised to find that she was inside the room and did not have any patient. I requested a report about my mother’s condition and informed her that the ICU doctor had directed me to follow up with her, but she categorically refused to provide any report and asked me to go to reception and pay for a new consultation. I informed her that what she was saying was incorrect and unreasonable. During the conversation and while discussing my mother’s medical condition, she was making a phone call to a domestic workers office and interrupted me in a provocative and careless manner to continue her phone call, which was unrelated to work and during working hours, speaking about a personal matter related to her home. | BE41: Patient | BY41: Total | BZ41: =BZ38+BZ39+BZ40 -> 21 | CA41: =CA40+CA39+CA38 -> 100.00%
BY42: Medical | BZ42: 12 | CA42: =BZ42/BZ46 -> 57.14%
BY43: Admin | BZ43: 7 | CA43: =BZ43/BZ46 -> 33.33%
BY44: Nursing | BZ44: 2 | CA44: =BZ44/BZ46 -> 9.52%
BY45: Support Services | BZ45: 0 | CA45: =BZ45/BZ46 -> 0.00%
BY46: Total | BZ46: =BZ42+BZ43+BZ44 -> 21 | CA46: =CA45+CA44+CA43+CA42 -> 100.00%
C51: Week 1 | D51: 6 | F51: MOH | G51: 21 | H51: =G51/G55 -> 53.85% | I51: Medical | J51: اطباء الطواريء | K51: 2
C52: Week 2 | D52: 8 | F52: CCHI | G52: 6 | H52: =G52/G55 -> 15.38% | J52: بنك الدم | K52: 0 | O52: Employee Name | P52: Number of complaints | Q52: Total Percentage | R52: 24 Hours | S52: 48 Hours | T52: 72 Hours | U52: More than 72 hours | V52: Total | X52: الشكاوي المصعدة | Y52: خلال 72 | Z52: مبكرة | AA52: متأخرة | AB52: الموظف المسؤول | AF52: Medical | AG52: اطباء الطواريء | AH52: =(AI52+AJ52)/2 -> 0.855 | AI52: 0.87 | AJ52: 0.84
C53: Week 3 | D53: 13 | F53: Patients | G53: 5 | H53: =G53/G55 -> 12.82% | J53: عيادات الاسنان | K53: 2 | O53: ابرار بندر الشمري | P53: 9 | Q53: =P53/P59 -> 23.08% | R53: 1 | S53: 4 | T53: 1 | U53: 3 | V53: 9 | X53: 0 | AB53: ابرار بندر الشمري | AG53: بنك الدم
C54: Week 4 | D54: 12 | F54: Patient’s relatives | G54: 7 | H54: =G54/G55 -> 17.95% | J54: عيادات الكلى | K54: 1 | O54: Percentage | R54: =R53/P53 -> 11.11% | S54: =S53/P53 -> 44.44% | T54: =T53/P53 -> 11.11% | U54: =U53/P53 -> 33.33% | AB54: امال ماهل القحطاني | AG54: عيادات الاسنان | AH54: =(AI54+AJ54)/2 -> 5.06 | AI54: 10.10 | AJ54: 0.02
C55: Total | D55: =D52+D51+D53+D54 -> 39 | F55: Total | G55: 39 | H55: 100.00% | J55: عيادات المخ والاعصاب | K55: 1 | O55: امال ماهل القحطاني | P55: 7 | Q55: =P55/P59 -> 17.95% | R55: 3 | S55: 1 | T55: 2 | U55: 1 | V55: 7 | AB55: مي سليمان الدخيل | AG55: عيادات الكلى | AH55: 12.90 | AI55: 12.90
F56: In-Patient | G56: 7 | H56: =G56/G59 -> 17.95% | J56: عيادات النساء والولادة | K56: 2 | O56: Percentage | R56: =R55/P55 -> 42.86% | S56: =S55/P55 -> 14.29% | T56: =T55/P55 -> 28.57% | U56: =U55/P55 -> 14.29% | AG56: عيادات المخ والاعصاب | AH56: 0.14 | AI56: 0.14
F57: Out-Patient | G57: 29 | H57: =G57/G59 -> 74.36% | J57: عيادات جراحة انف اذن حنجرة | K57: 1 | O57: مي سليمان الدخيل | P57: 23 | Q57: =P57/P59 -> 58.97% | R57: 10 | S57: 4 | T57: 3 | U57: 6 | V57: 23 | AG57: عيادات النساء والولادة | AH57: =(AI57+AJ57)/2 -> 69.385 | AI57: 0.97 | AJ57: 137.8
F58: ER | G58: 3 | H58: =G58/G60 -> 15.00% | J58: عيادات جراحة الاوعية الدموية | K58: 1 | O58: Percentage | R58: =R57/P57 -> 43.48% | S58: =S57/P57 -> 17.39% | T58: =T57/P57 -> 13.04% | U58: =U57/P57 -> 26.09% | X58: الشكاوي المغلقة | Y58: خلال 72 | Z58: مبكرة | AA58: متأخرة | AB58: الموظف المسؤول | AG58: عيادات جراحة انف اذن حنجرة | AH58: 1.80 | AI58: 1.80
C59: 1st Half | D59: 18 | F59: Total | G59: 39 | H59: 100.00% | J59: عيادات جراحة العظام | K59: 1 | O59: TOTAL | P59: =P53+P55+P57 -> 39 | Q59: =Q53+Q55+Q57 -> 100.00% | R59: 14 | S59: 9 | T59: =T57+T55+T53 -> 6 | U59: =U57+U55+U53 -> 10 | V59: 39 | X59: 1 | AB59: ابرار بندر الشمري | AG59: عيادات جراحة الاوعية الدموية | AH59: 1.72 | AI59: 1.72
C60: 2nd Half | D60: 21 | F60: Medical | G60: 20 | H60: =G60/G64 -> 51.28% | J60: قسم الأشعة | K60: 1 | R60: =R59/V59 -> 35.90% | S60: =S59/V59 -> 23.08% | T60: =T59/V59 -> 15.38% | U60: =U59/V59 -> 25.64% | Y60: 1 | AB60: امال ماهل القحطاني | AG60: عيادات جراحة العظام | AH60: 0.04 | AI60: 0.04
C61: Total | D61: =D59+D60 -> 39 | F61: Admin | G61: 13 | H61: =G61/G64 -> 33.33% | J61: قسم الجراحة العامة | K61: 1 | AB61: مي سليمان الدخيل | AG61: قسم الأشعة | AH61: 8.09 | AI61: 8.09
F62: Nursing | G62: 6 | H62: =G62/G64 -> 15.38% | J62: قسم الصيدلية | K62: 2 | AG62: قسم الجراحة العامة | AH62: 1.16 | AI62: 1.16
F63: Support Services | G63: 0 | H63: =G63/G64 -> 0.00% | J63: قسم المختبر | K63: 2 | AG63: قسم الصيدلية | AH63: =(AI63+AJ63)/2 -> 2.97 | AI63: 0.14 | AJ63: 5.8
F64: Total | G64: =G60+G61+G62 -> 39 | H64: 100.00% | J64: قسم العناية المركزة لحديثي الولادة | K64: 3 | AG64: قسم المختبر | AH64: =(AI64+AJ64)/2 -> 3.375 | AI64: 3.70 | AJ64: 3.05
J65: Total | K65: =K51+K52+K53+K54+K55+K56+K57+K58+K59+K60+K61+K62+K63+K64 -> 20 | O65: Number of delays in sending the complaint (delay in activation) | Q65: Percentage | R65: Activated within two hours | S65: Percentage | T65: Total | AG65: قسم العناية المركزة لحديثي الولادة | AH65: =(AI65+AJ65)/2 -> 5.9 | AI65: 4.00 | AJ65: 7.8
AG66: Total | AH66: 20
I67: Non-Medical | J67: إدارة التنويم | K67: 1 | O67: ابرار بندر الشمري | P67: 1 | Q67: =P67/T70 -> 2.56% | R67: 8 | S67: =R67/T70 -> 20.51% | T67: =R67+P67 -> 9
J68: استقبال العيادات الخارجية | K68: 1 | O68: امال ماهل القحطاني | P68: 0 | Q68: =P68/T70 -> 0.00% | R68: 7 | S68: =R68/T70 -> 17.95% | T68: =R68+P68 -> 7 | AF68: Non-Medical | AG68: إدارة التنويم | AH68: 1.71 | AI68: 1.71
J69: استقبال الطواريء | K69: 1 | O69: مي سليمان الدخيل | P69: 12 | Q69: =P69/T70 -> 30.77% | R69: 11 | S69: =R69/T70 -> 28.21% | T69: =P69+R69 -> 23 | AG69: استقبال العيادات الخارجية | AH69: 0.79 | AI69: 0.79
J70: قسم المواعيد | K70: 1 | O70: Total | P70: 13 | Q70: =Q67+Q68+Q69 -> 33.33% | R70: 26 | S70: =S67+S68+S69 -> 66.67% | T70: =T67+T68+T69 -> 39 | AG70: استقبال الطواريء | AH70: 2.8 | AI70: 2.8
J71: قسم التقارير الطبية | K71: 2 | AG71: قسم التقارير الطبية | AH71: =(AI71+AJ71)/2 -> 0.428 | AI71: 0.85 | AJ71: 0.006
J72: قسم الموافقات الطبية | K72: 7 | AG72: قسم المواعيد | AH72: 1.01 | AI72: 1.01
J73: Total | K73: =K72+K67+K69+K68+K70+K71 -> 13 | AG73: قسم الموافقات الطبية | AH73: =(AI73+AJ73+AK73+AL73+AM73+AN73+AO73)/7 -> 1.53 | AI73: 1.01 | AJ73: 1.85 | AK73: 2.97 | AL73: 2.97 | AM73: 0.17 | AN73: 1.02 | AO73: 0.72
AG74: Total | AH74: 13
I75: Nursing | J75: تمريض تنويم الأطفال | K75: 1
J76: تمريض العيادات الخارجية | K76: 1 | AF76: Nursing | AG76: تمريض الحضانه | AH76: 2.9 | AI76: 2.9
J77: تمريض غرفة التطعيمات | K77: 3 | AG77: تمريض العيادات الخارجية | AH77: 9.5 | AI77: 9.5
J78: تمريض الحضانه | K78: 1 | AG78: تمريض تنويم الأطفال | AH78: 2.92 | AI78: 2.92
J79: Total | K79: =K75+K76+K77+K78 -> 6 | AG79: تمريض غرفة التطعيمات | AH79: =(AI79+AJ79+AK79)/3 -> 1.316666667 | AI79: 0.97 | AJ79: 0.01 | AK79: 2.97
AG80: Total | AH80: 6
I81: Support Services | K81: 0
J82: Total | K82: 0 | AF82: Support Services
AG83: Total | AH83: =AH82 -> 0
I84: Total | K84: =K79+K73+K65 -> 39
AF85: Total | AH85: =AH66+AH74+AH80+AH83 -> 39

Sheet March 2024
A1: Week | B1: No. | C1: رقم الشكوى | D1: رقم الملف | E1: جهة الشكوى | F1: الموقع | G1: القسم الرئيس | H1: القسم الفرعي | I1: تاريخ إستلام الشكوى | J1: المدخل | K1: Time line | L1: إرسال نموذج الشكوى | N1: Employee | O1: تحرير الشكوى | Q1: تفعيل الشكوى | S1: Employee | T1: تم ارسال الشكوى | V1: Employee | W1: الوقت بين التحرير والارسال | X1: First Reminder Sent | Z1: Employee | AA1: الوقت بين اول ايميل والارسال | AB1: Second Reminder Sent | AD1: Employee | AE1: الوقت بين ثاني ايميل والاول | AF1: Escalated | AH1: Employee | AI1: Reason of Escalation | AJ1: الوقت بين التصعيد والارسال | AK1: Closed | AM1: Employee | AN1: الوقت بين الاغلاق والارسال | AO1: تاريخ الرد | AQ1: الوقت بين الرد والارسال | AR1: Resolved | AT1: Employee | AU1: الوقت بين المعالجة و الارسال | AV1: ID | AW1: اسم الشخص المشتكى عليه - ان وجد | AX1: Domain | AY1: Category | AZ1: Sub-Category | BA1: Classification | BB1: محتوى الشكوى (عربي) | BC1: محتوى الشكوى (English) | BD1: Satisfied/Dissatisfied | BE1: The Rightful Side | BF1: Recommendation/Action plan | BI1: رقم الشكوى | BJ1: رقم الملف | BK1: جهة الشكوى | BL1: الموقع | BM1: القسم الرئيس | BN1: القسم الفرعي | BO1: تاريخ إستلام الشكوى | BP1: المدخل | BQ1: Time line | BS1: رقم الشكوى | BT1: رقم الملف | BU1: جهة الشكوى | BV1: الموقع | BW1: القسم الرئيس | BX1: القسم الفرعي | BY1: تاريخ إستلام الشكوى | BZ1: المدخل | CA1: Time line | CC1: رقم الشكوى | CD1: رقم الملف | CE1: جهة الشكوى | CF1: الموقع | CG1: القسم الرئيس | CH1: القسم الفرعي | CI1: تاريخ إستلام الشكوى | CJ1: المدخل | CK1: Time line | CM1: رقم الشكوى | CN1: رقم الملف | CO1: جهة الشكوى | CP1: الموقع | CQ1: القسم الرئيس | CR1: القسم الفرعي | CS1: تاريخ إستلام الشكوى | CT1: المدخل | CU1: Time line
K2: Time line | L2: Date | M2: Time | O2: Date | P2: Time | Q2: Date | R2: Time | T2: Date | U2: Time | X2: Date | Y2: Time | AB2: Date | AC2: Time | AF2: Date | AG2: Time | AK2: Date | AL2: Time | AO2: Date | AP2: Time | AR2: Date | AS2: Time | BI2: 2267 | BJ2: 30141629 | BK2: مجلس الضمان الصحي | BL2: العيادات الخارجية | BM2: الطبي | BN2: عيادات النساء والولادة | BO2: 2024-03-07T15:08:00 | BP2: مي سليمان الدخيل | BQ2: 72 Hours | BS2: 2251 | BT2: 30080008 | BU2: وزارة الصحة | BV2: العيادات الخارجية | BW2: الإداري | BX2: قسم التقارير الطبية | BY2: 2024-03-04T14:54:00 | BZ2: امال ماهل القحطاني | CA2: 24 Hours | CC2: 2258 | CD2: 30308006 | CE2: مراجع | CF2: العيادات الخارجية | CG2: الطبي | CH2: عيادات جراحة العظام | CI2: 2024-03-05T20:58:00 | CJ2: مي سليمان الدخيل | CK2: More than 72 Hours | CM2: 2246 | CN2: 30116435 | CO2: ذوي المراجع | CP2: التنويم | CQ2: التمريض | CR2: تمريض وحدة العناية المركزة | CS2: 2024-03-02T17:05:00 | CT2: مي سليمان الدخيل | CU2: More than 72 Hours
A3: 1 | B3: 1 | C3: 2246 | D3: 30116435 | E3: ذوي المراجع | F3: التنويم | G3: التمريض | H3: تمريض وحدة العناية المركزة | I3: 2024-03-02T17:05:00 | J3: مي سليمان الدخيل | K3: More than 72 Hours | L3: 2024-03-02 | M3: 17:05:00 | N3: مي سليمان الدخيل | O3: 2024-03-02 | P3: 17:05:00 | T3: 2024-03-02 | U3: 17:17:00 | V3: مي سليمان الدخيل | W3: =(U3+T3)-(P3+O3) -> 0.008333333331 | X3: 2024-03-04 | Y3: 17:31:00 | Z3: مي سليمان الدخيل | AA3: =(Y3+X3)-(U3+T3) -> 2.009722222 | AE3: =(AC3+AB3)-(Y3+X3) -> -45355.72986 | AJ3: =(AG3+AF3)-(U3+T3) -> -45353.72014 | AN3: =(AL3+AK3)-(U3+T3) -> -45353.72014 | AO3: 2024-03-06 | AP3: 17:32:00 | AQ3: =(AP3+AO3)-(U3+T3) -> 4.010416667 | AR3: 2024-03-06 | AS3: 17:32:00 | AT3: مي سليمان الدخيل | AU3: =(AS3+AR3)-(U3+T3) -> 4.010416667 | AX3: Clinical complaints | AY3: 1. Quality | AZ3: 1.3.Quality of Care | BA3: 1.3.1.Substandard clinical/nursing care | BB3: عندما زرت والدتي في العناية المركزة الساعة السادسة صباحًا، وجدتها تعاني من نزلة برد وصداع شديد مع قيء، وكانت ممرضتان تجلسان حولها دون أن تفعلا شيئًا! سألتها متى بدأت تشعر بالبرد، فقالت منذ الليل، وطلبت منهما إحضار بطانية، لكن لم يحضرها أحد! غادرت بعد إخبار الطبيب، ثم عدت الساعة الثامنة مساءً، فوجدتها تعاني من نفس الحالة، ولم تساعدها أي من الممرضات أو تُبلغ الطبيب بذلك. | BC3: When I visit my mom in I.C.U at 6 a.m. I found her suffer from cold and strong headache with vomiting with 2 nurses sitting around her doing nothing! I asked her when you start feel cold, she said since night and asked them to bring me blanket but no one bring it yet!! I left after telling the doctor and I came again at 8 P.m. and I found her suffer again of the same situation and no one of nurses helps her or inform the doctor about that | BE3: Patient | BI3: 2267 | BJ3: 30141629 | BK3: مجلس الضمان الصحي | BL3: العيادات الخارجية | BM3: الإداري | BN3: قسم الموافقات الطبية | BO3: 2024-03-07T15:08:00 | BP3: مي سليمان الدخيل | BQ3: 72 Hours | BS3: 2252 | BT3: 30317749 | BU3: وزارة الصحة | BV3: العيادات الخارجية | BW3: التمريض | BX3: تمريض غرفة التطعيمات | BY3: 2024-03-04T17:31:00 | BZ3: مي سليمان الدخيل | CA3: 24 Hours | CC3: 2260 | CD3: 30301405 | CE3: مراجع | CF3: العيادات الخارجية | CG3: الطبي | CH3: عيادات العيون | CI3: 2024-03-06T19:49:00 | CJ3: مي سليمان الدخيل | CK3: More than 72 Hours | CM3: 2275 | CN3: 30269124 | CO3: ذوي المراجع | CP3: التنويم | CQ3: الإداري | CR3: قسم الأمن | CS3: 2024-03-11T11:54:00 | CT3: مي سليمان الدخيل | CU3: More than 72 Hours
B4: 2 | C4: 2251 | D4: 30080008 | E4: وزارة الصحة | F4: العيادات الخارجية | G4: الإداري | H4: قسم التقارير الطبية | I4: 2024-03-04T14:54:00 | J4: امال ماهل القحطاني | K4: 24 Hours | L4: 2024-03-04 | M4: 14:54:00 | N4: امال ماهل القحطاني | O4: 2024-03-04 | P4: 14:54:00 | T4: 2024-03-04 | U4: 14:54:00 | W4: =(U4+T4)-(P4+O4) -> 0 | AA4: =(Y4+X4)-(U4+T4) -> -45355.62083 | AE4: =(AC4+AB4)-(Y4+X4) -> 0 | AJ4: -45355.62083 | AN4: -45355.62083 | AO4: 2024-03-04 | AP4: 15:46:00 | AQ4: 0.03611111111 | AR4: 2024-03-04 | AS4: 15:46:00 | AT4: امال ماهل القحطاني | AU4: 0.03611111111 | AX4: Management complaints | AY4: 3. Institutional Issues | AZ4: 3.7.Medical records | BA4: 3.7.7.Sick leave issues | BB4: يفيد المراجع بان تاريخ الاجازه غير صحيح .. | BC4: The patient reports that the leave date is incorrect. | BE4: Patient | BS4: 2255 | BT4: 30300310 | BU4: وزارة الصحة | BV4: الطوارئ | BW4: الطبي | BX4: أطباء الطوارئ | BY4: 2024-03-04T17:47:00 | BZ4: ابرار بندر الشمري | CA4: More than 72 Hours | CC4: 2261 | CD4: 1092067 | CE4: مراجع | CF4: العيادات الخارجية | CG4: الطبي | CH4: عيادات المخ والأعصاب | CI4: 2024-03-06T10:30:00 | CJ4: امال ماهل القحطاني | CK4: 24 Hours | CM4: 2288 | CN4: 30285541 | CO4: ذوي المراجع | CP4: التنويم | CQ4: الطبي | CR4: وحدة العناية المركزة | CS4: 2024-03-16T13:00:00 | CT4: امال ماهل القحطاني | CU4: 72 Hours
B5: 3 | C5: 2252 | D5: 30317749 | E5: وزارة الصحة | F5: العيادات الخارجية | G5: التمريض | H5: تمريض غرفة التطعيمات | I5: 2024-03-04T17:31:00 | J5: مي سليمان الدخيل | K5: 24 Hours | L5: 2024-03-04 | M5: 17:31:00 | N5: مي سليمان الدخيل | O5: 2024-03-04 | P5: 17:31:00 | T5: 2024-03-04 | U5: 17:39:00 | V5: مي سليمان الدخيل | W5: 0.005555555559 | AA5: -45355.73542 | AE5: 0 | AJ5: -45355.73542 | AN5: -45355.73542 | AO5: 2024-03-04 | AP5: 18:24:00 | AQ5: 0.03125 | AR5: 2024-03-04 | AS5: 18:24:00 | AT5: مي سليمان الدخيل | AU5: 0.03125 | AX5: Clinical complaints | AY5: 6. Humanness / Caring | AZ5: 2.1.Medication & Vaccination | BA5: 4.3.8.Vaccinating delay | BB5: لا تظهر اللقاحات في صحتي | BC5: vaccines not appear on SEHTI | BE5: Patient | BS5: 2264 | BT5: 30150533 | BU5: وزارة الصحة | BV5: العيادات الخارجية | BW5: الإداري | BX5: قسم الموافقات الطبية | BY5: 2024-03-06T18:14:00 | BZ5: ابرار بندر الشمري | CA5: 24 Hours | CC5: 2270 | CD5: 1595494 | CE5: مراجع | CF5: العيادات الخارجية | CG5: التمريض | CH5: تمريض العيادات الخارجية | CI5: 2024-03-09T11:15:00 | CJ5: ابرار بندر الشمري | CK5: More than 72 Hours | CM5: 2291 | CN5: 30172760 | CO5: ذوي المراجع | CP5: التنويم | CQ5: الخدمات المساندة | CR5: قسم المطبخ | CS5: 2024-03-17T23:09:00 | CT5: امال ماهل القحطاني | CU5: 72 Hours
B6: 4 | C6: 2255 | D6: 30300310 | E6: وزارة الصحة | F6: الطوارئ | G6: الطبي | H6: أطباء الطوارئ | I6: 2024-03-04T17:47:00 | J6: ابرار بندر الشمري | K6: More than 72 Hours | L6: 2024-03-04 | M6: 17:47:00 | N6: ابرار بندر الشمري | O6: 2024-03-04 | P6: 17:47:00 | T6: 2024-03-04 | U6: 17:59:00 | V6: ابرار بندر الشمري | W6: 0.008333333331 | X6: 2024-03-05 | Y6: 18:39:00 | Z6: ابرار بندر الشمري | AA6: 1.027777778 | AB6: 2024-03-06 | AC6: 22:53:00 | AD6: امال ماهل القحطاني | AE6: 1.176388889 | AF6: 2024-03-09 | AG6: 14:40:00 | AH6: ابرار بندر الشمري | AI6: The complaint was escalated due to the department's failure to respond | AJ6: 4.861805556 | AK6: 2024-06-26 | AL6: 12:33:00 | AM6: امال ماهل القحطاني | AN6: 113.7736111 | AQ6: -45355.74931 | AU6: -45355.74931 | AX6: Clinical complaints | AY6: 1. Quality | AZ6: 1.3.Quality of Care | BA6: 1.3.5.Rushed, not time to see patients | BB6: تم حضورنا الى قسم الطورائ وبعد الانتهاء من الفرز تم توجيهنا الى العيادت الخارجية رغم ان لدي الم شديد في البطن وعند التوجهه والانتهاء من العيادة لاجراء الفحوصات المخبريه افادونا بمعاودة الزيارة وذلك لسبب انتاء ساعات العمل ، بالاضافة الى تلقي سوء معاملة من موظفة الفرز (ركاد ) . | BC6: We went to the emergency department and after the triage was completed, we were directed to the outpatient clinics, even though I had severe abdominal pain. When we went to the clinic and finished to conduct laboratory tests, they told us to come back again because the working hours had ended, in addition to receiving bad treatment from the triage employee (Rakad). | BE6: Patient | BS6: 2266 | BT6: 1819726 | BU6: وزارة الصحة | BV6: العيادات الخارجية | BW6: الإداري | BX6: استقبال العيادات الخارجية | BY6: 2024-03-07T09:53:00 | BZ6: امال ماهل القحطاني | CA6: More than 72 Hours | CC6: 2286 | CD6: 30318210 | CE6: مراجع | CF6: العيادات الخارجية | CG6: الطبي | CH6: عيادات جراحة المسالك البولية | CI6: 2024-03-14T14:35:00 | CJ6: مي سليمان الدخيل | CK6: More than 72 Hours | CM6: 2292 | CN6: 0 | CO6: ذوي المراجع | CP6: الطوارئ | CQ6: الإداري | CR6: المدير المناوب | CS6: 2024-03-20T16:46:00 | CT6: مي سليمان الدخيل | CU6: 48 Hours
B7: 5 | C7: 2258 | D7: 30308006 | E7: مراجع | F7: العيادات الخارجية | G7: الطبي | H7: عيادات جراحة العظام | I7: 2024-03-05T20:58:00 | J7: مي سليمان الدخيل | K7: More than 72 Hours | L7: 2024-03-05 | M7: 14:58:00 | N7: مي سليمان الدخيل | O7: 2024-03-05 | P7: 20:58:00 | Q7: 2024-03-06 | R7: 17:57:00 | S7: مي سليمان الدخيل | T7: 2024-03-06 | U7: 17:59:00 | V7: مي سليمان الدخيل | W7: 0.8756944444 | X7: 2024-03-09 | Y7: 13:21:00 | Z7: مي سليمان الدخيل | AA7: 2.806944444 | AB7: 2024-03-11 | AC7: 12:36:00 | AD7: مي سليمان الدخيل | AE7: 1.96875 | AJ7: -45357.74931 | AN7: -45357.74931 | AO7: 2024-03-20 | AP7: 15:07:00 | AQ7: 13.88055556 | AR7: 2024-03-20 | AS7: 15:07:00 | AT7: مي سليمان الدخيل | AU7: 13.88055556 | AV7: 2892 | AW7: Dr MAHMOUD ELAMIN ELTAYEB ABUGANAYA | AX7: Relationship Complaints | AY7: 5. Communication | AZ7: 5.1.Patient-staff communication | BA7: 5.1.2.Poor provider-patient communication | BB7: قمت بزيارة الدكتور محمد الأمين لكن لم أجد اي فائدة من ذلك قام بفك الجبيرة وكان يتفحص قدمي بعينيه ولم يتكلف بالاطلاع عليها كثيرًا فقط قام بتحركيها امام وللخلف، وكنت اقوم بسؤاله عن امور كثيرة لم يخبرني كيف امارس بعض الامور كالمشي والقيادة والنادي وغيرها... كان كل شيء احتاج لسؤاله عنه، وصرف لي مشد قدم عادي وليس دعامة لو كان ممكن يسند قدمي والمشد كان مؤلم جدًا كحد السكين!! وكنت احتاج لسؤاله متى ارتديه متى اتوقف عن ارتداءه متى استخدم ماذا افعل! والآن بعد شهرين من مراجعتي له أعاني من التهاب حاد في الوتر في نفس القدم ونفس جهة الكسر والتمزق التي حدثت لي وقتها! هل هذا بسبب اهماله حيث انه لم يقم بواجبه الكامل؟ لأن لا ارى اي مسبب غير ذلك، هو الطبيب هو من يحتاج ان يخبرني بكل شيء بدل من انتظاري لسؤاله، وانا الآن اعاني من ألم شدددديد جدًا | BC7: I visited Dr. Mohammed Al-Ameen, but I did not find any benefit from that. He removed the cast and was examining my foot with his eyes and did not bother to look at it carefully. He only moved it forward and backward. I was asking him about many things, and he did not tell me how to practice certain activities such as walking, driving, going to the gym, and others. I had to ask him about everything. He prescribed a regular ankle brace for me, not a supportive brace that could support my foot, and the brace was very painful like a knife!! I had to ask him when to wear it, when to stop wearing it, when to use it, and what I should do. Now, two months after my visit to him, I am suffering from severe tendon inflammation in the same foot and the same side of the fracture and tear that happened to me at that time! Is this because of his negligence, since he did not perform his full duty? Because I do not see any other cause than that. He is the doctor; he is the one who needs to tell me everything instead of waiting for me to ask him. And now I am suffering from very, very severe pain. | BE7: Patient | BI7: Employee Name | BJ7: Number of complaints | BK7: Total Percentage | BL7: 24 Hours | BM7: 48 Hours | BN7: 72 Hours | BO7: More than 72 hours | BP7: Total | BS7: 2268 | BT7: 30316197 | BU7: وزارة الصحة | BV7: العيادات الخارجية | BW7: الطبي | BX7: عيادات الباطنية | BY7: 2024-03-07T16:11:00 | BZ7: مي سليمان الدخيل | CA7: 24 Hours | CC7: 2293 | CD7: 30144357 | CE7: مراجع | CF7: العيادات الخارجية | CG7: الطبي | CH7: عيادات الأسنان | CI7: 2024-03-18T15:12:00 | CJ7: مي سليمان الدخيل | CK7: 24 Hours | CM7: 2307 | CN7: 30303663 | CO7: ذوي المراجع | CP7: الطوارئ | CQ7: الطبي | CR7: أطباء الطوارئ | CS7: 2024-03-21T17:01:00 | CT7: مي سليمان الدخيل | CU7: More than 72 Hours
B8: 6 | C8: 2260 | D8: 30301405 | E8: مراجع | F8: العيادات الخارجية | G8: الطبي | H8: عيادات العيون | I8: 2024-03-06T19:49:00 | J8: مي سليمان الدخيل | K8: More than 72 Hours | L8: 2024-03-05 | M8: 18:40:00 | N8: مي سليمان الدخيل | O8: 2024-03-06 | P8: 19:49:00 | Q8: 2024-03-06 | R8: 20:02:00 | S8: مي سليمان الدخيل | T8: 2024-03-07 | U8: 15:20:00 | V8: مي سليمان الدخيل | W8: 0.8131944444 | X8: 2024-03-09 | Y8: 13:22:00 | Z8: مي سليمان الدخيل | AA8: 1.918055556 | AB8: 2024-03-21 | AC8: 10:43:00 | AD8: مي سليمان الدخيل | AE8: 11.88958333 | AJ8: -45358.63889 | AN8: -45358.63889 | AO8: 2024-03-31 | AP8: 21:42:00 | AQ8: 24.26527778 | AR8: 2024-03-31 | AS8: 21:42:00 | AT8: مي سليمان الدخيل | AU8: 24.26527778 | AX8: Clinical complaints | AY8: 1. Quality | AZ8: 1.5.Diagnosis | BA8: 1.5.1.Errors in diagnosis | BB8: تم الكشف مع دكتور محمد العنزي يوم 29 فبراير وعرضي على اخصائية الفحص الاولي وتم اعطائي قياسات النظارة الجديدة وبعد الذهاب لعمل نظارة وبعد الاستلام اكتشفت انني لا اري بها جيدا فذهبت مرة اخري لمستشفي الحمادي للكشف مرة اخري وتم اعطائي قياسات مختلفة عن اول كشف (قياسات الكشف الثاني هي الصحيحة). حاليا اطالب باتخاذ اجراء وتعويضي عما حصل | BC8: I was examined by Dr. Mohammed Al-Anzi on February 29th and seen by a specialist for an initial consultation. I was given prescriptions for new glasses. After going to get the glasses and receiving them, I discovered that I couldn't see well with them. So I went back to Al-Hammadi Hospital for another examination, and they gave me different prescriptions than the first one (the second prescription is the correct one). I am currently demanding that action be taken and that I be compensated for what happened. | BE8: Patient | BI8: ابرار بندر الشمري | BJ8: 0 | BK8: 0.00% | BL8: 0 | BM8: 0 | BN8: 0 | BO8: 0 | BP8: 0 | BS8: 2271 | BT8: 30171668 | BU8: وزارة الصحة | BV8: العيادات الخارجية | BW8: الطبي | BX8: قسم المختبر | BY8: 2024-03-09T13:36:00 | BZ8: مي سليمان الدخيل | CA8: More than 72 Hours | CC8: 2295 | CD8: 30317128 | CE8: مراجع | CF8: التنويم | CG8: الطبي | CH8: تنويم الجراحة العامة | CI8: 2024-03-19T00:54:00 | CJ8: امال ماهل القحطاني | CK8: More than 72 Hours | CM8: 2314 | CN8: 30317018 | CO8: ذوي المراجع | CP8: العيادات الخارجية | CQ8: الإداري | CR8: استقبال العيادات الخارجية | CS8: 2024-03-24T01:08:00 | CT8: امال ماهل القحطاني | CU8: More than 72 Hours
B9: 7 | C9: 2261 | D9: 1092067 | E9: مراجع | F9: العيادات الخارجية | G9: الطبي | H9: عيادات المخ والأعصاب | I9: 2024-03-06T10:30:00 | J9: امال ماهل القحطاني | K9: 24 Hours | L9: 2024-03-06 | M9: 10:21:00 | N9: امال ماهل القحطاني | O9: 2024-03-06 | P9: 10:30:00 | Q9: 2024-03-06 | R9: 12:39:00 | S9: امال ماهل القحطاني | T9: 2024-03-06 | U9: 13:41:00 | V9: امال ماهل القحطاني | W9: 0.1326388889 | X9: 2024-03-07 | Y9: 09:39:00 | Z9: امال ماهل القحطاني | AA9: 0.8319444444 | AB9: 2024-03-07 | AC9: 09:53:00 | AD9: امال ماهل القحطاني | AE9: 0.009722222225 | AJ9: -45357.57014 | AN9: -45357.57014 | AO9: 2024-03-07 | AP9: 13:19:00 | AQ9: 0.9847222222 | AR9: 2024-03-07 | AS9: 13:19:00 | AT9: امال ماهل القحطاني | AU9: 0.9847222222 | AV9: 4977 | AW9: Dr WALEED MOHAMED MOHAMED ELDEIB | AX9: Management complaints | AY9: 4. Accessibility | AZ9: 4.1.Access | BA9: 4.1.2.Poor availability and scheduling | BB9: حضرت الموعد قبل الساعة العاشرة صباحا للدكتور وموعدي الساعة العاشرة صباحا وعند خروج المريض من الدكتور الساعة العاشرة صباحا أخبرتني الممرضة ان فية مرضى لم يستقبلهم الدكتور وجميعهم مواعيد سابقه الساعة 09:15 و09:30 و09:45 اضطريت ان الغي موعدي لان عندي ارتباطات ومواعيد اخر تصرف غير و غير لائق من قبل دكتور علما انه لم يتم التوضيح لي عن الاسباب , بانتظار ردكم . | BC9: I arrived before the doctor's appointment at 10:00 AM. When the patient left the doctor's office at 10:00 AM, the nurse told me that there were patients the doctor had not seen, all of whom had previous appointments at 9:15, 9:30, and 9:45. I had to cancel my appointment because I had other commitments and appointments. This was inappropriate and unacceptable behavior on the part of the doctor, although no explanation was given to me regarding the reasons. I await your response. | BE9: Patient | BI9: امال ماهل القحطاني | BJ9: 0 | BK9: 0.00% | BL9: 0 | BM9: 0 | BN9: 0 | BO9: 0 | BP9: 0 | BS9: 2273 | BT9: 30315737 | BU9: وزارة الصحة | BV9: العيادات الخارجية | BW9: الإداري | BX9: قسم التقارير الطبية | BY9: 2024-03-09T13:54:00 | BZ9: ابرار بندر الشمري | CA9: 24 Hours | CC9: 2298 | CD9: 30027403 | CE9: مراجع | CF9: العيادات الخارجية | CG9: الإداري | CH9: قسم الموافقات الطبية | CI9: 2024-03-20T01:52:00 | CJ9: مي سليمان الدخيل | CK9: 24 Hours | CM9: 2318 | CN9: 30254362 | CO9: ذوي المراجع | CP9: التنويم | CQ9: التمريض | CR9: تمريض تنويم الأطفال | CS9: 2024-03-25T15:54:00 | CT9: ابرار بندر الشمري | CU9: More than 72 Hours
B10: 8 | C10: 2264 | D10: 30150533 | E10: وزارة الصحة | F10: العيادات الخارجية | G10: الإداري | H10: قسم الموافقات الطبية | I10: 2024-03-06T18:14:00 | J10: ابرار بندر الشمري | K10: 24 Hours | L10: 2024-03-06 | M10: 18:14:00 | N10: ابرار بندر الشمري | O10: 2024-03-06 | P10: 18:14:00 | T10: 2024-03-06 | U10: 18:42:00 | V10: ابرار بندر الشمري | W10: 0.01944444444 | AA10: -45357.77917 | AE10: 0 | AJ10: -45357.77917 | AN10: -45357.77917 | AO10: 2024-03-07 | AP10: 16:06:00 | AQ10: 0.8916666667 | AR10: 2024-03-07 | AS10: 16:06:00 | AT10: ابرار بندر الشمري | AU10: 0.8916666667 | AX10: Clinical complaints | AY10: 6. Humanness / Caring | AZ10: 3.4.Finance and Billing | BA10: 6.4.2.No/Invalid consent obtained | BB10: تمت الإفادة برفع الطلب وعند التواصل مع شركة التامين إفادو بان لايوجد طلب مروفع من قبل المستشفى . | BC10: Then, the request was submitted, and you contacted the small company, and they informed you that there was no known request from the hospital. | BE10: Patient | BI10: مي سليمان الدخيل | BJ10: 2 | BK10: 100.00% | BL10: 0 | BM10: 0 | BN10: 2 | BO10: 0 | BP10: 2 | BS10: 2276 | BT10: 30118925 | BU10: وزارة الصحة | BV10: العيادات الخارجية | BW10: الإداري | BX10: استقبال العيادات الخارجية | BY10: 2024-03-11T20:51:00 | BZ10: امال ماهل القحطاني | CA10: More than 72 Hours | CC10: 2310 | CD10: 30303663 | CE10: مراجع | CF10: العيادات الخارجية | CG10: الطبي | CH10: عيادات الأسنان | CI10: 2024-03-22T04:29:00 | CJ10: امال ماهل القحطاني | CK10: More than 72 Hours | CM10: 2333 | CN10: 30244508 | CO10: ذوي المراجع | CP10: التنويم | CQ10: الطبي | CR10: قسم العلاج التنفسي | CS10: 2024-03-31T15:19:00 | CT10: ابرار بندر الشمري | CU10: More than 72 Hours
B11: 9 | C11: 2266 | D11: 1819726 | E11: وزارة الصحة | F11: العيادات الخارجية | G11: الإداري | H11: استقبال العيادات الخارجية | I11: 2024-03-07T09:53:00 | J11: امال ماهل القحطاني | K11: More than 72 Hours | L11: 2024-03-07 | M11: 09:53:00 | N11: امال ماهل القحطاني | O11: 2024-03-07 | P11: 09:53:00 | T11: 2024-03-07 | U11: 10:14:00 | V11: امال ماهل القحطاني | W11: 0.01458333333 | X11: 2024-03-10 | Y11: 14:09:00 | Z11: امال ماهل القحطاني | AA11: 3.163194444 | AB11: 2024-03-12 | AC11: 01:37:00 | AD11: امال ماهل القحطاني | AE11: 1.477777778 | AJ11: -45358.42639 | AN11: -45358.42639 | AO11: 2024-03-16 | AP11: 14:03:00 | AQ11: 9.159027778 | AR11: 2024-03-16 | AS11: 14:03:00 | AT11: امال ماهل القحطاني | AU11: 9.159027778 | AX11: Management complaints | AY11: 5. Communication | AZ11: 3.7.Medical records | BA11: 5.2.2.Communication of wrong information | BB11: تم التوجه لمدير العيادات لتعديل البيانات حيث ان اشكالية المريضه تم تسجيل ابنتها منى محمد برقم الهويه 11445340602 تاريخ الميلاد 27/4/1428 وقت الولاده باسم زوجة الاب الاولى وتم ابلاغ مدير العيادات بوجود تاريخ الولاده مسجل برقم الهويه وتقرير الولاده ايضا بالنظام لم يتم التجاوب بانتظار ردكم على ذلك . | BC11: The clinic manager was approached to amend the data, as the patient's problem was that her daughter, Mona Muhammad, was registered with ID number 11445340602, date of birth 4/27/1428, at the time of birth, in the name of the first stepmother. The clinic manager was informed that the date of birth was registered with the ID number and the birth report was also in the system. There was no response. We are waiting for your reply to that. | BE11: Patient | BI11: Total | BJ11: 2 | BK11: 100.00% | BL11: 0 | BM11: 0 | BN11: 2 | BO11: 0 | BP11: 2 | BS11: 2277 | BT11: 0 | BU11: وزارة الصحة | BV11: العيادات الخارجية | BW11: الإداري | BX11: استقبال العيادات الخارجية | BY11: 2024-03-12T11:59:00 | BZ11: مي سليمان الدخيل | CA11: More than 72 Hours | CC11: 2311 | CD11: 30303663 | CE11: مراجع | CF11: العيادات الخارجية | CG11: الإداري | CH11: استقبال المختبر | CI11: 2024-03-23T12:47:00 | CJ11: مي سليمان الدخيل | CK11: 24 Hours
B12: 10 | C12: 2267 | D12: 30141629 | E12: مجلس الضمان الصحي | F12: العيادات الخارجية | G12: الطبي | H12: عيادات النساء والولادة | I12: 2024-03-07T15:08:00 | J12: مي سليمان الدخيل | K12: 72 Hours | L12: 2024-03-07 | M12: 15:08:00 | N12: مي سليمان الدخيل | O12: 2024-03-07 | P12: 15:08:00 | T12: 2024-03-07 | U12: 15:16:00 | V12: مي سليمان الدخيل | W12: 0.005555555552 | X12: 2024-03-09 | Y12: 13:14:00 | Z12: مي سليمان الدخيل | AA12: 1.915277778 | AE12: -45360.55139 | AJ12: -45358.63611 | AN12: -45358.63611 | AO12: 2024-03-10 | AP12: 15:17:00 | AQ12: 3.000694444 | AR12: 2024-03-10 | AS12: 15:17:00 | AT12: مي سليمان الدخيل | AU12: 3.000694444 | AV12: 6722 | AW12: Dr DAAD ZOUKAN KARKOUT | AX12: Clinical complaints | AY12: 6. Humanness / Caring | AZ12: 3.4.Finance and Billing | BA12: 6.4.2.No/Invalid consent obtained | BB12: اكتب لكم بصفتي الموظف المسؤول عن التأمين الطبي وقد توجه الموظف للشركة لطلب المساعدة في حل المشكلة توجه الموظف بزوجته للمستشفى للولاده وقامت الدكتوره بإرسال تقارير لشركة التأمين وتقييم سمك الرحم بالعين المجرده بدون استخدام جهاز السونار وإجراء عملية قيصرية للمريضة قبل موافقة التأمين على ذلك مما تسبب في رفض تحمل تكلفة العملية القيصرية بالإضافه إلى تحميل الموظف كافة تكاليف الولادة وتكاليف علاج المولود مع العلم بأن التأمين الطبي يشمل المولود حتى 30 يوم بعد الولاده ولم يتم تقديم مطالبة لشركة التأمين وقام مقدم الخدمة بتقديم قضية لدفع التكاليف وتقرر ايقاف خدمات الموظف مما جعلنا نقوم بدفع المبلغ لحين اتخاذ اجراء عن تحميل الموظف كافة التكاليف ولم يتم مطالبة التأمين بالتكاليف الأخرى والتي لا تتعلق برفض العملية القيصرية. | BC12: I am writing to you in my capacity as the employee responsible for medical insurance. The employee approached the company seeking assistance in resolving the issue. The employee took his wife to the hospital for delivery, and the doctor sent reports to the insurance company and assessed the thickness of the uterus by the naked eye without using an ultrasound device, and performed a cesarean section for the patient before obtaining insurance approval. This resulted in the refusal to cover the cost of the cesarean section, in addition to charging the employee all delivery costs and the newborn’s treatment costs, even though the medical insurance covers the newborn for up to 30 days after birth. No claim was submitted to the insurance company, and the healthcare provider filed a case to claim payment of the costs. It was decided to suspend the employee’s services, which forced us to pay the amount until action is taken regarding charging the employee all the costs. The insurance was not billed for the other costs that are unrelated to the rejection of the cesarean section. | BE12: Patient | BS12: 2281 | BT12: 30308614 | BU12: وزارة الصحة | BV12: التنويم | BW12: الإداري | BX12: إدارة التنويم | BY12: 2024-03-12T20:42:00 | BZ12: امال ماهل القحطاني | CA12: More than 72 Hours
B13: 11 | C13: 2267 | D13: 30141629 | E13: مجلس الضمان الصحي | F13: العيادات الخارجية | G13: الإداري | H13: قسم الموافقات الطبية | I13: 2024-03-07T15:08:00 | J13: مي سليمان الدخيل | K13: 72 Hours | L13: 2024-03-07 | M13: 15:08:00 | N13: مي سليمان الدخيل | O13: 2024-03-07 | P13: 15:08:00 | T13: 2024-03-07 | U13: 15:15:00 | V13: مي سليمان الدخيل | W13: 0.004861111105 | AA13: -45358.63542 | AE13: 0 | AJ13: -45358.63542 | AN13: -45358.63542 | AO13: 2024-03-10 | AP13: 15:17:00 | AQ13: 3.001388889 | AR13: 2024-03-10 | AS13: 15:17:00 | AT13: مي سليمان الدخيل | AU13: 3.001388889 | AX13: Clinical complaints | AY13: 6. Humanness / Caring | AZ13: 3.4.Finance and Billing | BA13: 6.4.2.No/Invalid consent obtained | BB13: اكتب لكم بصفتي الموظف المسؤول عن التأمين الطبي وقد توجه الموظف للشركة لطلب المساعدة في حل المشكلة توجه الموظف بزوجته للمستشفى للولاده وقامت الدكتوره بإرسال تقارير لشركة التأمين وتقييم سمك الرحم بالعين المجرده بدون استخدام جهاز السونار وإجراء عملية قيصرية للمريضة قبل موافقة التأمين على ذلك مما تسبب في رفض تحمل تكلفة العملية القيصرية بالإضافه إلى تحميل الموظف كافة تكاليف الولادة وتكاليف علاج المولود مع العلم بأن التأمين الطبي يشمل المولود حتى 30 يوم بعد الولاده ولم يتم تقديم مطالبة لشركة التأمين وقام مقدم الخدمة بتقديم قضية لدفع التكاليف وتقرر ايقاف خدمات الموظف مما جعلنا نقوم بدفع المبلغ لحين اتخاذ اجراء عن تحميل الموظف كافة التكاليف ولم يتم مطالبة التأمين بالتكاليف الأخرى والتي لا تتعلق برفض العملية القيصرية. | BC13: I am writing to you in my capacity as the employee responsible for medical insurance. The employee approached the company seeking assistance in resolving the issue. The employee took his wife to the hospital for delivery, and the doctor sent reports to the insurance company and assessed the thickness of the uterus by the naked eye without using an ultrasound device, and performed a cesarean section for the patient before obtaining insurance approval. This resulted in the refusal to cover the cost of the cesarean section, in addition to charging the employee all delivery costs and the newborn’s treatment costs, even though the medical insurance covers the newborn for up to 30 days after birth. No claim was submitted to the insurance company, and the healthcare provider filed a case to claim payment of the costs. It was decided to suspend the employee’s services, which forced us to pay the amount until action is taken regarding charging the employee all the costs. The insurance was not billed for the other costs that are unrelated to the rejection of the cesarean section. | BE13: Patient | BI13: CCHI | BJ13: 2 | BK13: =BJ13/BK45 ->  | BS13: 2283 | BT13: 30172760 | BU13: وزارة الصحة | BV13: الطوارئ | BW13: الإداري | BX13: المدير المناوب | BY13: 2024-03-12T20:54:00 | BZ13: امال ماهل القحطاني | CA13: More than 72 Hours
B14: 12 | C14: 2268 | D14: 30316197 | E14: وزارة الصحة | F14: العيادات الخارجية | G14: الطبي | H14: عيادات الباطنية | I14: 2024-03-07T16:11:00 | J14: مي سليمان الدخيل | K14: 24 Hours | L14: 2024-03-07 | M14: 16:11:00 | N14: مي سليمان الدخيل | O14: 2024-03-07 | P14: 16:11:00 | T14: 2024-03-07 | U14: 16:20:00 | V14: مي سليمان الدخيل | W14: 0.006249999999 | AA14: -45358.68056 | AE14: 0 | AJ14: -45358.68056 | AN14: -45358.68056 | AO14: 2024-03-07 | AP14: 20:34:00 | AQ14: 0.1763888889 | AR14: 2024-03-07 | AS14: 20:34:00 | AT14: مي سليمان الدخيل | AU14: 0.1763888889 | AV14: 8825 | AW14: Dr YOUSEF A M ELNEMRAWI | AX14: Clinical complaints | AY14: 6. Humanness / Caring | AZ14: 1.4.Treatment | BA14: 2.1.9.Refusal to dispense medications | BB14: يفيد المستفيد ان المستشفى رفض صرف الوصفه الخارجيه الا بعد زيارة الاستشاري وعند زيارة الاستشاري رفض كتابة الوصفه الا بعد عمل تحاليل مع اخباره بوجود تحاليل من المستشفى الاخر لكنه رفض صرف الوصفه الا بعمل تحاليل مرة اخرى في المستشفى هذا | BC14: The patient reports that the hospital refused to dispense the outpatient prescription until after a consultation with the consultant. Upon seeing the consultant, the latter refused to write the prescription until further tests were conducted, despite the patient being informed that tests were already performed at another hospital. The consultant still refused to dispense the prescription unless the tests were repeated at this hospital. | BE14: Patient | BS14: 2299 | BT14: 30296732 | BU14: وزارة الصحة | BV14: التنويم | BW14: الطبي | BX14: وحدة العناية المركزة | BY14: 2024-03-19T21:21:00 | BZ14: ابرار بندر الشمري | CA14: 48 Hours | CM14: Employee Name | CN14: Number of complaints | CO14: Total Percentage | CP14: 24 Hours | CQ14: 48 Hours | CR14: 72 Hours | CS14: More than 72 hours | CT14: Total
A15: 2 | B15: 13 | C15: 2270 | D15: 1595494 | E15: مراجع | F15: العيادات الخارجية | G15: التمريض | H15: تمريض العيادات الخارجية | I15: 2024-03-09T11:15:00 | J15: ابرار بندر الشمري | K15: More than 72 Hours | L15: 2024-03-09 | M15: 11:06:00 | N15: ابرار بندر الشمري | O15: 2024-03-09 | P15: 11:15:00 | Q15: 2024-03-09 | R15: 15:07:00 | S15: ابرار بندر الشمري | T15: 2024-03-09 | U15: 15:07:00 | W15: 0.1611111111 | AA15: -45360.62986 | AE15: 0 | AJ15: -45360.62986 | AK15: 2024-07-14 | AL15: 19:31:00 | AM15: امال ماهل القحطاني | AN15: 127.1833333 | AQ15: -45360.62986 | AU15: -45360.62986 | AX15: Management complaints | AY15: 4. Accessibility | AZ15: 4.3.Delays | BA15: 4.1.4.Appointment delay | BB15: تأخيري للدخول عند الدكتور رغم انه موعدي كان قبل الآخرين ورغم ذلك كانت تسمح بدخول المرضى على كيفها حيث تم استقبال المريض وائل قبل استقبالي بالرغم من أن موعدي قبل المريض وائل | BC15: I was delayed in seeing the doctor, even though my appointment was before everyone else's. Despite this, she was letting patients in as she pleased; for example, Wael was seen before me, even though my appointment was earlier. | BE15: Patient | BI15: 24 Hours | BJ15: 48 Hours | BK15: 72 Hours | BL15: More than 72 hours | BS15: 2303 | BT15: 30250925 | BU15: وزارة الصحة | BV15: العيادات الخارجية | BW15: الإداري | BX15: قسم التقارير الطبية | BY15: 2024-03-20T00:29:00 | BZ15: ابرار بندر الشمري | CA15: 24 Hours | CC15: Employee Name | CD15: Number of complaints | CE15: Total Percentage | CF15: 24 Hours | CG15: 48 Hours | CH15: 72 Hours | CI15: More than 72 hours | CJ15: Total | CM15: ابرار بندر الشمري | CN15: 2 | CO15: =CN15/CN18 -> 22.22% | CP15: 0 | CQ15: 0 | CR15: 0 | CS15: 2 | CT15: 2
B16: 14 | C16: 2271 | D16: 30171668 | E16: وزارة الصحة | F16: العيادات الخارجية | G16: الطبي | H16: قسم المختبر | I16: 2024-03-09T13:36:00 | J16: مي سليمان الدخيل | K16: More than 72 Hours | L16: 2024-03-09 | M16: 13:36:00 | N16: مي سليمان الدخيل | O16: 2024-03-09 | P16: 13:36:00 | T16: 2024-03-09 | U16: 14:22:00 | V16: مي سليمان الدخيل | W16: 0.03194444445 | X16: 2024-03-11 | Y16: 12:34:00 | Z16: مي سليمان الدخيل | AA16: 1.925 | AB16: 2024-03-12 | AC16: 11:57:00 | AD16: مي سليمان الدخيل | AE16: 0.9743055556 | AJ16: -45360.59861 | AN16: -45360.59861 | AO16: 2024-03-17 | AP16: 14:41:00 | AQ16: 8.013194444 | AR16: 2024-03-17 | AS16: 14:41:00 | AT16: مي سليمان الدخيل | AU16: 8.013194444 | AX16: Clinical complaints | AY16: 1. Quality | AZ16: 1.3.Quality of Care | BA16: 3.7.6.Lab results issues | BB16: راجعت المختبر لاخذ نتيجة تحليل الورم الحليمي لاكثر من مره يقولون ماظهرت النتيجه واخر مره راجعتهم طلبو مني اعادة التحليل والدخول على الدكتوره بكشفيه جديده وعمل التحليل من جديد! بمعنى انهم اضاعو التحليل ويريدون مني الدفع من جديد وعمله من جديد!! | BC16: I went to the lab multiple times to get the results of my HPV test, but they kept saying the results weren't available. The last time I went, they asked me to repeat the test and see the doctor again with a new consultation fee! In other words, they lost the test and now they want me to pay again and have it done all over again!! | BE16: Patient | BI16: 0 | BJ16: 0 | BK16: 2 | BL16: 0 | BS16: 2309 | BT16: 30231323 | BU16: وزارة الصحة | BV16: العيادات الخارجية | BW16: الإداري | BX16: قسم التقارير الطبية | BY16: 2024-03-21T21:59:00 | BZ16: ابرار بندر الشمري | CA16: 24 Hours | CC16: ابرار بندر الشمري | CD16: 1 | CE16: =CD16/CD19 -> 10.00% | CF16: 0 | CG16: 0 | CH16: 0 | CI16: 1 | CJ16: 1 | CM16: امال ماهل القحطاني | CN16: 3 | CO16: =CN16/CN18 -> 33.33% | CP16: 0 | CQ16: 0 | CR16: 2 | CS16: 1 | CT16: 3
B17: 15 | C17: 2273 | D17: 30315737 | E17: وزارة الصحة | F17: العيادات الخارجية | G17: الإداري | H17: قسم التقارير الطبية | I17: 2024-03-09T13:54:00 | J17: ابرار بندر الشمري | K17: 24 Hours | L17: 2024-03-09 | M17: 13:54:00 | N17: ابرار بندر الشمري | O17: 2024-03-09 | P17: 13:54:00 | T17: 2024-03-09 | U17: 13:54:00 | W17: 0 | AA17: -45360.57917 | AE17: 0 | AJ17: -45360.57917 | AN17: -45360.57917 | AO17: 2024-03-09 | AP17: 14:29:00 | AQ17: 0.02430555555 | AR17: 2024-03-09 | AS17: 14:29:00 | AT17: ابرار بندر الشمري | AU17: 0.02430555555 | AX17: Management complaints | AY17: 3. Institutional Issues | AZ17: 3.7.Medical records | BA17: 3.7.3.Medical report issues | BB17: تم طلب مشهد بالمراجعه وتم الرفض من قبلهم . | BC17: A scene was requested for review and was rejected by them. | BE17: Patient | BI17: =BI16/BJ13 -> 0.00% | BJ17: =BJ16/BJ13 -> 0.00% | BK17: =BK16/BJ13 -> 100.00% | BL17: =BL16/BJ13 -> 0.00% | BS17: 2313 | BT17: 30037828 | BU17: وزارة الصحة | BV17: العيادات الخارجية | BW17: الطبي | BX17: عيادات الجهاز الهضمي والمناظير | BY17: 2024-03-23T16:45:00 | BZ17: ابرار بندر الشمري | CA17: 24 Hours | CC17: امال ماهل القحطاني | CD17: 3 | CE17: =CD17/CD19 -> 30.00% | CF17: 1 | CG17: 0 | CH17: 0 | CI17: 2 | CJ17: 3 | CM17: مي سليمان الدخيل | CN17: 4 | CO17: =CN17/CN18 -> 44.44% | CP17: 0 | CQ17: 1 | CR17: 0 | CS17: 3 | CT17: 4
B18: 16 | C18: 2275 | D18: 30269124 | E18: ذوي المراجع | F18: التنويم | G18: الإداري | H18: قسم الأمن | I18: 2024-03-11T11:54:00 | J18: مي سليمان الدخيل | K18: More than 72 Hours | L18: 2024-03-11 | M18: 11:41:00 | N18: مي سليمان الدخيل | O18: 2024-03-11 | P18: 11:54:00 | Q18: 2024-03-11 | R18: 12:06:00 | S18: مي سليمان الدخيل | T18: 2024-03-19 | U18: 14:19:00 | V18: مي سليمان الدخيل | W18: 8.100694444 | X18: 2024-03-19 | Y18: 14:39:00 | Z18: مي سليمان الدخيل | AA18: 0.01388888889 | AB18: 2024-03-21 | AC18: 10:31:00 | AD18: مي سليمان الدخيل | AE18: 1.827777778 | AJ18: -45370.59653 | AN18: -45370.59653 | AO18: 2024-03-24 | AP18: 10:50:00 | AQ18: 4.854861111 | AR18: 2024-03-24 | AS18: 10:50:00 | AT18: مي سليمان الدخيل | AU18: 4.854861111 | AX18: Management complaints | AY18: 5. Communication | AZ18: 5.1.Patient-staff communication | BA18: 5.1.1.Miscommunication with Patient | BB18: طلبت من الموظفه الموجوده بالعنايه في الفتره الصباحيه ان تسأل عن وقت خروج المريض وكان أسلوبها سيء في الرد على الاستفسار عن المريض وعندها تميز في التعامل بين الناس تتعاون مع الغير ولا تتعاون معي وتطاولت في الرد وجعلتني انتظرها لساعات بحجة أنها جالسه صايمة لاتريد التعاون ولا حتى سألت عن اسم المريض اسلوبها سيء في التعامل ولديها عدم مراعاة لمشاعر ذوي المريض | BC18: I asked the staff member on duty in the ICU during the morning shift to inquire about the patient's discharge time, but her response was rude. She showed favoritism, cooperating with others but ignoring me. She was disrespectful and made me wait for hours, claiming she was fasting. She didn't even ask for the patient's name. Her attitude was awful, and she showed no consideration for the feelings of the patient's family. | BE18: Patient | BS18: 2319 | BT18: 30303663 | BU18: وزارة الصحة | BV18: العيادات الخارجية | BW18: الطبي | BX18: قسم الصيدلية | BY18: 2024-03-25T20:00:00 | BZ18: مي سليمان الدخيل | CA18: More than 72 Hours | CC18: مي سليمان الدخيل | CD18: 6 | CE18: =CD18/CD19 -> 60.00% | CF18: 3 | CG18: 0 | CH18: 0 | CI18: 3 | CJ18: 6 | CM18: Total | CN18: =CN15+CN16+CN17 -> 9 | CO18: 100.00% | CP18: 0 | CQ18: 1 | CR18: 2 | CS18: 6 | CT18: =CT15+CT16+CT17 -> 9
B19: 17 | C19: 2276 | D19: 30118925 | E19: وزارة الصحة | F19: العيادات الخارجية | G19: الإداري | H19: استقبال العيادات الخارجية | I19: 2024-03-11T20:51:00 | J19: امال ماهل القحطاني | K19: More than 72 Hours | L19: 2024-03-11 | M19: 20:51:00 | N19: امال ماهل القحطاني | O19: 2024-03-11 | P19: 20:51:00 | T19: 2024-03-12 | U19: 00:49:00 | V19: امال ماهل القحطاني | W19: 0.1652777778 | X19: 2024-03-12 | Y19: 20:40:00 | Z19: امال ماهل القحطاني | AA19: 0.8270833333 | AE19: -45363.86111 | AJ19: -45363.03403 | AN19: -45363.03403 | AO19: 2024-03-15 | AP19: 01:40:00 | AQ19: 3.035416667 | AR19: 2024-03-15 | AS19: 01:40:00 | AT19: امال ماهل القحطاني | AU19: 3.035416667 | AX19: Management complaints | AY19: 3. Institutional Issues | AZ19: 3.4.Finance and Billing | BA19: 3.4.3.Calculate Additional amount | BB19: حضرت سابقا وودخلت على الطبيب ودفعت الكشفيه وبعد يومين غيرت التأمين وتم افادتي بعدم الدخول الا بعد دفع الكشفية علما انه لم يمر 14 يوم حسب النظام . | BC19: I came before and went to the doctor and paid the consultation fee, and two days later I changed my insurance and was informed that I could not go in until I paid the consultation fee, even though 14 days had not passed according to the system. | BE19: Patient | BI19: In-Patient | BJ19: 0 | BK19: =BJ19/BJ22 -> 0.00% | BS19: 2320 | BT19: 30317835 | BU19: وزارة الصحة | BV19: العيادات الخارجية | BW19: التمريض | BX19: تمريض غرفة التطعيمات | BY19: 2024-03-25T21:05:00 | BZ19: امال ماهل القحطاني | CA19: 24 Hours | CC19: Total | CD19: 10 | CE19: 100.00% | CF19: 4 | CG19: 0 | CH19: 0 | CI19: 6 | CJ19: 10
B20: 18 | C20: 2277 | D20: 0 | E20: وزارة الصحة | F20: العيادات الخارجية | G20: الإداري | H20: استقبال العيادات الخارجية | I20: 2024-03-12T11:59:00 | J20: مي سليمان الدخيل | K20: More than 72 Hours | L20: 2024-03-12 | M20: 11:59:00 | N20: مي سليمان الدخيل | O20: 2024-03-12 | P20: 11:59:00 | T20: 2024-03-14 | U20: 10:35:00 | V20: مي سليمان الدخيل | W20: 1.941666667 | X20: 2024-03-17 | Y20: 12:20:00 | Z20: مي سليمان الدخيل | AA20: 3.072916667 | AE20: -45368.51389 | AJ20: -45365.44097 | AN20: -45365.44097 | AO20: 2024-03-19 | AP20: 14:05:00 | AQ20: 5.145833333 | AR20: 2024-03-19 | AS20: 14:05:00 | AT20: مي سليمان الدخيل | AU20: 5.145833333 | AX20: Management complaints | AY20: 3. Institutional Issues | AZ20: 3.7.Medical records | BA20: 3.7.3.Medical report issues | BB20: المستفيده صاحبة رقم الهويه 1047221153 راجعت المستشفى فرع العليا عام 1424 هجريه وهي حامل تلك الفتره وحصل لها اجهاض وترغب بتسليمها جميع مايخص حالتها الصحيه من تقارير وتحاليل وشهادة ميلاد الطفل حيث تم طلبها سابقا وتم رفض تسليمها ماذكر | BC20: The beneficiary, ID number 1047221153, visited the Al-Ulya branch of the hospital in 1424 AH while pregnant. She suffered a miscarriage and wishes to receive all her medical reports, analyses, and the child's birth certificate, as she had previously requested them but was refused. | BE20: Patient | BI20: Out-Patient | BJ20: 2 | BK20: =BJ20/BJ22 -> 100.00% | BS20: 2321 | BT20: 30303663 | BU20: وزارة الصحة | BV20: العيادات الخارجية | BW20: الطبي | BX20: قسم العلاج الطبيعي | BY20: 2024-03-25T22:04:00 | BZ20: امال ماهل القحطاني | CA20: 24 Hours | CM20: Patient’s relatives | CN20: 9 | CO20: =CN20/BK45 -> 
B21: 19 | C21: 2281 | D21: 30308614 | E21: وزارة الصحة | F21: التنويم | G21: الإداري | H21: إدارة التنويم | I21: 2024-03-12T20:42:00 | J21: امال ماهل القحطاني | K21: More than 72 Hours | L21: 2024-03-12 | M21: 20:42:00 | N21: امال ماهل القحطاني | O21: 2024-03-12 | P21: 20:42:00 | T21: 2024-03-16 | U21: 10:16:00 | V21: امال ماهل القحطاني | W21: 3.565277778 | X21: 2024-03-17 | Y21: 20:32:00 | Z21: امال ماهل القحطاني | AA21: 1.427777778 | AB21: 2024-03-19 | AC21: 21:58:00 | AD21: امال ماهل القحطاني | AE21: 2.059722222 | AJ21: -45367.42778 | AN21: -45367.42778 | AO21: 2024-03-21 | AP21: 21:15:00 | AQ21: 5.457638889 | AR21: 2024-03-21 | AS21: 21:15:00 | AT21: امال ماهل القحطاني | AU21: 5.457638889 | AX21: Clinical complaints | AY21: 1. Quality | AZ21: 1.3.Quality of Care | BA21: 1.3.1.Substandard clinical/nursing care | BB21: لم يتم زيارة الغرفة ( 3156 ) الا مره واحده من قبل الاخصائية وتم توجيه عدة ملاحظات ولم يتم الاخذ بها او الاهتمام كما تم ذكره وكان هناك تأخير باجراءات والخدمات المقدمة تم محاولة التواصل مع مدير التنويم بعد ذلك لعدة مرات ولم يتم التجاوب ايضا تم خروج المريض وهو غير راضي عن الخدمات المقدمة له | BC21: Room 3156 was only visited once by the specialist, and several observations were made but ignored. There were delays in the procedures and services provided. Attempts to contact the admissions manager afterward were made several times, but there was no response. The patient was discharged dissatisfied with the services provided. | BE21: Patient | BI21: ER | BJ21: 0 | BK21: =BJ21/BJ22 -> 0.00% | BS21: 2323 | BT21: 30303663 | BU21: وزارة الصحة | BV21: العيادات الخارجية | BW21: الطبي | BX21: قسم الصيدلية | BY21: 2024-03-26T23:08:00 | BZ21: امال ماهل القحطاني | CA21: 48 Hours | CC21: Patients | CD21: 10 | CE21: =CD21/BK45 -> 
B22: 20 | C22: 2283 | D22: 30172760 | E22: وزارة الصحة | F22: الطوارئ | G22: الإداري | H22: المدير المناوب | I22: 2024-03-12T20:54:00 | J22: امال ماهل القحطاني | K22: More than 72 Hours | L22: 2024-03-12 | M22: 20:54:00 | N22: امال ماهل القحطاني | O22: 2024-03-12 | P22: 20:54:00 | T22: 2024-03-12 | U22: 20:59:00 | V22: امال ماهل القحطاني | W22: 0.003472222219 | AA22: -45363.87431 | AE22: 0 | AJ22: -45363.87431 | AN22: -45363.87431 | AO22: 2024-03-21 | AP22: 21:50:00 | AQ22: 9.035416667 | AR22: 2024-03-21 | AS22: 21:50:00 | AT22: امال ماهل القحطاني | AU22: 9.035416667 | AX22: Management complaints | AY22: 4. Accessibility | AZ22: 3.1.Administrative Policies and Procedures | BA22: 4.2.3.Patient detentionا | BB22: المراجعة تفيد بانه تم رفض استقباله بالرغم ان حالتها طارئه بسبب ان الهويه غير متوفره لديهم بالرغم انه تم ابلاغهم باني سوف احضر الهويه على الفور بعد اسعافي ولكنهم رفضوا استقبالي علما انه تم منعي من الخروج بعد ذلك والاغلاق على سيارتي بامر من المدير المناوب . | BC22: The review states that I was refused admission despite my emergency situation because they did not have my ID, even though I informed them that I would bring my ID immediately after I was treated, but they refused to admit me. Note that I was prevented from leaving after that and my car was locked by order of the duty manager. | BE22: Patient | BI22: Total | BJ22: 2 | BK22: =BK21+BK20+BK19 -> 100.00% | BS22: 2328 | BT22: 30303663 | BU22: وزارة الصحة | BV22: الطوارئ | BW22: الطبي | BX22: أطباء الطوارئ | BY22: 2024-03-28T16:12:00 | BZ22: ابرار بندر الشمري | CA22: 24 Hours | CM22: 24 Hours | CN22: 48 Hours | CO22: 72 Hours | CP22: More than 72 hours
B23: 21 | C23: 2286 | D23: 30318210 | E23: مراجع | F23: العيادات الخارجية | G23: الطبي | H23: عيادات جراحة المسالك البولية | I23: 2024-03-14T14:35:00 | J23: مي سليمان الدخيل | K23: More than 72 Hours | L23: 2024-03-14 | M23: 14:29:00 | N23: مي سليمان الدخيل | O23: 2024-03-14 | P23: 14:35:00 | Q23: 2024-03-14 | R23: 14:49:00 | S23: مي سليمان الدخيل | T23: 2024-03-14 | U23: 14:57:00 | V23: مي سليمان الدخيل | W23: 0.01527777778 | X23: 2024-03-17 | Y23: 13:25:00 | Z23: مي سليمان الدخيل | AA23: 2.936111111 | AB23: 2024-03-19 | AC23: 15:57:00 | AD23: مي سليمان الدخيل | AE23: 2.105555556 | AJ23: -45365.62292 | AN23: -45365.62292 | AO23: 2024-03-21 | AP23: 14:49:00 | AQ23: 6.994444444 | AR23: 2024-03-21 | AS23: 14:49:00 | AT23: مي سليمان الدخيل | AU23: 6.994444444 | AV23: 4941 | AW23: Dr USAMAH JBARA ABDELHAMEED ALBARGOUTHI | AX23: Relationship Complaints | AY23: 5. Communication | AZ23: 5.1.Patient-staff communication | BA23: 5.1.1.Miscommunication with Patient | BB23: تعامل الدكتور معي بسوء احترام عندما طلبت منه تغيير اداة الفحص وقام بطردي من العياده | BC23: The doctor treated me disrespectfully when I asked him to change the examination instrument and he expelled me from the clinic. | BE23: Patient | BI23: Medical | BJ23: 1 | BK23: =BJ23/BJ27 -> 50.00% | CC23: 24 Hours | CD23: 48 Hours | CE23: 72 Hours | CF23: More than 72 hours | CM23: 0 | CN23: 1 | CO23: 2 | CP23: 6
A24: 3 | B24: 22 | C24: 2288 | D24: 30285541 | E24: ذوي المراجع | F24: التنويم | G24: الطبي | H24: وحدة العناية المركزة | I24: 2024-03-16T13:00:00 | J24: امال ماهل القحطاني | K24: 72 Hours | L24: 2024-03-16 | M24: 12:27:00 | N24: امال ماهل القحطاني | O24: 2024-03-16 | P24: 13:00:00 | Q24: 2024-03-17 | R24: 20:36:00 | S24: امال ماهل القحطاني | T24: 2024-03-18 | U24: 21:14:00 | V24: امال ماهل القحطاني | W24: 2.343055556 | X24: 2024-03-19 | Y24: 21:57:00 | Z24: امال ماهل القحطاني | AA24: 1.029861111 | AE24: -45370.91458 | AJ24: -45369.88472 | AN24: -45369.88472 | AO24: 2024-03-21 | AP24: 21:03:00 | AQ24: 2.992361111 | AR24: 2024-03-21 | AS24: 21:03:00 | AT24: امال ماهل القحطاني | AU24: 2.992361111 | AV24: 14371 | AW24: Dr ELSAYED MOUSTAFA ELSAYED HELLA | AX24: Relationship Complaints | AY24: 5. Communication | AZ24: 5.1.Patient-staff communication | BA24: 5.1.1.Miscommunication with Patient | BB24: اود التعبير عن بالغ شكرنا لما يجده الوالد من اهتمام بدءأً من الاطباء بشكل عام وصولاً لقيادات المستشفى إلا أنني اجد مما يدعو للأسف ان يسيء احدهم لسمعة هذا الصرح الطبي المتميز وذلك من خلال التعامل بطريقة تفتقد للاحترام مع أقارب المرضى وهذا ما حصل في العناية المركز من احد الاطباء من الجنسية المصرية (سيد) حيث وصل الوالد للغرفة وفوجئت بوجود مريض آخر بالداخل (شفاه االله) وحين سواله عن انه يوجد مريض بالداخل وحالة الوالد لا تحتمل العدوى اطلاقاً فقال بالنص( السؤال ايه بالزبط) بطريقة اقل ما توصف بانها تفتقد للباقة والتهذيب. فقلت يا دكتور نريد ان يكون في غرفة خاصة تقديراً لوضعه الصحي فرد بالنص( هي المستشفى بتاعتي) !!!!!! ومن المؤسف جداً ان يكون هذا اول استقبال للمريض بعد الخروج من عمليته وإساءة التعامل مع مرافق المريض دون اي داعي لكل ذلك ، أنا هنا لاسجل موقف لعدم تكرار ذلك لأقارب مريض آخر لا اكثر. ملاحظة / الوالد لديه التهاب بعد خروجه من العناية في تقديري لو كان في غرفة خاصة منذ البداية كان بالامكان تلافي ذلك. تحية لمنسوبي الحمادي فرداً فردا. | BC24: would like to express our sincere gratitude for the great care my father has received, starting from the doctors in general to the hospital leadership. However, it is unfortunate that one individual would harm the reputation of this distinguished medical institution by dealing with patients’ relatives in a disrespectful manner. This occurred in the Intensive Care Unit by one of the doctors of Egyptian nationality (Sayed). When my father was brought to the room, I was surprised to find another patient inside (may God heal him). When I asked about the presence of another patient in the room, considering that my father’s condition does not tolerate infection at all, he replied verbatim, “What exactly is the question?” in a manner that can only be described as lacking politeness and courtesy. I said, “Doctor, we would like him to be in a private room in consideration of his health condition,” and he replied verbatim, “Is the hospital mine?!” It is very unfortunate that this was the first reception for the patient after coming out of surgery, along with the mistreatment of the patient’s companion without any justification. I am only documenting this so that it does not happen again to another patient’s family. Note: My father developed an infection after leaving the ICU. In my opinion, if he had been placed in a private room from the beginning, this could have been avoided. Greetings to all Al Hammadi staff, each and every one of them | BE24: Patient | BI24: Admin | BJ24: 1 | BK24: =BJ24/BJ27 -> 50.00% | BS24: Employee Name | BT24: Number of complaints | BU24: Total Percentage | BV24: 24 Hours | BW24: 48 Hours | BX24: 72 Hours | BY24: More than 72 hours | BZ24: Total | CC24: 4 | CD24: 0 | CE24: 0 | CF24: 6 | CM24: =CM23/CN20 -> 0.00% | CN24: =CN23/CN20 -> 11.11% | CO24: =CO23/CN20 -> 22.22% | CP24: =CP23/CN20 -> 66.67%
B25: 23 | C25: 2291 | D25: 30172760 | E25: ذوي المراجع | F25: التنويم | G25: الخدمات المساندة | H25: قسم المطبخ | I25: 2024-03-17T23:09:00 | J25: امال ماهل القحطاني | K25: 72 Hours | L25: 2024-03-17 | M25: 22:54:00 | N25: امال ماهل القحطاني | O25: 2024-03-17 | P25: 23:09:00 | Q25: 2024-03-30 | R25: 23:24:00 | S25: امال ماهل القحطاني | T25: 2024-03-31 | U25: 21:22:00 | V25: امال ماهل القحطاني | W25: 13.92569444 | X25: 2024-04-02 | Y25: 12:57:00 | Z25: امال ماهل القحطاني | AA25: 1.649305556 | AB25: 2024-04-02 | AC25: 15:14:00 | AD25: امال ماهل القحطاني | AE25: 0.09513888889 | AJ25: -45382.89028 | AN25: -45382.89028 | AO25: 2024-04-03 | AP25: 15:21:00 | AQ25: 2.749305556 | AR25: 2024-04-03 | AS25: 15:21:00 | AT25: امال ماهل القحطاني | AU25: 2.749305556 | AX25: Clinical complaints | AY25: 3. Institutional Issues | AZ25: 3.2.Environment | BA25: 3.2.4.Poor Food service | BB25: تم افادتنا من المريض وذويه بانه لم يتم توفير الافطار والسحور للمريض بانتظار ردكم على الشكوى . | BC25: We were informed by the patient and his family that breakfast and suhoor were not provided to the patient. We await your response to the complaint. | BE25: Patient | BI25: Nursing | BJ25: 0 | BK25: =BJ25/BJ27 -> 0.00% | BS25: ابرار بندر الشمري | BT25: 8 | BU25: =BT25/BT28 -> 38.10% | BV25: 6 | BW25: 1 | BX25: 0 | BY25: 1 | BZ25: 8 | CC25: =CC24/CD21 -> 40.00% | CD25: =CD24/CD21 -> 0.00% | CE25: =CE24/CD21 -> 0.00% | CF25: =CF24/CD21 -> 60.00%
B26: 24 | C26: 2292 | D26: 0 | E26: ذوي المراجع | F26: الطوارئ | G26: الإداري | H26: المدير المناوب | I26: 2024-03-20T16:46:00 | J26: مي سليمان الدخيل | K26: 48 Hours | L26: 2024-03-18 | M26: 14:38:00 | N26: مي سليمان الدخيل | O26: 2024-03-20 | P26: 16:46:00 | Q26: 2024-03-21 | R26: 12:08:00 | S26: مي سليمان الدخيل | T26: 2024-03-21 | U26: 12:09:00 | V26: مي سليمان الدخيل | W26: 0.8076388889 | AA26: -45372.50625 | AE26: 0 | AJ26: -45372.50625 | AN26: -45372.50625 | AO26: 2024-03-23 | AP26: 10:20:00 | AQ26: 1.924305556 | AR26: 2024-03-23 | AS26: 10:20:00 | AT26: مي سليمان الدخيل | AU26: 1.924305556 | AX26: Management complaints | AY26: 4. Accessibility | AZ26: 4.1.Access | BA26: 4.1.3.Patient admission refusal | BB26: تم مراجعة قسم الطوارئ لحالة اسعافية بتاريخ 18 نوفمبر 2023 الساعة السادسة صباحا (تقريبا) حيث ان المريض هي زوجتي، وقد طلب موظف الاستقبال مني هوية المريضة لادخالها فاخبرته اني لا أملك هويتها حاليا وقدمت له هويتي وبطاقة العائلة إلا انه اصر على تقديم هوية المريضة. طلبت منه حينها أن يقوم بمعاينة الحالة وادخلها وتقديم الرعاية الأولية وساقوم بتوفير كامل المتطلبات إلا أنه رفض!! طلبت من موظف الفرز القيام بواجبه إلا أنه رفض تقديم العون إلا بعد انتهاء الاجراءات من موظف الاستقبال! طلب منه تقديم كرسي متحرك حيث كانت متواجده في الممر إلا أنه رفض أيضا!!! قمت حينها برفع الجوال (من دون تصوير) لايضاح انه في حالة عدم تقديم الخدمة سأوثقها ورفعها للمسؤول والجهات المعنية. إلا أنه استمر في الرفض. طلبت مقابلة المدير المناوب ولم يكن موجودا حينها ثم بعد قدومه طلبت منه ادخال الحالة والتعامل معها فرفض ايضا مهددا انه سيعاقبني بسبب رفع الجوال. كررت الطلب مرارا الا تجاهلني ومن ثم تهجم علي وهددني بابلاغ الشرطة. قدمت له بطاقتي الشخصي موضحا ان من الممكن معالجة أي إشكالية لديه بعد اسعاف الحالة إلا انه رفض!!!! قمت حينها بنقل زوجتي الى السيارة للانتقال الى مستفى آخر فقام المدير المناوب حينها بتوجيه موظف الأمن بالاعتراض على سيارتي حتى لا أتمكن من الذهب ونقل زوجتي لمستشفى آخر. قمت حينها بتوثيق الحالة من خلال كاميرة جوالي وذلك خارج المستشفى (لدي تسجيل مرئي يوضح تعمد الاعتراض على سيارتي) ورقم لوحه السيارة وصورة المدير المناوب ورحل الامن المعترض. حيث ان العمل الذي تم ضدي عمل جنائي من قبل موظفي المستشفى وذلك بالتعدي (((العمد))) في منعي من نقل حالة اسعافية فضلا عن جريمة الامتناع من تقديم الرعاية الطبية الاسعافية. قمت حينها بتصوير سيارة الموظف المعتدي ورقم لوحته ثم حاولت الخروج لكني لم استطيع بعد عدة محاولات وبسبب حرج الحالة الصحية لزوجتي ذلك لرجل الامن انه هو المسؤول الاول في حالة اصابت زوجتي باي عارض ولن يعفيه انه تلقى الاوامر من قبل المدير المناوب واني قمت بتصوير السيارة ولوحتها فخاف ثم ذهب. انتقلت لمستشفى الحبيب بشكل مستعجل وتم تعامل مستشفى الحبيب مع الحالة بشكل احترافي واثبتوا ان الحالة كانت بحاجة الى تدخل سريع وأن الحالة كانت ستكون أفضل لو تم اسعافها بشكل أسرع. قمت بتقديم شكوى عبر مركز الاتصال الا ان المستشفى لم يؤدي واجبه. اعزم على البدء باجراءات قضائية وأمنية ضد المستشفى جراء ارتكاب جريمة تعمد عدم تقديم الرعاية الصحية الاسعافية لزوجتي، وجريمة ((تعمد)) الاعتراض على تقديم الحالة الاسعافية للمريض. | BC26: I visited the Emergency Department for an urgent case on November 18, 2023, at approximately 6:00 AM. The patient was my wife. The receptionist asked me for the patient’s ID to register her. I informed him that I did not have her ID at that moment and provided my own ID and the family card, but he insisted on the patient’s ID. I then asked him to assess the case, admit her, and provide initial medical care, and that I would provide all required documents afterward, but he refused. I requested the triage staff to perform their duty, but they also refused to provide assistance until the registration procedures were completed by the receptionist. I asked for a wheelchair, as she was in the corridor, but this was also refused. At that point, I raised my phone (without recording) to make it clear that if the service was not provided, I would document it and escalate it to the responsible authorities. He continued to refuse. I requested to see the on-duty manager, who was not present at the time. When he arrived, I asked him to admit the case and handle it, but he also refused and threatened to punish me for raising my phone. I repeated my request several times, but he ignored me and then verbally attacked me and threatened to call the police. I provided him with my personal ID, explaining that any issue he had could be resolved after providing emergency care, but he refused. I then moved my wife to the car to take her to another hospital. At that point, the on-duty manager instructed the security guard to block my car so that I could not leave and transfer my wife to another hospital. I documented the incident using my phone camera outside the hospital (I have a video recording showing the deliberate blocking of my car), including the car’s license plate number and a photo of the on-duty manager and the security guard who blocked me. The act committed against me was criminal conduct by the hospital staff, deliberately preventing me from transferring an emergency case, in addition to the crime of refusing to provide emergency medical care. I photographed the vehicle of the employee who blocked me and its license plate number. I attempted to leave several times but was unable to do so. Due to my wife’s critical condition, I informed the security guard that he would be fully responsible if any harm happened to my wife and that receiving orders from the on-duty manager would not absolve him of responsibility. I also informed him that I had photographed the car and its plate number. He then became afraid and left. I urgently transferred my wife to Al Habib Hospital, where the case was handled professionally. They confirmed that the condition required immediate intervention and that it would have been better if she had received faster emergency care. I filed a complaint through the call center, but the hospital did not fulfill its duty. I intend to initiate legal and security الإجراءات against the hospital for committing the crime of deliberately refusing to provide emergency medical care to my wife and the crime of deliberately obstructing the transfer of an emergency patient | BE26: Patient | BI26: Support Services | BJ26: 0 | BK26: =BJ26/BJ27 -> 0.00% | BS26: امال ماهل القحطاني | BT26: 8 | BU26: =BT26/BT28 -> 38.10% | BV26: 3 | BW26: 1 | BX26: 0 | BY26: 4 | BZ26: 8 | CM26: In-Patient | CN26: 6 | CO26: =CN26/CN29 -> 66.67%
B27: 25 | C27: 2293 | D27: 30144357 | E27: مراجع | F27: العيادات الخارجية | G27: الطبي | H27: عيادات الأسنان | I27: 2024-03-18T15:12:00 | J27: مي سليمان الدخيل | K27: 24 Hours | L27: 2024-03-18 | M27: 15:01:00 | N27: مي سليمان الدخيل | O27: 2024-03-18 | P27: 15:12:00 | Q27: 2024-03-18 | R27: 16:05:00 | S27: مي سليمان الدخيل | T27: 2024-03-19 | U27: 14:22:00 | V27: مي سليمان الدخيل | W27: 0.9652777778 | AA27: -45370.59861 | AE27: 0 | AJ27: -45370.59861 | AN27: -45370.59861 | AO27: 2024-03-20 | AP27: 10:20:00 | AQ27: 0.8319444444 | AR27: 2024-03-20 | AS27: 10:20:00 | AT27: مي سليمان الدخيل | AU27: 0.8319444444 | AV27: 90832 | AW27: Dr SADOUN MOHAMMED ALBAIJI | AX27: Clinical complaints | AY27: 1. Quality | AZ27: 1.3.Quality of Care | BA27: 1.3.5.Rushed, not time to see patients | BB27: كان لدي موعد مراجعة مع الدكتور سعدون 2 مارس وقبل دخولي عليه عند الباب دخل مراجع اليه معي موعده بعدي واخبرني المراجع ان الدكتور سوف يتفحصني بشكل سريع كعادته ليبدأ العمل في المريض الذي يليه وللاسف هذا ما حدث تكلم معي لفترة بسيطة لاجل ان تحسب المراجعة وانهاء المراجعة دون العمل في اسناني! | BC27: I had a follow-up appointment with Dr. Saadoun on March 2nd. Before I entered his office, another patient who had an appointment after mine entered the door and told me that the doctor would quickly examine me as usual to start working on the next patient. Unfortunately, that's what happened. He spoke to me briefly so that the appointment would be counted and the appointment would be over without working on my teeth! | BE27: Patient | BI27: Total | BJ27: 2 | BK27: =BK26+BK25+BK24+BK23 -> 100.00% | BS27: مي سليمان الدخيل | BT27: 5 | BU27: =BT27/BT28 -> 23.81% | BV27: 2 | BW27: 0 | BX27: 0 | BY27: 3 | BZ27: 5 | CC27: In-Patient | CD27: 1 | CE27: =CD27/CD30 -> 10.00% | CM27: Out-Patient | CN27: 1 | CO27: =CN27/CN29 -> 11.11%
B28: 26 | C28: 2295 | D28: 30317128 | E28: مراجع | F28: التنويم | G28: الطبي | H28: تنويم الجراحة العامة | I28: 2024-03-19T00:54:00 | J28: امال ماهل القحطاني | K28: More than 72 Hours | L28: 2024-03-18 | M28: 22:31:00 | N28: امال ماهل القحطاني | O28: 2024-03-19 | P28: 00:54:00 | Q28: 2024-03-20 | R28: 23:17:00 | S28: امال ماهل القحطاني | T28: 2024-03-21 | U28: 02:06:00 | V28: امال ماهل القحطاني | W28: 2.05 | X28: 2024-03-21 | Y28: 23:37:00 | Z28: امال ماهل القحطاني | AA28: 0.8965277778 | AB28: 2024-03-21 | AC28: 23:38:00 | AD28: امال ماهل القحطاني | AE28: 0.0006944444467 | AJ28: -45372.0875 | AN28: -45372.0875 | AO28: 2024-03-30 | AP28: 22:29:00 | AQ28: 9.849305556 | AR28: 2024-03-30 | AS28: 22:29:00 | AT28: امال ماهل القحطاني | AU28: 9.849305556 | AV28: 16288 | AW28: Dr SALEH ABDULLAH SALEH ALGHAMDI | AX28: Relationship Complaints | AY28: 5. Communication | AZ28: 5.1.Patient-staff communication | BA28: 5.1.1.Miscommunication with Patient | BB28: 1-تم تنويمي واجريت عمليه وبعدها ظهر تورم شديد وتنمل في الطرف مستمر الى هذي اللحضه ٢-الطبيب لم يحضر لمتابعه الحاله بعد العمليه وصعدنا بشكوى للمدير الطبي احضر الطبيب المعالج واثناء ذلك قام بتلفض والتهجم علينا بحضور الفريق الطبي والمدير الطبي 3 -بعد رفض الدكتور صالح اتمام العلاج احضر المدير الطبي طبيب خارج المستشفى الرحيلي وقرر اخذ مسحه طبيه وعمل تخطيط الاعصاب وطلب بقاء في تنويم لكمال العلاج ولكن حضر المدير الطبي ورفض البقاء في المستشفى ورفض استكمال العلاج بالمستشفى . | BC28: 1. I was admitted and underwent surgery. Afterwards, I experienced severe swelling and numbness in my limb, which persists to this day. 2. The doctor did not come to follow up after the surgery, so we filed a complaint with the medical director. He summoned the attending physician, who then verbally abused and attacked us in the presence of the medical team and the medical director. 3. After Dr. Saleh refused to continue the treatment, the medical director brought in a doctor from outside the hospital, Al-Rahili Hospital. This doctor ordered a medical swab and nerve conduction studies and requested that I remain hospitalized to complete the treatment. However, the medical director arrived and refused to allow me to stay at the hospital or continue treatment there. | BE28: Patient | BS28: Total | BT28: =BT25+BT26+BT27 -> 21 | BU28: 100.00% | BV28: 15 | BW28: 2 | BX28: 0 | BY28: 2 | BZ28: 21 | CC28: Out-Patient | CD28: 9 | CE28: =CD28/CD35 -> 90.00% | CM28: ER | CN28: 2 | CO28: =CN28/CN29 -> 22.22%
B29: 27 | C29: 2298 | D29: 30027403 | E29: مراجع | F29: العيادات الخارجية | G29: الإداري | H29: قسم الموافقات الطبية | I29: 2024-03-20T01:52:00 | J29: مي سليمان الدخيل | K29: 24 Hours | L29: 2024-03-19 | M29: 16:16:00 | N29: مي سليمان الدخيل | O29: 2024-03-20 | P29: 01:52:00 | Q29: 2024-03-20 | R29: 14:14:00 | S29: مي سليمان الدخيل | T29: 2024-03-20 | U29: 14:25:00 | V29: مي سليمان الدخيل | W29: 0.5229166667 | AA29: -45371.60069 | AE29: 0 | AJ29: -45371.60069 | AN29: -45371.60069 | AO29: 2024-03-21 | AP29: 10:29:00 | AQ29: 0.8361111111 | AR29: 2024-03-21 | AS29: 10:29:00 | AT29: مي سليمان الدخيل | AU29: 0.8361111111 | AX29: Relationship Complaints | AY29: 5. Communication | AZ29: 5.1.Patient-staff communication | BA29: 5.1.1.Miscommunication with Patient | BB29: كانت الموظفة في المختبر وقحة للغاية ولم تُقدّم لي أي مساعدة. مكثتُ قرابة خمس ساعات في المستشفى، وكانت ترفض مساعدتي وتُعاملني وكأنني جاهلة. ذهبتُ أيضًا إلى قسم علاقات المرضى، وبعد خمس ساعات، كنتُ أبكي في مكتب علاقات المرضى. ربما ستكون هذه زيارتي الأخيرة بعد إجراء الفحوصات في مستشفى حمادي. يجب اتخاذ إجراءات صارمة وتوجيه إنذار لتلك الفتاة. إنها بحاجة إلى تدريب على التعامل بلطف مع المرضى وتقديم المساعدة لهم. | BC29: Clerk in Lab was very rude and was not helping me. I stayed for almost 5 hours at hospital and she was resisting to help me and was serving me as if i am ignorant. I went to patient relations department S well and after 5 hours I was crying in patient relations office. Probably this will be my last visit once tests are done to Hammadi. Strict action and warning issuance against that girl. training is needed to be polite with patients and helpful | BE29: Patient | CC29: ER | CD29: 0 | CE29: =CD29/CD35 -> 0.00% | CM29: Total | CN29: 9 | CO29: 100.00%
B30: 28 | C30: 2299 | D30: 30296732 | E30: وزارة الصحة | F30: التنويم | G30: الطبي | H30: وحدة العناية المركزة | I30: 2024-03-19T21:21:00 | J30: ابرار بندر الشمري | K30: 48 Hours | L30: 2024-03-19 | M30: 21:21:00 | N30: ابرار بندر الشمري | O30: 2024-03-19 | P30: 21:21:00 | T30: 2024-03-19 | U30: 21:38:00 | V30: ابرار بندر الشمري | W30: 0.01180555556 | X30: 2024-03-20 | Y30: 20:49:00 | Z30: ابرار بندر الشمري | AA30: 0.9659722222 | AE30: -45371.86736 | AJ30: -45370.90139 | AN30: -45370.90139 | AO30: 2024-03-21 | AP30: 21:26:00 | AQ30: 1.991666667 | AR30: 2024-03-21 | AS30: 21:26:00 | AT30: ابرار بندر الشمري | AU30: 1.991666667 | AX30: Clinical complaints | AY30: 1. Quality | AZ30: 1.4.Treatment | BA30: 1.4.1.Treatment plan issues | BB30: تفيد ابنة المريضه بإن لايوجد تحسن بالحالة بل زادت سوء وهي في حالة تخدير دائم حيث يتم اعطائها علاج مخدر للاعصاب لاكثر من شهر مماتسبب بحالة اللاوعي وتقرحات لم يتم ملاحظتها طبياً . | BC30: The patient's daughter reports that there is no improvement in her condition, but rather it has worsened. She is in a state of constant anesthesia, as she has been given nerve anesthetic medication for more than a month, which has caused a state of unconsciousness and ulcers that have not been medically observed. | BE30: Patient | BS30: MOH | BT30: 21 | BU30: =BT30/BK45 ->  | CC30: Total | CD30: 10 | CE30: =CD30/CD35 -> 100.00% | CM30: Medical | CN30: 3 | CO30: =CN30/CN34 -> 33.33%
B31: 29 | C31: 2303 | D31: 30250925 | E31: وزارة الصحة | F31: العيادات الخارجية | G31: الإداري | H31: قسم التقارير الطبية | I31: 2024-03-20T00:29:00 | J31: ابرار بندر الشمري | K31: 24 Hours | L31: 2024-03-20 | M31: 00:29:00 | N31: ابرار بندر الشمري | O31: 2024-03-20 | P31: 00:29:00 | T31: 2024-03-20 | U31: 00:29:00 | W31: 0 | AA31: -45371.02014 | AE31: 0 | AJ31: -45371.02014 | AN31: -45371.02014 | AO31: 2024-03-20 | AP31: 01:08:00 | AQ31: 0.02708333333 | AR31: 2024-03-20 | AS31: 01:08:00 | AT31: ابرار بندر الشمري | AU31: 0.02708333333 | AX31: Management complaints | AY31: 3. Institutional Issues | AZ31: 3.7.Medical records | BA31: 3.7.6.Lab results issues | BB31: تم عمل تحاليل (هرمون حمل ) ولم تظهر عبر التطبيق وحاولت الاتصال بالمستشفى لحل الاشكالية ولم يتم حل المشكله . | BC31: Pregnancy hormone tests were done and did not appear through the application. I tried to contact the hospital to resolve the issue, but the problem was not resolved. | BE31: Patient | CC31: Medical | CD31: 7 | CE31: =CD31/CD35 -> 70.00% | CM31: Admin | CN31: 3 | CO31: =CN31/CN34 -> 33.33%
B32: 30 | C32: 2307 | D32: 30303663 | E32: ذوي المراجع | F32: الطوارئ | G32: الطبي | H32: أطباء الطوارئ | I32: 2024-03-21T17:01:00 | J32: مي سليمان الدخيل | K32: More than 72 Hours | L32: 2024-03-20 | M32: 14:17:00 | N32: مي سليمان الدخيل | O32: 2024-03-21 | P32: 17:01:00 | Q32: 2024-03-23 | R32: 11:43:00 | S32: مي سليمان الدخيل | T32: 2024-03-23 | U32: 13:29:00 | V32: مي سليمان الدخيل | W32: 1.852777778 | X32: 2024-03-25 | Y32: 19:59:00 | Z32: مي سليمان الدخيل | AA32: 2.270833333 | AE32: -45376.83264 | AJ32: -45374.56181 | AN32: -45374.56181 | AO32: 2024-03-26 | AP32: 20:25:00 | AQ32: 3.288888889 | AR32: 2024-03-26 | AS32: 20:25:00 | AT32: مي سليمان الدخيل | AU32: 3.288888889 | AV32: 15124 | AW32: RAWAN KHOJALY MOHAMED OSMAN | AX32: Management complaints | AY32: 3. Institutional Issues | AZ32: 3.4.Finance and Billing | BA32: 3.4.3.Calculate Additional amount | BB32: حضرت فى حالة طارئة بالوالدة التى ليس لديها غير تأمين الزيارة ، ووجهونا الطوارئ بضرورة التنويم على الرغم من ان التقارير الطبية والاشعة والتحاليل لم تكن تستدعى التنويم على حسب بروتوكلات العلاج، كما طالبوني بالتوقيع على تعهد فى حالة خروجه من المستشفى. لا يهمنى المبلغ المدفوع اذا كان من حقكم ولكن اذا كان ليس لكم فاننى غير مسامح فيه. حاليا اطالب برد مبلغ الغرفةحيث ان المريضه لاتعاني من التهاب رئوي وحالتها لاتستدعي التنويم حسب كلام دكتور التنويم | BC32: I brought my mother in as an emergency. She only had visitor's insurance, and the emergency room staff insisted on her admission, even though the medical reports, X-rays, and lab results didn't warrant it according to the treatment protocols. They also asked me to sign a waiver in case she leaves the hospital. I don't care about the money paid if it's rightfully yours, but if it's not, I won't forgive you for it. I'm currently demanding a refund for the room, as the patient doesn't have pneumonia, and her condition doesn't require hospitalization, according to the attending physician. | BE32: Patient | BS32: 24 Hours | BT32: 48 Hours | BU32: 72 Hours | BV32: More than 72 hours | CC32: Admin | CD32: 2 | CE32: =CD32/CD35 -> 20.00% | CM32: Nursing | CN32: 2 | CO32: =CN32/CN34 -> 22.22%
B33: 31 | C33: 2309 | D33: 30231323 | E33: وزارة الصحة | F33: العيادات الخارجية | G33: الإداري | H33: قسم التقارير الطبية | I33: 2024-03-21T21:59:00 | J33: ابرار بندر الشمري | K33: 24 Hours | L33: 2024-03-21 | M33: 21:59:00 | N33: ابرار بندر الشمري | O33: 2024-03-21 | P33: 21:59:00 | T33: 2024-03-21 | U33: 22:50:00 | V33: ابرار بندر الشمري | W33: 0.03541666667 | AA33: -45372.95139 | AE33: 0 | AJ33: -45372.95139 | AN33: -45372.95139 | AO33: 2024-03-21 | AP33: 22:52:00 | AQ33: 0.001388888886 | AR33: 2024-03-21 | AS33: 22:52:00 | AT33: ابرار بندر الشمري | AU33: 0.001388888886 | AX33: Management complaints | AY33: 3. Institutional Issues | AZ33: 3.7.Medical records | BA33: 3.7.3.Medical report issues | BB33: تاخير بتسليم التقرير الطبي. | BC33: Delay in delivering the medical report. | BE33: Patient | BS33: 15 | BT33: 2 | BU33: 0 | BV33: 2 | CC33: Nursing | CD33: 1 | CE33: =CD33/CD35 -> 10.00% | CM33: Support Services | CN33: 1 | CO33: =CN33/CN34 -> 11.11%
A34: 4 | B34: 32 | C34: 2310 | D34: 30303663 | E34: مراجع | F34: العيادات الخارجية | G34: الطبي | H34: عيادات الأسنان | I34: 2024-03-22T04:29:00 | J34: امال ماهل القحطاني | K34: More than 72 Hours | L34: 2024-03-22 | M34: 01:03:00 | N34: امال ماهل القحطاني | O34: 2024-03-22 | P34: 04:29:00 | Q34: 2024-03-23 | R34: 22:39:00 | S34: امال ماهل القحطاني | T34: 2024-03-23 | U34: 23:04:00 | V34: امال ماهل القحطاني | W34: 1.774305556 | AA34: -45374.96111 | AE34: 0 | AJ34: -45374.96111 | AN34: -45374.96111 | AO34: 2024-04-02 | AP34: 12:58:00 | AQ34: 9.579166667 | AR34: 2024-04-02 | AS34: 12:58:00 | AT34: امال ماهل القحطاني | AU34: 9.579166667 | AV34: 15920 | AW34: Dr HORIYA ABDULLAH ALMASARI | AX34: Management complaints | AY34: 3. Institutional Issues | AZ34: 3.1.Administrative Policies and Procedures | BA34: 3.1.4.Required Service not obtained | BB34: لم يتم معالجه الضرس بالشكل الصحيح مما ادى الى وجود خراج وعصب ويحتاج تنظيف وتكسير للضرس بعد ان كان سليم. اطالب بمعالجة الضرس وتركيب تركيبه او اذا لا سمح االله تم خلعه زراعة بداله ، كما اطالب باعاده كامل المبلغ المدفوع من قبلي ومن قبل التامين وتحمل جميع التكاليف. | BC34: The tooth was not treated properly, resulting in an abscess and nerve infection. It now requires cleaning and the tooth has to be broken up after previously being healthy. I request that the tooth be treated and fitted with a crown, or, God forbid, that it be extracted, replaced with an implant. I also request a full refund of the amount paid by me and my insurance company, and that they cover all associated costs. | BE34: Patient | BS34: =BS33/BT30 -> 71.43% | BT34: =BT33/BT30 -> 9.52% | BU34: =BU33/BT30 -> 0.00% | BV34: =BV33/BT30 -> 9.52% | CC34: Support Services | CD34: 0 | CE34: =CD34/CD35 -> 0.00% | CM34: Total | CN34: 9 | CO34: 100.00%
B35: 33 | C35: 2311 | D35: 30303663 | E35: مراجع | F35: العيادات الخارجية | G35: الإداري | H35: استقبال المختبر | I35: 2024-03-23T12:47:00 | J35: مي سليمان الدخيل | K35: 24 Hours | L35: 2024-03-23 | M35: 12:34:00 | N35: مي سليمان الدخيل | O35: 2024-03-23 | P35: 12:47:00 | Q35: 2024-03-23 | R35: 14:10:00 | S35: مي سليمان الدخيل | T35: 2024-03-23 | U35: 15:07:00 | V35: مي سليمان الدخيل | W35: 0.09722222223 | AA35: -45374.62986 | AE35: 0 | AJ35: -45374.62986 | AN35: -45374.62986 | AO35: 2024-03-24 | AP35: 14:29:00 | AQ35: 0.9736111111 | AR35: 2024-03-24 | AS35: 14:29:00 | AT35: مي سليمان الدخيل | AU35: 0.9736111111 | AX35: Relationship Complaints | AY35: 5. Communication | AZ35: 5.1.Patient-staff communication | BA35: 5.1.1.Miscommunication with Patient | BB35: معاملة غير لائقة من قبل الموظف في استقبال المختبر و التصرف بطريقه غير محترمه | BC35: Inappropriate treatment by the lab receptionist and disrespectful behavior | BE35: Patient | CC35: Total | CD35: 10 | CE35: =CD35/CD35 -> 100.00%
B36: 34 | C36: 2313 | D36: 30037828 | E36: وزارة الصحة | F36: العيادات الخارجية | G36: الطبي | H36: عيادات الجهاز الهضمي والمناظير | I36: 2024-03-23T16:45:00 | J36: ابرار بندر الشمري | K36: 24 Hours | L36: 2024-03-23 | M36: 16:45:00 | N36: ابرار بندر الشمري | O36: 2024-03-23 | P36: 16:45:00 | T36: 2024-03-23 | U36: 17:28:00 | V36: ابرار بندر الشمري | W36: 0.02986111111 | AA36: -45374.72778 | AE36: 0 | AJ36: -45374.72778 | AN36: -45374.72778 | AO36: 2024-03-23 | AP36: 17:30:00 | AQ36: 0.001388888886 | AR36: 2024-03-23 | AS36: 17:30:00 | AT36: ابرار بندر الشمري | AU36: 0.001388888886 | AV36: 8875 | AW36: Dr TAREK AHMED EL SHARAWY | AX36: Management complaints | AY36: 3. Institutional Issues | AZ36: 3.7.Medical records | BA36: 3.7.3.Medical report issues | BB36: لدى المراجع إشكالية بتقرير الطبي حيث يفيد بإن يوجد به تشخيص مختلف . | BC36: The patient has a problem with the medical report, as it states that there is a different diagnosis. | BE36: Patient | BS36: In-Patient | BT36: 2 | BU36: =BT36/BT39 -> 9.52%
B37: 35 | C37: 2314 | D37: 30317018 | E37: ذوي المراجع | F37: العيادات الخارجية | G37: الإداري | H37: استقبال العيادات الخارجية | I37: 2024-03-24T01:08:00 | J37: امال ماهل القحطاني | K37: More than 72 Hours | L37: 2024-03-23 | M37: 22:10:00 | N37: امال ماهل القحطاني | O37: 2024-03-24 | P37: 01:08:00 | Q37: 2024-03-30 | R37: 23:22:00 | S37: امال ماهل القحطاني | T37: 2024-03-31 | U37: 21:52:00 | V37: امال ماهل القحطاني | W37: 7.863888889 | X37: 2024-04-02 | Y37: 12:57:00 | Z37: امال ماهل القحطاني | AA37: 1.628472222 | AB37: 2024-04-03 | AC37: 15:20:00 | AD37: امال ماهل القحطاني | AE37: 1.099305556 | AF37: 2024-04-03 | AG37: 15:20:00 | AH37: امال ماهل القحطاني | AI37: The complaint was escalated due to the department's failure to respond | AJ37: 2.727777778 | AK37: 2024-06-17 | AL37: 17:13:00 | AM37: امال ماهل القحطاني | AN37: 77.80625 | AO37: 2024-06-17 | AP37: 17:13:00 | AQ37: 77.80625 | AR37: 2024-06-17 | AS37: 17:13:00 | AT37: امال ماهل القحطاني | AU37: 77.80625 | AV37: 13817 | AW37: RANA ABDUL MOHSEN BIN BAZ | AX37: Relationship Complaints | AY37: 5. Communication | AZ37: 5.1.Patient-staff communication | BA37: 5.1.1.Miscommunication with Patient | BB37: السلام عليكم لدينا موعد عند الدكتور محمد الجيلاني الجراحة ومرينا على احد الاستقبالات بالدور السادس ولم يكن به احد وتوجهنا للاستقبال الثاني وانتظرنا بالدور لمدة تقريباً ربع ساعة وعند وصول الدور قالت لنا الموظفة اذهبو للاستقبال الثاني اللان موجودين واخبرتها بأننا نتأخر على موعدنا وقالت أعطني الإثبات رغم انها لم تطلب من الذين قبلنا اي إثبات ورغبة بأعطاها رقم الحاسب شفوي وقالت لا ورغبة أعطيها توكلنا ورفضة وقالت امسك الإثبات بيدي واخبرتها بأنها قاصدة تعطيلنا بالعاني استقعاد لعدم ذهبنا للاستقبال الثاني وذهبنا للاستقبال الثاني ولم يطلب الإثبات وأخذ رقم الحاسب شفوي وادخلنا على الدكتور وهاذه الموضفة تعمدت تعطيلنا واحرجتنا أمام المراجعين وعقدتة مراجعتنا رغم ان ابني مسوي عملية ولازالة الغرز فية وتوكلنا هناك امر بأنة معتمد اني اطلب العودة للكميرات لتأكد من كلامي واطلب محاسبتها وهناك قانون إذا اي موضف أساء استخدام سلطة ضد اي مواطن محاسبة الموصفة ورد اعتبار .واذا لم تحاسب ارغب رفع شكواي لوزارة الصحة | BC37: We had an appointment with Dr. Mohammed Al-Jilani in the Surgery Department. We first went to one of the reception desks on the sixth floor, but no one was there. We then went to the second reception and waited in line for approximately fifteen minutes. When it was our turn, the employee told us to go to the other reception because they were now available. I informed her that we were already late for our appointment. She said, “Give me proof,” even though she had not asked those before us for any proof. I tried to give her the system number verbally, but she refused. I also tried to show her the Tawakkalna app, but she refused and said, “Hold the proof in your hand.” I told her that she was deliberately trying to delay us on purpose because we had not gone to the other reception. We then went to the other reception desk, where they did not ask for proof and accepted the system number verbally and allowed us to see the doctor. This employee deliberately delayed us, embarrassed us in front of other patients, and complicated our visit, even though my son had undergone surgery and was there to have his stitches removed. There is a directive in Tawakkalna confirming my appointment. I request that the cameras be reviewed to verify my statement and that the employee be held accountable. There is a law stating that if any employee abuses their authority against a citizen, they must be held accountable and the person’s dignity restored. If she is not held accountable, I would like to escalate my complaint to the Ministry of Health. | BE37: Patient | BS37: Out-Patient | BT37: 16 | BU37: =BT37/BT39 -> 76.19%
B38: 36 | C38: 2318 | D38: 30254362 | E38: ذوي المراجع | F38: التنويم | G38: التمريض | H38: تمريض تنويم الأطفال | I38: 2024-03-25T15:54:00 | J38: ابرار بندر الشمري | K38: More than 72 Hours | L38: 2024-03-25 | M38: 15:41:00 | N38: ابرار بندر الشمري | O38: 2024-03-25 | P38: 15:54:00 | Q38: 2024-03-26 | R38: 15:25:00 | S38: ابرار بندر الشمري | T38: 2024-03-26 | U38: 15:25:00 | V38: ابرار بندر الشمري | W38: 0.9798611111 | X38: 2024-03-27 | Y38: 13:28:00 | Z38: ابرار بندر الشمري | AA38: 0.91875 | AB38: 2024-04-16 | AC38: 12:53:00 | AD38: ابرار بندر الشمري | AE38: 19.97569444 | AF38: 2024-04-16 | AG38: 12:53:00 | AH38: ابرار بندر الشمري | AI38: The complaint was escalated due to the department's failure to respond | AJ38: 20.89444444 | AN38: -45377.64236 | AO38: 2024-06-26 | AP38: 12:31:00 | AQ38: 91.87916667 | AR38: 2024-06-26 | AS38: 12:31:00 | AT38: ابرار بندر الشمري | AU38: 91.87916667 | AX38: Clinical complaints | AY38: 1. Quality | AZ38: 1.3.Quality of Care | BA38: 1.3.1.Substandard clinical/nursing care | BB38: تمسّخ جلدي في اليد اليسرى نتيجة شدّ الشاش بإحكام فوق اليد من قِبل الممرضة. | BC38: Skin Maceration in the left hand due to the gauze being pulled over the hand by the nurse | BE38: Patient | BS38: ER | BT38: 3 | BU38: =BT38/BT39 -> 14.29%
B39: 37 | C39: 2319 | D39: 30303663 | E39: وزارة الصحة | F39: العيادات الخارجية | G39: الطبي | H39: قسم الصيدلية | I39: 2024-03-25T20:00:00 | J39: مي سليمان الدخيل | K39: More than 72 Hours | L39: 2024-03-25 | M39: 20:00:00 | N39: مي سليمان الدخيل | O39: 2024-03-25 | P39: 20:00:00 | T39: 2024-03-25 | U39: 20:13:00 | V39: مي سليمان الدخيل | W39: 0.009027777778 | X39: 2024-03-26 | Y39: 20:23:00 | Z39: مي سليمان الدخيل | AA39: 1.006944444 | AE39: -45377.84931 | AJ39: -45376.84236 | AN39: -45376.84236 | AO39: 2024-03-28 | AP39: 20:48:00 | AQ39: 3.024305556 | AR39: 2024-03-28 | AS39: 20:48:00 | AT39: مي سليمان الدخيل | AU39: 3.024305556 | AX39: Clinical complaints | AY39: 2. Safety | AZ39: 2.1.Medication & Vaccination | BA39: 2.1.8.Medication shortages | BB39: قام الطبيب بصرف دواءADALAT LA 30 MG تاريخ 7 مارس وكل اسبوع آتي للصيدليه لاخذ الدواء ويخبروني بأنه غير متوفر ولم احصل على الدواء حتى الآن حيث لم يقومو بتوفير الدواء منذ 3 اسابيع وهذا غير معقول | BC39: I was given ADALAT LA 30 MG on March 7th, and every week I go to the pharmacy to get the medication, but they tell me it's unavailable and they haven't had it yet. They haven't restocked it for three weeks, which is unacceptable. | BE39: Patient | BS39: Total | BT39: =BT36+BT37+BT38 -> 21 | BU39: =BU38+BU37+BU36 -> 100.00%
B40: 38 | C40: 2320 | D40: 30317835 | E40: وزارة الصحة | F40: العيادات الخارجية | G40: التمريض | H40: تمريض غرفة التطعيمات | I40: 2024-03-25T21:05:00 | J40: امال ماهل القحطاني | K40: 24 Hours | L40: 2024-03-25 | M40: 21:05:00 | N40: امال ماهل القحطاني | O40: 2024-03-25 | P40: 21:05:00 | T40: 2024-03-25 | U40: 21:19:00 | V40: امال ماهل القحطاني | W40: 0.009722222225 | AA40: -45376.88819 | AE40: 0 | AJ40: -45376.88819 | AN40: -45376.88819 | AO40: 2024-03-26 | AP40: 00:02:00 | AQ40: 0.1131944444 | AR40: 2024-03-26 | AS40: 00:02:00 | AT40: امال ماهل القحطاني | AU40: 0.1131944444 | AX40: Clinical complaints | AY40: 6. Humanness / Caring | AZ40: 2.1.Medication & Vaccination | BA40: 4.3.8.Vaccinating delay | BB40: لا تظهر اللقاحات في صحتي | BC40: vaccination not appear on SEHATI | BE40: Patient | BS40: Medical | BT40: 9 | BU40: =BT40/BT44 -> 42.86%
B41: 39 | C41: 2321 | D41: 30303663 | E41: وزارة الصحة | F41: العيادات الخارجية | G41: الطبي | H41: قسم العلاج الطبيعي | I41: 2024-03-25T22:04:00 | J41: امال ماهل القحطاني | K41: 24 Hours | L41: 2024-03-25 | M41: 22:04:00 | N41: امال ماهل القحطاني | O41: 2024-03-25 | P41: 22:04:00 | T41: 2024-03-25 | U41: 22:04:00 | W41: 0 | AA41: -45376.91944 | AE41: 0 | AJ41: -45376.91944 | AN41: -45376.91944 | AO41: 2024-03-25 | AP41: 23:01:00 | AQ41: 0.03958333333 | AR41: 2024-03-25 | AS41: 22:44:00 | AT41: امال ماهل القحطاني | AU41: 0.02777777778 | AX41: Management complaints | AY41: 4. Accessibility | AZ41: 4.1.Access | BA41: 4.1.2.Poor availability and scheduling | BB41: يرغب المريض بحجز مواعيد العلاج الطبيعي | BC41: The patient wishes to book physiotherapy appointments | BE41: Patient | BS41: Admin | BT41: 10 | BU41: =BT41/BT44 -> 47.62%
B42: 40 | C42: 2323 | D42: 30303663 | E42: وزارة الصحة | F42: العيادات الخارجية | G42: الطبي | H42: قسم الصيدلية | I42: 2024-03-26T23:08:00 | J42: امال ماهل القحطاني | K42: 48 Hours | L42: 2024-03-26 | M42: 23:08:00 | N42: امال ماهل القحطاني | O42: 2024-03-26 | P42: 23:08:00 | T42: 2024-03-27 | U42: 00:19:00 | V42: امال ماهل القحطاني | W42: 0.04930555556 | X42: 2024-03-27 | Y42: 00:25:00 | Z42: امال ماهل القحطاني | AA42: 0.004166666666 | AB42: 2024-03-27 | AC42: 00:30:00 | AD42: امال ماهل القحطاني | AE42: 0.003472222226 | AJ42: -45378.01319 | AN42: -45378.01319 | AO42: 2024-03-28 | AP42: 21:45:00 | AQ42: 1.893055556 | AR42: 2024-03-28 | AS42: 21:45:00 | AT42: امال ماهل القحطاني | AU42: 1.893055556 | AX42: Clinical complaints | AY42: 2. Safety | AZ42: 2.1.Medication & Vaccination | BA42: 2.1.9.Refusal to dispense medications | BB42: تم احضار وصفه مقيده خارجيه من قبل المريض من مركز اخر مختومه بنفس تاريخ الحضور وموضح بعدم استلامها بعد حيث ولكن تم رفض صرف الوصفه وابلاغي بضرورة زيارة دكتور لدى مستشفى الحمادي وطلب اعادة كتابة الوصفه . | BC42: An external restricted prescription was brought by the patient from another center, stamped with the same date of attendance and indicating that it had not yet been received. However, the prescription was refused and I was informed that I needed to visit a doctor at Al Hammadi Hospital and request that the prescription be rewritten. | BE42: Patient | BS42: Nursing | BT42: 2 | BU42: =BT42/BT44 -> 9.52%
B43: 41 | C43: 2328 | D43: 30303663 | E43: وزارة الصحة | F43: الطوارئ | G43: الطبي | H43: أطباء الطوارئ | I43: 2024-03-28T16:12:00 | J43: ابرار بندر الشمري | K43: 24 Hours | L43: 2024-03-28 | M43: 16:12:00 | N43: ابرار بندر الشمري | O43: 2024-03-28 | P43: 16:12:00 | T43: 2024-03-28 | U43: 16:12:00 | W43: 0 | AA43: -45379.675 | AE43: 0 | AJ43: -45379.675 | AN43: -45379.675 | AO43: 2024-03-28 | AP43: 16:24:00 | AQ43: 0.008333333331 | AR43: 2024-03-28 | AS43: 16:22:00 | AT43: ابرار بندر الشمري | AU43: 0.006944444438 | AX43: Clinical complaints | AY43: 1. Quality | AZ43: 1.5.Diagnosis | BA43: 1.5.1.Errors in diagnosis | BB43: خطا في تشخيص الحالة المرضيه | BC43: Misdiagnosis of the medical condition | BE43: Patient | BS43: Support Services | BT43: 0 | BU43: =BT43/BT44 -> 0.00%
